{"text_format":"1","workbook":"xlsx","n_sheets":12,"sheets":["FORSIDE","INFORMASJON","Tidsplan","Lørdag løp","Lørdag Trekning","Søndg løp","LØPSOPPSETT OPPSLAG","Søndag Trekning","Krysstabell","FORMATERINGER","Startnr","KART"],"not_rendered":{"charts":0,"images":1,"macros":1,"external_links":0,"defined_names":29,"comments":2,"pivot_tables":1},"unopened":[],"bounds":{"document_bytes":16777216,"sheet_cells":100000,"rows_first":2000,"rows_last":500,"rows_between":2000,"halvings":0,"cell_chars":16384,"cell_head_chars":4096},"cells_cut":0,"cells_raw":0,"read":"whole","date_system":"1900"}

{"sheet":"FORSIDE","index":0,"n_rows":19,"n_cols":2,"rows_kept":19,"cut":false,"hidden":false,"merged":[]}
[null,"Trekning \nmed løpsoppsett\nRev A 19.08 0900"]
[]
[]
[null,"til"]
[]
[null,"KJØRBOSPRINTEN 2016"]
[null,"med Sprintmesterskapet \nog Oslo Kretsmesterskap"]
[null," "]
[]
[null,"Kalvøya Sandvika"]
[]
[]
[null,"Lørdag 27. og søndag 28. august 2016"]
[]
[]
[]
[null,"Arrangører:"]
[]
[null,"Bærum Roklubb"]

{"sheet":"INFORMASJON","index":1,"n_rows":58,"n_cols":5,"rows_kept":58,"cut":false,"hidden":false,"merged":[[40,1,40,4],[43,1,43,4],[0,0,0,4],[1,0,1,4],[22,1,22,4],[24,1,24,4],[28,1,28,4],[9,1,9,4],[33,1,33,4],[45,1,45,4],[50,1,50,4],[54,1,54,4],[20,1,20,4],[30,1,30,4],[38,1,38,4],[39,1,39,4],[41,1,41,4],[42,1,42,4],[36,1,36,4],[37,1,37,4],[47,1,47,4],[49,1,49,4],[48,1,48,4],[44,1,44,4],[35,1,35,4]]}
["KJØRBOSPRINTEN 2016 27.–28. august"]
["med Sprintmersterkapet og Oslo Kretsmesterskap"]
[]
["Regattaarrangør:","Bærum Roklubb"]
[]
["Start finaler:","Lørdag kl. 12.00","Søndag kl. 12.00"]
[]
["Påmeldingsfrist:","Arrangør i hende innen onsdag 17. august kl. 24:00"]
[null,null," "," "," "]
["Påmeldingsadresse:","Påmeldinger sendes via SportsAdmin (se http://www.roing.no). (regattareglementet §23/forskrift til §23).\nUtenlandske roklubber sender påmeldinger til: regatta@baerum-roklubb.no , merket Kjørbosprinten"]
[]
["Kontaktpersoner:","Formann regattakomiteen:","Tore Gulli","Mobil:  907 77 278"]
[null,"Regattakoordinator:","Reidar Mandt","Mobil:  907 36 432"]
[null,"Regattakontor:","Sigmund Bragstad","Mobil:  906 98 688"]
[null,"Regattakontor:"]
[null,"Regattakontor:"]
[null,"E-post:","regatta@baerum-roklubb.no                                                    "]
[]
["Startkontingent:","1x: kr. 275,-","2x,  2-: kr. 325,-","4-, 4x: kr. 375,-","8+: kr. 475,-"]
[null,"Åpen nybegynner: kr 150 per båt uansett båttype"]
[null,"Faktura utsendes etter regattaslutt. Betalingsfrist 10 dager.  Utenlandske klubber innbetaler til kto: 1627.05.12112 (bankkvittering må forevises), eller kontant til regattakontoret innen regattastart. "]
[]
["Lagledermøte:","Regattakontoret.  Lørdag kl. 11.00.  Søndag kl. 11.00"]
[]
["Tidsintervall finaler:","5 minutter. Mrk.: D JB 1x og H JB 1x starter begge dager etter eventuelle forsøksløp i andre klasser, og før lagledermøtet"]
[]
["Tidligste start forsøk:","Lørdag/søndag, kl.: Oppgis i trekningen"]
[]
["Forsøksordning:","Enkelt system iht. Regattareglementets §25, forsøksordning 1.  \nSenior 1x (Damer og Herrer) lørdag vil følge FISAs system for uttagning."]
[]
["Lagendringer","Bortsett fra endringer som skyldes dokumentert sykdom, vil lagendringer ikke bli akseptert efter lagledermøtet lørdag."]
[]
[]
["Kombinasjonslag:","Tillates i henhold til Regattareglementet."]
[]
["Etteranmeldinger:","Godtas normalt ikke. Arrangøren kan imidlertid i spesielle tilfelle godta efteranmeldinger etter skriftlig søknad, mot dobbel startkontingent. Efteranmeldinger mottas uansett ikke hvis disse fører til at det blir nødvendig med forsøksløp, eller at det blir nødvendig å øke antall heat i forsøksløpene.  Etteranmeldinger som ikke inneholder alle relevante opplysninger blir ikke akseptert! "]
[null,"Etteranmeldinger (eller andre endringer etter påm.fristen) må inneholde følgende opplysninger:\n* Endringstype:       Etteranmelding / Lagendring / Strykning\n* Påmelder:              Klubb (påmeldende), Navn (påmelder) ,  E-post, Mobilnr.\n* Løpsinformasjon: Løpsnr. iht. løpsoppsett.\n* Roerinformasjon: Navn og LISENSNR. på alle roere involvert i endring (regattareglementet §5/forskrift til §5)"]
["Særlige opplysninger:","Ingen løp vil gå med fler enn 6 båter over banen."]
[null,"Junior D/C tillates  å ro med ”big blades”."]
[null,"I Mix Junior C 4x skal det være roere av begge kjønn. Lag som kun består  av roere av samme kjønn kan bli nektet å starte, og regnes ikke med i konkurransen! "]
[null,"Det vil ikke bli arrangert forsøksløp i 1x for Junior B og Junior C. Lagene fordeles direkte i heat med premiering i hvert heat. Det kan arrangeres forsøk i lagbåter i Junior B."]
[null,"Det vil bli seeding i forsøksløpene for DJA og HJA 1x begge dager."]
[null,"Mix 8+ krever minst tre roere av hvert kjønn. Coxen teller ikke med."]
[null,"Lag som er alene påmeldt i sitt løp vil få anledning til påmelding i et annet løp hvis det er plass i løpet."]
[null,"Det kan arrangeres løp for båtklasser som ikke er nevnt i innbydelsen hvis det anmodes om dette innen påmeldingsfristen. Disse vil evnt. bli satt inn der opprinnelig oppsatte løp faller ut.\nI klassen Åpen nybegynner kan det meldes på alle båttyper! SportsAdmin har ikke klart å lage en \"Åpen klasse\" under menyen Øvelse. Bruk den tilgjengelige betegnelsen, men meld på med aktuelt antall roere for den aktuelle båttypen."]
[]
["Løpsbetegnelser:","SP = Sprintmesterskap",null,"K = Kretsmsterskap"]
[]
["Informasjonsmøte:","Lørdag kl. 11.30 vil det bli holdt et informasjonsmøte om  regattareglementet for uerfarne roere og ledere.  Møtet holdes ved bryggene."]
[]
["Premiering:","Premiering i henhold til regattareglementet. Premieutdeling etter siste løp begge dager. \nI løp som avvikles etter heatordning premieres hvert heat individuelt.\nMastersløp premieres etter internasjonal klasseinndeling.\nDet deles ut vandrepremie til beste klubb:\n1. plass teller 3 poeng - 2. plass teller 2 poeng - 3. plass teller 1 poeng. Kun løp med flere enn ett lag teller med. 2. og 3. plass teller kun med når laget er i mål innen 10 sekunder etter vinneren! Ved lik poengsum teller flest 1., 2. eller 3. plasser.  "]
["Garderober:","I Båtsportens Hus"]
[]
["Regattakontor:","2. etasje Båtsportens Hus"]
[]
["Busser:","Klubber som kommer med buss må gi beskjed om dette ved påmelding."]
[]
["Parkering:","Se neste side"]

{"sheet":"Tidsplan","index":2,"n_rows":103,"n_cols":15,"rows_kept":103,"cut":false,"hidden":false,"merged":[]}
["LØPSDAG","LØP NR","FORSØKSLØP","FINALER",null,"Rendom 1","\"Hjemme-klubb\"","Påmeldt av (person)","Mobil","E-post","Påmeldt dato",null,null,"VEIING"]
["Lørdag 22.08.2015","121F","0930",{"$f":"VLOOKUP(LEFT(B2,3)*1,B:D,3,FALSE)","v":"1420"},14]
["Lørdag 22.08.2015","111F","0945",{"$f":"VLOOKUP(LEFT(B3,3)*1,B:D,3,FALSE)","v":"1245"},11]
["Lørdag 22.08.2015","122F","0955",{"$f":"VLOOKUP(LEFT(B4,3)*1,B:D,3,FALSE)","v":"1425"},7]
["Lørdag 22.08.2015",102,null,"1005",10]
["Lørdag 22.08.2015",101,{"$f":"IFERROR(VLOOKUP(B6&\"F\",B:D,2,FALSE),\"\")","v":""},"1015",23]
[]
["LAGLEDERMØTE","1LLM","LAGLEDERMØTE","1100"]
["Lørdag 22.08.2015",103,{"$f":"IFERROR(VLOOKUP(B9&\"F\",B:D,2,FALSE),\"\")","v":""},"1200"]
["Lørdag 22.08.2015",105,"","1205"]
["Lørdag 22.08.2015",106,"","1210"]
["Lørdag 22.08.2015",107,"","1215",17]
["Lørdag 22.08.2015",108,"","1230"]
["Lørdag 22.08.2015",109,"","1235"]
["Lørdag 22.08.2015",110,"","1240"]
["Lørdag 22.08.2015",111,"0945","1245",11]
["Lørdag 22.08.2015",112,"","1255"]
["Lørdag 22.08.2015",104,"","1300"]
["Lørdag 22.08.2015",113,"","1305"]
["Lørdag 22.08.2015",114,"","1310"]
["Lørdag 22.08.2015",115,"","1315"]
["Lørdag 22.08.2015",116,"","1320"]
["Lørdag 22.08.2015",117,"","1340",8]
["Lørdag 22.08.2015",118,"","1350",8]
["Lørdag 22.08.2015",119,"","1400",14]
["Lørdag 22.08.2015",120,"","1415",7]
["Lørdag 22.08.2015",121,"0930","1420"]
["Lørdag 22.08.2015",122,"0955","1425"]
["Lørdag 22.08.2015",123,"","1430"]
["Lørdag 22.08.2015",124,"","1435"]
["Lørdag 22.08.2015",125,"","1440"]
["Lørdag 22.08.2015",126,"","1445"]
["Lørdag 22.08.2015",127,"","1450"]
["Lørdag 22.08.2015",128,"","1455"]
["Lørdag 22.08.2015",129,"","1500"]
["Lørdag 22.08.2015",130,"","1505"]
["Lørdag 22.08.2015",131,"","1510"]
["Lørdag 22.08.2015",132,"","1515"]
["Lørdag 22.08.2015",133,"","1520"]
["Lørdag 22.08.2015",134,"","1525"]
["Lørdag 22.08.2015",135,"","1530"]
["Lørdag 22.08.2015",136,"","1535"]
["Lørdag 22.08.2016",137,"","1540"]
["Lørdag 22.08.2015",138,"","1545"]
["Lørdag 22.08.2015",139,"","1550"]
["Lørdag 22.08.2015",140,"","1555"]
["Lørdag 22.08.2015",141,"","1600"]
["Lørdag 22.08.2016",142,"","1605"]
["Lørdag 22.08.2017",143,"","1610"]
[null,null,null,null,null,null,null,null,null,null,null,null,null,null,7]
[null,null,"SØNDAG"]
[null,null,null,null,209]
["Søndag 23.08.2015","209F","0915",{"$f":"VLOOKUP(LEFT(B53,3)*1,B:D,3,FALSE)","v":"1240"},7]
["Søndag 23.08.2015","221F","0925",{"$f":"VLOOKUP(LEFT(B54,3)*1,B:D,3,FALSE)","v":"1350"},13]
["Søndag 23.08.2015","211F","0940",{"$f":"VLOOKUP(LEFT(B55,3)*1,B:D,3,FALSE)","v":"1255"},12]
["Søndag 23.08.2015","222F","0950",{"$f":"VLOOKUP(LEFT(B56,3)*1,B:D,3,FALSE)","v":"1400"},13]
["Søndag 23.08.2015",202,{"$f":"IFERROR(VLOOKUP(B57&\"F\",B:D,2,FALSE),\"\")","v":""},"1005",10]
["Søndag 23.08.2015",201,{"$f":"IFERROR(VLOOKUP(B58&\"F\",B:D,2,FALSE),\"\")","v":""},"1030",23]
[]
[null,"2LLM","LAGLEDERMØTE","1100"]
[]
["Søndag 23.08.2015",203,{"$f":"IFERROR(VLOOKUP(B62&\"F\",B:D,2,FALSE),\"\")","v":""},"1200"]
["Søndag 23.08.2015",204,"","1205"]
["Søndag 23.08.2015",205,"","1210"]
["Søndag 23.08.2015",206,"","1215",17]
["Søndag 23.08.2015",207,"","1230"]
["Søndag 23.08.2015",208,"","1235"]
["Søndag 23.08.2015",209,"0915","1240",7]
["Søndag 23.08.2015",210,"","1250"]
["Søndag 23.08.2015",211,"0940","1255",12]
["Søndag 23.08.2015",212,"","1305"]
["Søndag 23.08.2015",213,"","1310"]
["Søndag 23.08.2015",214,"","1315"]
["Søndag 23.08.2015",215,"","1320"]
["Søndag 23.08.2015",216,"","1325"]
["Søndag 23.08.2015",217,"","1330"]
["Søndag 23.08.2015",218,"","1335"]
["Søndag 23.08.2015",219,"","1340"]
["Søndag 23.08.2015",220,"","1345"]
["Søndag 23.08.2015",221,"0925","1350",13]
["Søndag 23.08.2015",222,"0950","1400",7]
["Søndag 23.08.2015",223,"","1405"]
["Søndag 23.08.2015",224,"","1410"]
["Søndag 23.08.2015",225,"","1415"]
["Søndag 23.08.2015",226,"","1420"]
["Søndag 23.08.2015",227,"","1425"]
["Søndag 23.08.2015",228,"","1430"]
["Søndag 23.08.2015",229,"","1435"]
["Søndag 23.08.2015",230,"","1440"]
["Søndag 23.08.2015",231,"","1445"]
["Søndag 23.08.2015",232,"","1450"]
["Søndag 23.08.2015",233,"","1455"]
["Søndag 23.08.2015",234,"","1500"]
["Søndag 23.08.2015",235,"","1505"]
["Søndag 23.08.2015",236,"","1510"]
["Søndag 23.08.2015",237,"","1520"]
["Søndag 23.08.2015",238,"","1525"]
["Søndag 23.08.2015",239,"","1530"]
["Søndag 23.08.2015",240,"","1535"]
["Søndag 23.08.2015",241,"","1540"]
["Søndag 23.08.2015",242,"","1545"]
["Søndag 23.08.2016",243,"","1550"]
["Søndag 23.08.2017",244,"","1555"]

{"sheet":"Lørdag løp","index":3,"n_rows":48,"n_cols":8,"rows_kept":48,"cut":false,"hidden":false,"merged":[[2,1,2,2],[0,0,0,7],[5,0,5,7]]}
["LØPSOPPSETT LØRDAG"]
["DAG","Løp nr.","Kjønn","Klasse","Båttype","Distanse","ANNET","Startkontingent"]
["Lørdag","FORSØKSLØP\nFORSØKSLØP"]
[null,101,"H","JB","1x",500," ",275]
[null,102,"D","JB","1x",500,"K",275]
["Pause\nLAGLEDERMØTE kl. 11.00"]
[null,103,"D/H","Nybeg","Åpen",500," ",150]
[null,{"$f":"B7+1","v":104},"D/H","JD","2x",500,null,275]
[null,{"$f":"B8+1","v":105},"H","JA","8+",500,"SP/K",475]
[null,106,"H","JC","1x",500," ",275]
[null,107,"D","JC","2x",500," ",325]
[null,108,"D","S","1x",500,"SP",275]
[null,109,"D","JA","2x",500,"SP",325]
[null,110,"D","S","2-",500,null,325]
[null,111,"H","JA","1x",500,"K",275]
[null,112,"H","S/Master","4-",500," ",375]
[null,113,"D","Master","4x",500,"K",375]
[null,114,"H","JA","2-",500,"SP",325]
[null,115,"H","S","1x",500,"K",275]
[null,116,"D","JA","4-",500,"SP",375]
[null,117,"H","S L ","1x",500,"K",275]
[null,118,"D","S","2x",500," ",325]
[null,119,"H","JC","2x",500," ",325]
[null,120,"D","JC","1x",500," ",275]
[null,121,"H","JB","2x",500,"K",325]
[null,122,"D","JA","1x",500,"K",275]
[null,123,"D","JB","4x",500,"K",375]
[null,124,"H","Master","2x",500," ",325]
[null,125,"D","Master","2x",500,"K",325]
[null,126,"D","S L ","2x",500,"K",325]
[null,127,"H","S","2x",500,"SP",325]
[null,128,"D","S","4x",500,"K",375]
[null,129,"H","JA","4x",500,"SP",375]
[null,130,"D","JA","2-",500,"SP",325]
[null,131,"H","JB","4-",500,"K",375]
[null,132,"D","JB","2x",500,"K",325]
[null,133,"MIX","JC","4x",500,null,375]
[null,134,"H","JA","4-",500,"K",375]
[null,135,"H","S","2-",500,"K ",325]
[null,136,"D","JA","4x",500,"SP",375]
[null,137,"H","S L"," 2x",500,"SP",325]
[null,138,"D","S L ","1x",500,"SP",275]
[null,139,"H","S/Master","4x",500,"SP/K",375]
[null,140,"H","JA","2x",500,"K",325]
[null,141,"H","JB","4x",500,"K",375]
[null,142,"H","Master","1x",500,"K",275]
[null,143,"D","Master","1x",500," ",275]
[null,144,"D","S","8+",500,"SP",475]

{"sheet":"Lørdag Trekning","index":4,"n_rows":279,"n_cols":46,"rows_kept":279,"cut":false,"hidden":false,"merged":[]}
[{"$f":"COLUMNS($A1:A1)","v":1},{"$f":"COLUMNS($A1:B1)","v":2},{"$f":"COLUMNS($A1:C1)","v":3},{"$f":"COLUMNS($A1:D1)","v":4},{"$f":"COLUMNS($A1:E1)","v":5},{"$f":"COLUMNS($A1:F1)","v":6},{"$f":"COLUMNS($A1:G1)","v":7},{"$f":"COLUMNS($A1:H1)","v":8},{"$f":"COLUMNS($A1:I1)","v":9},{"$f":"COLUMNS($A1:J1)","v":10},{"$f":"COLUMNS($A1:K1)","v":11},{"$f":"COLUMNS($A1:L1)","v":12},{"$f":"COLUMNS($A1:M1)","v":13},{"$f":"COLUMNS($A1:N1)","v":14},{"$f":"COLUMNS($A1:O1)","v":15},{"$f":"COLUMNS($A1:P1)","v":16},{"$f":"COLUMNS($A1:Q1)","v":17},{"$f":"COLUMNS($A1:R1)","v":18},19,20,21,{"$f":"COLUMNS($A1:V1)","v":22},{"$f":"COLUMNS($A1:W1)","v":23},{"$f":"COLUMNS($A1:X1)","v":24},{"$f":"COLUMNS($A1:Y1)","v":25},{"$f":"COLUMNS($A1:Z1)","v":26},null,{"$f":"COLUMNS($A1:AB1)","v":28},{"$f":"COLUMNS($A1:AC1)","v":29},{"$f":"COLUMNS($A1:AD1)","v":30},{"$f":"COLUMNS($A1:AE1)","v":31},{"$f":"COLUMNS($A1:AF1)","v":32},{"$f":"COLUMNS($A1:AG1)","v":33},{"$f":"COLUMNS($A1:AH1)","v":34},{"$f":"COLUMNS($A1:AI1)","v":35},{"$f":"COLUMNS($A1:AJ1)","v":36},{"$f":"COLUMNS($A1:AK1)","v":37},{"$f":"COLUMNS($A1:AL1)","v":38},{"$f":"COLUMNS($A1:AM1)","v":39},{"$f":"COLUMNS($A1:AN1)","v":40},{"$f":"COLUMNS($A1:AO1)","v":41},{"$f":"COLUMNS($A1:AP1)","v":42},{"$f":"COLUMNS($A1:AQ1)","v":43},{"$f":"COLUMNS($A1:AR1)","v":44},{"$f":"COLUMNS($A1:AS1)","v":45},{"$f":"COLUMNS($A1:AT1)","v":46}]
[null,null,null,null,null,null,null,null,null,null,null,null,null,null,null,null,null,null,3,5,6]
[null,null,null,null,null,null,null,null,null,null,null,null,null,null,null,null,null,{"$f":"SUBTOTAL(3,R4:R281)-1","v":235},null,null,null,null,null,null,null,null,{"$f":"SUBTOTAL(9,AA4:AA281)-1","v":19},null,{"$f":"SUBTOTAL(3,AC4:AC281)-1","v":222}]
["ID","Oppslag","LØPSDAG","LØP NR","Plassering","Start Finale","Start Forsøk","Veiing","Forsøk","Slått ut","Semifinale","Start Forsøk","Rendom 1","random","Sprintmesterskap (S)","Kretsmesterslap (K)","Heat","Startnr","Heat actual","Plassering","Tid","Plass x Heat","Poeng","Kjønn","Klasse","Båttype","Deltakere (seter)","Distanse","Roklubb","ROERE","NC Kvalifisering Nordisk/Baltic","START-KONTIGENT","Etteranmeldt/Strøket","Påmeldene/Betalende klubb","Betaling registrert","Betalingstransaksjon","Fødselsdato","Påmelding innenfor klasse (ja/nei)","Idrettsnummer","Person ID","Betalt lisens","\"Hjemme-klubb\"","Påmeldt av (person)","Mobil","E-post","Påmeldt dato"]
[{"$f":"D5&R5","v":"121F0"},0,"Lør 27.8","121F",0,{"$f":"VLOOKUP($D5,Tidsplan!$B:$D,3,FALSE)","v":"1420"},{"$f":"VLOOKUP($D5,Tidsplan!$B:$D,2,FALSE)","v":"0930"},null,null,null,null," ",null,null,null,"K",null,0,null,null,null,null,null,"H","H J B","2x",{"$f":"IF(R5<>0,LEFT(Z5,1),0)*1","v":0},"500 m "]
[{"$f":"D6&R6","v":"121F1"},{"$f":"OFFSET(B6,-1,0)","v":0},"Lør 27.8","121F",null,{"$f":"OFFSET(F6,-1,0)","v":"1420"},"0930",null,null,null,null,null,17,null,null,null,1,1,1,null,null,null,null,"H","H J B","2x",null,"500 m ","Bærum Roklubb 4","sindre fuglseth\nBrage Bragstad",null,325,null,"Bærum Roklubb",null,null,"26.09.2000\n12.09.2000","Ja\nJa","M260900SIN02\nM120900BRA03","6073987\n4908711","29.04.2016\n29.04.2016","Bærum Roklubb\nBærum Roklubb","Anders Hovde\n","90775520\n","anders.hovde@tns-gallup.no\n","17.08.2016\n17.08.2016"]
["121F2",0,"Lør 27.8","121F",null,"1420","0930",null,null,null,null,null,148,null,null,null,1,{"$f":"1+R6","v":2},1,null,null,null,null,"H","H J B","2x",null,"500 m ","Norske Studenters Roklub 1","Kristian Søhr\nSam Lorgen",null,325,null,"Norske Studenters Roklub",null,null,"14.04.2000\n02.04.2000","Ja\nJa","M140400KRI01\nM020400SAM02","4077003\n6722466","26.04.2016\n26.04.2016","Norske Studenters Roklub\nNorske Studenters Roklub","Tor-geir Myhrer\n","90060234\n","rosjefen@gmail.com\n","17.08.2016\n17.08.2016"]
["121F3",0,"Lør 27.8","121F",null,"1420","0930",null,null,null,null,null,190,null,null,null,1,{"$f":"1+R7","v":3},1,null,null,null,null,"H","H J B","2x",null,"500 m ","Ormsund Roklub 1","Jonathan K Dysvik\nErlend Hystad",null,325,null,"Ormsund Roklub",null,null,"12.05.2001\n01.12.2002","Ja\nNei","M120501JON09\nM011202ERL01","2820892\n4859156","11.03.2016\n11.03.2016","Ormsund Roklub\nOrmsund Roklub","Antje Peine\n","+4792863244\n","antjep13@gmail.com\n","17.08.2016\n17.08.2016"]
["121F4",0,"Lør 27.8","121F",null,"1420","0930",null,null,null,null,null,378,null,null,null,1,4,1,null,null,null,null,"H","H J B","2x",null,"500 m ","Moss Roklubb 1","Jarle Hjortkjær Sæby\nMagnus strømme",null,325,null,"Moss Roklubb",null,null,"17.08.2000\n15.11.2001","Ja\nJa","M170800JAR02\nM151101MAG07","2794789\n6045066","05.04.2016\n05.04.2016","Moss Roklubb\nMoss Roklubb","Jon Rekstad\n","92252667\n","rekstad0@gmail.com\n","17.08.2016\n17.08.2016"]
["121F5",0,"Lør 27.8","121F",null,"1420","0930",null,null,null,null,null,412,null,null,null,1,5,1,null,null,null,null,"H","H J B","2x",null,"500 m ","Drammen Roklubb  1","Bjørn Tarald Rosfjord Wik\nElias Loe Eritsland",null,325,null,"Drammen Roklubb ",null,null,"24.11.2001\n13.02.2001","Ja\nJa","M241101BJØ02\nM130201ELI01","7310641\n6756069","17.08.2016\n15.03.2016","Drammen Roklubb \nDrammen Roklubb ","Øyvind Leirset\n","40069485\n","oeylei@online.no;Oeylei@online.no\n","17.08.2016\n17.08.2016"]
["121F6",0,"Lør 27.8","121F",null,"1420","0930",null,null,null,null,null,476,null,null,null,2,6,2,null,null,null,null,"H","H J B","2x",null,"500 m ","Bærum Roklubb 3","Petter Bratli\nØystein Dingen Endresen",null,325,null,"Bærum Roklubb",null,null,"17.06.2000\n07.06.2000","Ja\nJa","M170600PET02\nM070600ØYS01","5956457\n5372192","29.04.2016\n29.04.2016","Bærum Roklubb\nBærum Roklubb","Anders Hovde\n","90775520\n","anders.hovde@tns-gallup.no\n","17.08.2016\n17.08.2016"]
["121F7",0,"Lør 27.8","121F",null,"1420","0930",null,null,null,null,null,480,null,null,null,2,7,2,null,null,null,null,"H","H J B","2x",null,"500 m ","Christiania Roklub 2","Martin Dege\nSverre Engebretsen",null,325,null,"Christiania Roklub",null,null,"18.02.2001\n16.05.2001","Ja\nJa","M180201SVE04\nM160501MAR05","6759915\n6759918","27.05.2016\n","Christiania Roklub\nChristiania Roklub","Grete Isachsen Stokke\n","91338845\n","grisach@gmail.com\n","16.08.2016\n16.08.2016"]
["121F8",0,"Lør 27.8","121F",null,"1420","0930",null,null,null,null,null,942,null,null,null,2,8,2,null,null,null,null,"H","H J B","2x",null,"500 m ","Norske Studenters Roklub 2","Petter Arnøy\nHugo Haavind",null,325,null,"Norske Studenters Roklub",null,null,"16.02.2001\n17.05.2001","Ja\nJa","M160201PET02\nM170501HUG03","4179438\n5178950","26.04.2016\n","Norske Studenters Roklub\nNorske Studenters Roklub","Tor-geir Myhrer\n","90060234\n","rosjefen@gmail.com\n","17.08.2016\n17.08.2016"]
["121F9",0,"Lør 27.8","121F",null,"1420","0930",null,null,null,null,null,526,null,null,null,2,9,2,null,null,null,null,"H","H J B","2x",null,"500 m ","Bærum Roklubb 1","Eirik Myreng Hauge\nLars Moberg Værnes",null,325,null,"Bærum Roklubb",null,null,"17.04.2000\n02.06.2000","Ja\nJa","M170400EIR02\nM020600LAR02","5005277\n4487587","29.04.2016\n29.04.2016","Bærum Roklubb\nBærum Roklubb","Anders Hovde\n","90775520\n","anders.hovde@tns-gallup.no\n","17.08.2016\n17.08.2016"]
["121F10",0,"Lør 27.8","121F",null,"1420","0930",null,null,null,null,null,673,null,null,null,2,10,2,null,null,null,null,"H","H J B","2x",null,"500 m ","Tønsberg Roklub 1","Lars Jørann Lindgren\nIsak Vartal-Gjerde",null,325,null,"Tønsberg Roklub",null,null,"30.05.2001\n24.12.2000","Ja\nJa","M300501LAR02\nM241200ISA03","4234298\n7173184","15.04.2016\n15.04.2016","Tønsberg Roklub\nTønsberg Roklub","Tore Nilsson\n","92686272\n","tore.nilsson@sf-nett.no\n","17.08.2016\n17.08.2016"]
["121F11",0,"Lør 27.8","121F",null,"1420","0930",null,null,null,null,null,675,null,null,null,3,11,3,null,null,null,null,"H","H J B","2x",null,"500 m ","Christiania Roklub 1","Andreas Dugstad Sørsgaar\nTinius Wilhelmsen",null,325,null,"Christiania Roklub",null,null,"06.10.2001\n18.10.2001","Ja\nJa","M061001AND03\nM181001TIN04","5640032\n6005810","\n06.03.2016","Christiania Roklub\nChristiania Roklub","Grete Isachsen Stokke\n","91338845\n","grisach@gmail.com\n","16.08.2016\n16.08.2016"]
["121F12",0,"Lør 27.8","121F",null,"1420","0930",null,null,null,null,null,751,null,null,null,3,12,3,null,null,null,null,"H","H J B","2x",null,"500 m ","Bærum Roklubb 2","Vitus Aparicio Tjøm\nFredrik Vistung",null,325,null,"Bærum Roklubb",null,null,"26.01.2001\n01.01.2001","Ja\nJa","M260101VIT01\nM010101FRE60","5062270\n7267551","29.04.2016\n","Bærum Roklubb\nBærum Roklubb","Anders Hovde\n","90775520\n","anders.hovde@tns-gallup.no\n","17.08.2016\n17.08.2016"]
["121F13",0,"Lør 27.8","121F",null,"1420","0930",null,null,null,null,null,882,null,null,null,3,13,3,null,null,null,null,"H","H J B","2x",null,"500 m ","Norske Studenters Roklub 3","Edvard Sander Bae Mysen\nArne Theodor Gjelsten",null,325,null,"Norske Studenters Roklub",null,null,"18.10.2000\n05.03.2000","Ja\nJa","M181000EDV01\nM050300ARN02","5383840\n6071908","26.04.2016\n","Norske Studenters Roklub\nNorske Studenters Roklub","Tor-geir Myhrer\n","90060234\n","rosjefen@gmail.com\n","17.08.2016\n17.08.2016"]
["121F14",0,"Lør 27.8","121F",null,"1420","0930",null,null,null,null,null,487,null,null,null,3,14,3,null,null,null,null,"H","H J B","2x",null,"500 m ","Sarpsborg Roklubb - Roing 1","Diderik Skjønhaug\nJacob Gundersen",null,325,null,"Sarpsborg Roklubb - Roing",null,null,"28.12.2000\n08.04.2001","Ja\nJa","M281200DID01\nM080401JAC01","5330116\n5584584","10.04.2016\n10.04.2016","Sarpsborg Roklubb - Roing\nSarpsborg Roklubb - Roing","Thomas Gundersen\n","91874904\n","Thomas.gundersen@afgruppen.no;thomas.gundersen@afgruppen.no\n","17.08.2016\n17.08.2016"]
["111F0",null,"Lør 27.8","111F",null,{"$f":"VLOOKUP($D20,Tidsplan!$B:$D,3,FALSE)","v":"1245"},{"$f":"VLOOKUP($D20,Tidsplan!$B:$D,2,FALSE)","v":"0945"},null,null,null,null," ",null,null,"K",null,null,0,null,null,null,null,null,"H","H J A","1x",{"$f":"IF(R20<>0,LEFT(Z20,1),0)*1","v":0},"500 m "]
["111F1",null,"Lør 27.8","111F",null,{"$f":"OFFSET(F21,-1,0)","v":"1245"},"0945",null,null,null,null,null,84,null,null,null,1,1,1,null,null,null,null,"H","H J A","1x",null,"500 m","Ormsund Roklub","Hauk Norum Sitre",null,275,null,"Ormsund Roklub","Nei",null,"29.06.1999","Ja","M290699HAU02","7203449","25.04.2016","Ormsund Roklub","Antje Peine","+4792863244","antjep13@gmail.com","17.08.2016"]
["111F2",null,"Lør 27.8","111F",null,"1245","0945",null,null,null,null,null,115,null,null,null,1,{"$f":"1+R21","v":2},1,null,null,null,null,"H","H J A","1x",null,"500 m","Bærum Roklubb","Hermann Hovde",null,275,null,"Bærum Roklubb","Nei",null,"01.01.1999","Ja","M010199HER12","5632327","29.04.2016","Bærum Roklubb","Anders Hovde","90775520","anders.hovde@tns-gallup.no","17.08.2016"]
[{"$f":"D23&R23","v":"111F3"},null,"Lør 27.8","111F",null,"1245","0945",null,null,null,null,null,375,null,null,null,1,{"$f":"1+R22","v":3},1,null,null,null,null,"H","H J A","1x",null,"500 m","Moss Roklubb","Alfred Eliassen",null,275,null,"Moss Roklubb","Nei",null,"06.12.1999","Ja","M061299ALF01","2747765","05.04.2016","Moss Roklubb","Jon Rekstad","92252667","rekstad0@gmail.com","17.08.2016"]
["111F4",null,"Lør 27.8","111F",null,"1245","0945",null,null,null,null,null,147,null,null,null,1,4,1,null,null,null,null,"H","H J A","1x",null,"500 m","Ormsund Roklub","Magnus Nicolai Hofbauer",null,275,null,"Ormsund Roklub","Nei",null,"18.09.1999","Ja","M180999MAG02","4587638","11.03.2016","Ormsund Roklub","Antje Peine","+4792863244","antjep13@gmail.com","17.08.2016"]
[{"$f":"D25&R25","v":"111F5"},null,"Lør 27.8","111F",null,"1245","0945",null,null,null,null,null,700,null,null,null,1,5,1,null,null,null,null,"H","H J A","1x",null,"500 m","Bærum Roklubb","Jaime Aalders",null,275,null,"Bærum Roklubb","Nei",null,"16.09.1999","Ja","M160999JAI02","5508697","29.04.2016","Bærum Roklubb","Anders Hovde","90775520","anders.hovde@tns-gallup.no","17.08.2016"]
["111F6",null,"Lør 27.8","111F",null,"1245","0945",null,null,null,null,null,408,null,null,null,1,6,1,null,null,null,null,"H","H J A","1x",null,"500 m","Tønsberg Roklub","rasmus Mortensen",null,275,null,"Tønsberg Roklub","Nei",null,"01.06.1998","Ja","M010698RAS01","7270178","07.06.2016","Tønsberg Roklub","Tore Nilsson","92686272","tore.nilsson@sf-nett.no","17.08.2016"]
["111F7",null,"Lør 27.8","111F",null,"1245","0945",null,null,null,null,null,509,null,null,null,2,7,2,null,null,null,null,"H","H J A","1x",null,"500 m","Bærum Roklubb","Tade Phanke",null,275,null,"Bærum Roklubb","Nei",null,"20.10.1999","Ja","M201099TAD02","6760197","29.04.2016","Bærum Roklubb","Anders Hovde","90775520","anders.hovde@tns-gallup.no","17.08.2016"]
[{"$f":"D28&R28","v":"111F8"},null,"Lør 27.8","111F",null,"1245","0945",null,null,null,null,null,808,null,null,null,2,8,2,null,null,null,null,"H","H J A","1x",null,"500 m","Ormsund Roklub","Kristian Løken",null,275,null,"Ormsund Roklub","Nei",null,"21.06.1999","Ja","M210699KRI05","5859758","11.03.2016","Ormsund Roklub","Antje Peine","+4792863244","antjep13@gmail.com","17.08.2016"]
["111F9",null,"Lør 27.8","111F",null,"1245","0945",null,null,null,null,null,727,null,null,null,2,9,2,null,null,null,null,"H","H J A","1x",null,"500 m","Moss Roklubb","Vegard Hjortkær Sæby",null,275,null,"Moss Roklubb","Nei",null,"07.07.1998","Ja","M070798VEG01","2696077","05.04.2016","Moss Roklubb","Jon Rekstad","92252667","rekstad0@gmail.com","17.08.2016"]
["111F10",null,"Lør 27.8","111F",null,"1245","0945",null,null,null,null,null,884,null,null,null,2,10,2,null,null,null,null,"H","H J A","1x",null,"500 m","Norske Studenters Roklub","Oliver Alexander Petterson Stubbs",null,275,null,"Norske Studenters Roklub","Nei",null,"05.09.1998","Ja","M050998OLI01","7311395",null,"Norske Studenters Roklub","Tor-geir Myhrer","90060234","rosjefen@gmail.com","17.08.2016"]
[{"$f":"D31&R31","v":"111F11"},null,"Lør 27.8","111F",null,"1245","0945",null,null,null,null,null,157,null,null,null,2,11,2,null,null,null,null,"H","H J A","1x",null,"500 m","Ormsund Roklub","Herman Mathisen",null,275,null,"Ormsund Roklub","Nei",null,"17.01.1999","Ja","M170199HER02","5667123",null,"Ukjent/ikke registrert klubb","Antje Peine","+4792863244","antjep13@gmail.com","17.08.2016"]
["122F0",0,"Lør 27.8","122F",null,{"$f":"VLOOKUP($D32,Tidsplan!$B:$D,3,FALSE)","v":"1425"},{"$f":"VLOOKUP($D32,Tidsplan!$B:$D,2,FALSE)","v":"0955"},null,null,null,null," ",null,null,"K",null,null,0,null,null,null,null,null,"D","D J A","1x",null,"500 m"]
["122F1",{"$f":"OFFSET(B33,-1,0)","v":0},"Lør 27.8","122F",null,{"$f":"OFFSET(F33,-1,0)","v":"1425"},"0955",null,null,null,null,null,4,null,null,null,1,1,1,null,null,null,null,"D","D J A","1x",null,"500 m","Ormsund Roklub","Anna Mesel",null,275,null,"Ormsund Roklub","Nei",null,"03.04.1999","Ja","K030499ANN01","1626245","11.03.2016","Ormsund Roklub","Antje Peine","+4792863244","antjep13@gmail.com","17.08.2016"]
["122F2",0,"Lør 27.8","122F",null,"1425","0955",null,null,null,null,null,261,null,null,null,1,{"$f":"1+R33","v":2},1,null,null,null,null,"D","D J A","1x",null,"500 m","Christiania Roklub","Hermine Wilhelmsen",null,275,null,"Christiania Roklub","Nei",null,"23.07.1999","Ja","K230799HER03","5674641","06.03.2016","Christiania Roklub","Grete Isachsen Stokke","91338845","grisach@gmail.com","16.08.2016"]
["122F3",0,"Lør 27.8","122F",null,"1425","0955",null,null,null,null,null,603,null,null,null,1,{"$f":"1+R34","v":3},1,null,null,null,null,"D","D J A","1x",null,"500 m","Moss Roklubb","Hibaq Adbi Mohammed",null,275,null,"Moss Roklubb","Nei",null,"29.05.1999","Ja","K290599HIB03","5643357","05.04.2016","Moss Roklubb","Jon Rekstad","92252667","rekstad0@gmail.com","17.08.2016"]
["122F4",0,"Lør 27.8","122F",null,"1425","0955",null,null,null,null,null,622,null,null,null,1,4,1,null,null,null,null,"D","D J A","1x",null,"500 m","Drammen Roklubb ","Sara Seip",null,275,null,"Drammen Roklubb ","Nei",null,"09.05.1998","Ja","K090598SAR05","5313667","15.03.2016","Drammen Roklubb ","Øyvind Leirset","40069485","oeylei@online.no;Oeylei@online.no","17.08.2016"]
["122F5",0,"Lør 27.8","122F",null,"1425","0955",null,null,null,null,null,744,null,null,null,2,5,2,null,null,null,null,"D","D J A","1x",null,"500 m","Sarpsborg Roklubb - Roing","Kavi Ali",null,275,null,"Sarpsborg Roklubb - Roing","Nei",null,"04.07.1998","Ja","K040798KAV02","2739661","10.04.2016","Sarpsborg Roklubb - Roing","Thomas Gundersen","91874904","Thomas.gundersen@afgruppen.no;thomas.gundersen@afgruppen.no","17.08.2016"]
["122F6",0,"Lør 27.8","122F",null,"1425","0955",null,null,null,null,null,768,null,null,null,2,6,2,null,null,null,null,"D","D J A","1x",null,"500 m","Ormsund Roklub","Serine Camilie Aaker",null,275,null,"Ormsund Roklub","Nei",null,"05.06.1999","Ja","K050699SER01","1626570",null,"Ukjent/ikke registrert klubb","Antje Peine","+4792863244","antjep13@gmail.com","17.08.2016"]
["122F7",0,"Lør 27.8","122F",null,"1425","0955",null,null,null,null,null,378,null,null,null,2,7,2,null,null,null,null,"D","D J A","1x",null,"500 m","Moss Roklubb","Maia Rekstad",null,275,null,"Moss Roklubb","Nei",null,"25.06.1999","Ja","K250699MAI03","5643443","05.04.2016","Moss Roklubb","Jon Rekstad","92252667","rekstad0@gmail.com","17.08.2016"]
["1020",1,"Lør 27.8",102,null,{"$f":"VLOOKUP($D40,Tidsplan!$B:$D,3,FALSE)","v":"1005"},{"$f":"VLOOKUP($D40,Tidsplan!$B:$D,2,FALSE)","v":0},null,null,null,null,null,null,null,null,"K",null,0,null,null,null,null,null,"D","D J B","1x",{"$f":"IF(R40<>0,LEFT(Z40,1),0)*1","v":0},"500 m"]
[{"$f":"D41&R41","v":"10211"},{"$f":"OFFSET(B41,-1,0)","v":1},"Lør 27.8",102,null,{"$f":"OFFSET(F41,-1,0)","v":"1005"},{"$f":"OFFSET(G41,-1,0)","v":0},null,null,null,null,null,0,null,null,null,1,11,1,null,null,null,null,"D","D J B","1x",null,"500 m","Haldens Roklub","Marthe Emilie Bagger",null,275,null,"Haldens Roklub","Nei",null,"22.09.2000","Ja","K220900MAR09","6094778","25.04.2016","Haldens Roklub","Eivind Borring Hansen","97588834","eivind@hkpensjon.no;eivhan@gmail.com","17.08.2016"]
[{"$f":"D42&R42","v":"10210"},{"$f":"OFFSET(B42,-1,0)","v":1},"Lør 27.8",102,null,{"$f":"OFFSET(F42,-1,0)","v":"1005"},{"$f":"OFFSET(G42,-1,0)","v":0},null,null,null,null,null,73.5,null,null,null,1,10,1,null,null,null,null,"D","D J B","1x",null,"500 m","Bærum Roklubb","Caitlin Aalders",null,275,null,"Bærum Roklubb","Nei",null,"03.06.2001","Ja","K030601CAI03","7289717",null,"Bærum Roklubb","Anders Hovde","90775520","anders.hovde@tns-gallup.no","17.08.2016"]
[{"$f":"D43&R43","v":"1029"},{"$f":"OFFSET(B43,-1,0)","v":1},"Lør 27.8",102,null,{"$f":"OFFSET(F43,-1,0)","v":"1005"},{"$f":"OFFSET(G43,-1,0)","v":0},null,null,null,null,null,75.7,null,null,null,1,9,1,null,null,null,null,"D","JB","1x",null,"500","Porsgrunn Roklubb","Hanna Torvanger",null,550,"E","Porsgrunn Roklubb",null,null,null,null,null,null,null,null,"Dag Mogstad"," ","Dag Mogstad <dagmog@hotmail.com>","2016-08-23"]
[{"$f":"D44&R44","v":"1028"},{"$f":"OFFSET(B44,-1,0)","v":1},"Lør 27.8",102,null,{"$f":"OFFSET(F44,-1,0)","v":"1005"},0,null,null,null,null,null,76.8,null,null,null,1,8,1,null,null,null,null,"D","D J B","1x",null,"500 m","Norske Studenters Roklub","Hedda Dagestad-Larsen ",null,275,null,"Norske Studenters Roklub","Nei",null,"30.11.2000","Ja","K301100HED02","6722633","26.04.2016","Norske Studenters Roklub","Tor-geir Myhrer","90060234","rosjefen@gmail.com","17.08.2016"]
["1027",1,"Lør 27.8",102,null,"1005",0,null,null,null,null,null,80,null,null,null,1,7,1,null,null,null,null,"D","D J B","1x",null,"500 m","Drammen Roklubb ","Karoline Rydland Masch",null,275,null,"Drammen Roklubb ","Nei",null,"14.04.2001","Ja","K140401KAR10","7214275",null,"Drammen Roklubb ","Øyvind Leirset","40069485","oeylei@online.no;Oeylei@online.no","17.08.2016"]
["1026",1,"Lør 27.8",102,null,"1005",0,null,null,null,null,null,80.2,null,null,null,2,6,2,null,null,null,null,"D","D J B","1x",null,"500 m","Norske Studenters Roklub","Rebekka Øvensen Aanderaa",null,275,null,"Norske Studenters Roklub","Nei",null,"11.10.2000","Ja","K111000REB03","5673868","26.04.2016","Norske Studenters Roklub","Tor-geir Myhrer","90060234","rosjefen@gmail.com","17.08.2016"]
["1025",1,"Lør 27.8",102,null,"1005",0,null,null,null,null,null,82.3,null,null,null,2,5,2,null,null,null,null,"D","D J B","1x",null,"500 m","Moss Roklubb","Lise Meinike Dørre",null,275,null,"Moss Roklubb","Nei",null,"13.02.2000","Ja","K130200LIS02","6059397",null,"Ukjent/ikke registrert klubb","Jon Rekstad","92252667","rekstad0@gmail.com","17.08.2016"]
["1024",1,"Lør 27.8",102,null,"1005",0,null,null,null,null,null,83.1,null,null,null,2,4,2,null,null,null,null,"D","D J B","1x",null,"500 m","Tønsberg Roklub","Lene Samland",null,275,null,"Tønsberg Roklub","Nei",null,"30.11.2000","Ja","K301100LEN03","6134299","15.04.2016","Tønsberg Roklub","Tore Nilsson","92686272","tore.nilsson@sf-nett.no","17.08.2016"]
["1023",1,"Lør 27.8",102,null,"1005",0,null,null,null,null,null,88.7,null,null,null,2,3,2,null,null,null,null,"D","D J B","1x",null,"500 m","Bærum Roklubb","Stina Halvorsen Vad",null,275,null,"Bærum Roklubb","Nei",null,"26.09.2000","Ja","K260900STI02","6778019","29.04.2016","Bærum Roklubb","Anders Hovde","90775520","anders.hovde@tns-gallup.no","17.08.2016"]
["1022",1,"Lør 27.8",102,null,"1005",0,null,null,null,null,null,89.2,null,null,null,2,2,2,null,null,null,null,"D","D J B","1x",null,"500 m","Norske Studenters Roklub","Hanna Kaupang Petersen",null,275,null,"Norske Studenters Roklub","Nei",null,"15.09.2000","Ja","K150900HAN01","2581292","26.04.2016","Norske Studenters Roklub","Tor-geir Myhrer","90060234","rosjefen@gmail.com","17.08.2016"]
["1021",1,"Lør 27.8",102,null,"1005",0,null,null,null,null,null,91.2,null,null,null,2,1,2,null,null,null,null,"D","D J B","1x",null,"500 m","Sarpsborg Roklubb - Roing","Cornelia Knutsen",null,275,null,"Sarpsborg Roklubb - Roing","Nei",null,"28.12.2000","Ja","K281200COR02","6060150","10.04.2016","Sarpsborg Roklubb - Roing","Thomas Gundersen","91874904","Thomas.gundersen@afgruppen.no;thomas.gundersen@afgruppen.no","17.08.2016"]
[]
["1010",1,"Lør 27.8",101,null,{"$f":"VLOOKUP($D53,Tidsplan!$B:$D,3,FALSE)","v":"1015"},{"$f":"VLOOKUP($D53,Tidsplan!$B:$D,2,FALSE)","v":""},null,null,null,null,null,null,null," ",null,null,0,null,null,null,null,null,"H","H J B","1x",0,"500 m"]
["10124",{"$f":"OFFSET(B54,-1,0)","v":1},"Lør 27.8",101,null,{"$f":"OFFSET(F54,-1,0)","v":"1015"},"",null,null,null,null,null,0,null,null,null,1,24,1,null,null,null,null,"H","H J B","1x",null,"500 m","Bærum Roklubb","Fredrik Vistung",null,275,null,"Bærum Roklubb","Nei",null,"01.01.2001","Ja","M010101FRE60","7267551",null,"Bærum Roklubb","Anders Hovde","90775520","anders.hovde@tns-gallup.no","17.08.2016"]
["10123",1,"Lør 27.8",101,null,"1015","",null,null,null,null,null,42.8,null,null,null,1,23,1,null,null,null,null,"H","H J B","1x",null,"500 m","Bærum Roklubb","Brage Bragstad",null,275,null,"Bærum Roklubb","Nei",null,"12.09.2000","Ja","M120900BRA03","4908711","29.04.2016","Bærum Roklubb","Anders Hovde","90775520","anders.hovde@tns-gallup.no","17.08.2016"]
["10122",1,"Lør 27.8",101,null,"1015","",null,null,null,null,null,52.8,null,null,null,1,22,1,null,null,null,null,"H","H J B","1x",null,"500 m","Bærum Roklubb","Jakob Holt",null,275,null,"Bærum Roklubb","Nei",null,"03.09.2001","Ja","M030901JAK02","5494644","29.04.2016","Bærum Roklubb","Anders Hovde","90775520","anders.hovde@tns-gallup.no","17.08.2016"]
["10121",1,"Lør 27.8",101,null,"1015","",null,null,null,null,null,62,null,null,null,1,21,1,null,null,null,null,"H","H J B","1x",null,"500 m","Norske Studenters Roklub","Petter Arnøy",null,275,null,"Norske Studenters Roklub","Nei",null,"16.02.2001","Ja","M160201PET02","4179438","26.04.2016","Norske Studenters Roklub","Tor-geir Myhrer","90060234","rosjefen@gmail.com","17.08.2016"]
["10120",1,"Lør 27.8",101,null,"1015","",null,null,null,null,null,63.7,null,null,null,1,20,1,null,null,null,null,"H","H J B","1x",null,"500 m","Drammen Roklubb ","Elias Loe Eritsland",null,275,null,"Drammen Roklubb ","Nei",null,"13.02.2001","Ja","M130201ELI01","6756069","15.03.2016","Drammen Roklubb ","Øyvind Leirset","40069485","oeylei@online.no;Oeylei@online.no","17.08.2016"]
["10119",1,"Lør 27.8",101,null,"1015","",null,null,null,null,null,64.400000000000006,null,null,null,1,19,1,null,null,null,null,"H","H J B","1x",null,"500 m","Norske Studenters Roklub","Edvard Sander Bae Mysen",null,275,null,"Norske Studenters Roklub","Nei",null,"18.10.2000","Ja","M181000EDV01","5383840","26.04.2016","Norske Studenters Roklub","Tor-geir Myhrer","90060234","rosjefen@gmail.com","17.08.2016"]
["10118",1,"Lør 27.8",101,null,"1015","",null,null,null,null,null,65.3,null,null,null,2,18,2,null,null,null,null,"H","H J B","1x",null,"500 m","Bærum Roklubb","Vitus Aparicio Tjøm",null,275,null,"Bærum Roklubb","Nei",null,"26.01.2001","Ja","M260101VIT01","5062270","29.04.2016","Bærum Roklubb","Anders Hovde","90775520","anders.hovde@tns-gallup.no","17.08.2016"]
["10117",1,"Lør 27.8",101,null,"1015","",null,null,null,null,null,66.2,null,null,null,2,17,2,null,null,null,null,"H","H J B","1x",null,"500 m","Tønsberg Roklub","Sander Benden Nilsen",null,275,null,"Tønsberg Roklub","Nei",null,"13.02.2000","Ja","M130200SAN05","6126909","15.04.2016","Tønsberg Roklub","Tore Nilsson","92686272","tore.nilsson@sf-nett.no","17.08.2016"]
["10116",1,"Lør 27.8",101,null,"1015","",null,null,null,null,null,66.7,null,null,null,2,16,2,null,null,null,null,"H","H J B","1x",null,"500 m","Moss Roklubb","Jarle Hjortkjær Sæby",null,275,null,"Moss Roklubb","Nei",null,"17.08.2000","Ja","M170800JAR02","2794789","05.04.2016","Moss Roklubb","Jon Rekstad","92252667","rekstad0@gmail.com","17.08.2016"]
["10115",1,"Lør 27.8",101,null,"1015","",null,null,null,null,null,69.7,null,null,null,2,15,2,null,null,null,null,"H","H J B","1x",null,"500 m","Bærum Roklubb","sindre fuglseth",null,275,null,"Bærum Roklubb","Nei",null,"26.09.2000","Ja","M260900SIN02","6073987","29.04.2016","Bærum Roklubb","Anders Hovde","90775520","anders.hovde@tns-gallup.no","17.08.2016"]
["10114",1,"Lør 27.8",101,null,"1015","",null,null,null,null,null,70.8,null,null,null,2,14,2,null,null,null,null,"H","H J B","1x",null,"500 m","Norske Studenters Roklub","Sam Lorgen",null,275,null,"Norske Studenters Roklub","Nei",null,"02.04.2000","Ja","M020400SAM02","6722466","26.04.2016","Norske Studenters Roklub","Tor-geir Myhrer","90060234","rosjefen@gmail.com","17.08.2016"]
["10113",1,"Lør 27.8",101,null,"1015","",null,null,null,null,null,72.400000000000006,null,null,null,2,13,2,null,null,null,null,"H","H J B","1x",null,"500 m","Sarpsborg Roklubb - Roing","Jacob Gundersen",null,275,null,"Sarpsborg Roklubb - Roing","Nei",null,"08.04.2001","Ja","M080401JAC01","5584584","10.04.2016","Sarpsborg Roklubb - Roing","Thomas Gundersen","91874904","Thomas.gundersen@afgruppen.no","17.08.2016"]
["10112",1,"Lør 27.8",101,null,"1015","",null,null,null,null,null,73,null,null,null,3,12,3,null,null,null,null,"H","H J B","1x",null,"500 m","Bærum Roklubb","Petter Bratli",null,275,null,"Bærum Roklubb","Nei",null,"17.06.2000","Ja","M170600PET02","5956457","29.04.2016","Bærum Roklubb","Anders Hovde","90775520","anders.hovde@tns-gallup.no","17.08.2016"]
["10111",1,"Lør 27.8",101,null,"1015","",null,null,null,null,null,75.900000000000006,null,null,null,3,11,3,null,null,null,null,"H","H J B","1x",null,"500 m","Christiania Roklub","Tinius Wilhelmsen",null,275,null,"Christiania Roklub","Nei",null,"18.10.2001","Ja","M181001TIN04","6005810","06.03.2016","Christiania Roklub","Grete Isachsen Stokke","91338845","grisach@gmail.com","16.08.2016"]
["10110",1,"Lør 27.8",101,null,"1015","",null,null,null,null,null,77.599999999999994,null,null,null,3,10,3,null,null,null,null,"H","H J B","1x",null,"500 m","Bærum Roklubb","Eirik Myreng Hauge",null,275,null,"Bærum Roklubb","Nei",null,"17.04.2000","Ja","M170400EIR02","5005277","29.04.2016","Bærum Roklubb","Anders Hovde","90775520","anders.hovde@tns-gallup.no","17.08.2016"]
["1019",1,"Lør 27.8",101,null,"1015","",null,null,null,null,null,78.3,null,null,null,3,9,3,null,null,null,null,"H","H J B","1x",null,"500 m","Christiania Roklub","Andreas Dugstad Sørskaar",null,275,null,"Christiania Roklub","Nei",null,"10.06.2001","Ja","M100601AND02","4221227","24.03.2016","Christiania Roklub","Grete Isachsen Stokke","91338845","grisach@gmail.com","16.08.2016"]
["1018",1,"Lør 27.8",101,null,"1015","",null,null,null,null,null,83.4,null,null,null,3,8,3,null,null,null,null,"H","H J B","1x",null,"500 m","Sarpsborg Roklubb - Roing","Diderik Skjønhaug",null,275,null,"Sarpsborg Roklubb - Roing","Nei",null,"28.12.2000","Ja","M281200DID01","5330116","10.04.2016","Sarpsborg Roklubb - Roing","Thomas Gundersen","91874904","Thomas.gundersen@afgruppen.no","17.08.2016"]
[{"$f":"D71&R71","v":"1017"},1,"Lør 27.8",101,null,"1015","",null,null,null,null,null,83.5,null,null,null,3,7,3,null,null,null,null,"H","H J B","1x",null,"500 m","Tønsberg Roklub","Isak Vartal-Gjerde",null,275,null,"Tønsberg Roklub","Nei",null,"24.12.2000","Ja","M241200ISA03","7173184","15.04.2016","Tønsberg Roklub","Tore Nilsson","92686272","tore.nilsson@sf-nett.no","17.08.2016"]
["1016",1,"Lør 27.8",101,null,"1015","",null,null,null,null,null,83.6,null,null,null,4,6,4,null,null,null,null,"H","H J B","1x",null,"500 m","Moss Roklubb","Magnus strømme",null,275,null,"Moss Roklubb","Nei",null,"15.11.2001","Ja","M151101MAG07","6045066","05.04.2016","Moss Roklubb","Jon Rekstad","92252667","rekstad0@gmail.com","17.08.2016"]
["1015",1,"Lør 27.8",101,null,"1015","",null,null,null,null,null,83.7,null,null,null,4,5,4,null,null,null,null,"H","H J B","1x",null,"500 m","Norske Studenters Roklub","Kristian Søhr",null,275,null,"Norske Studenters Roklub","Nei",null,"14.04.2000","Ja","M140400KRI01","4077003","26.04.2016","Norske Studenters Roklub","Tor-geir Myhrer","90060234","rosjefen@gmail.com","17.08.2016"]
["1014",1,"Lør 27.8",101,null,"1015","",null,null,null,null,null,84.2,null,null,null,4,4,4,null,null,null,null,"H","H J B","1x",null,"500 m","Aalesunds Roklub","Fredrik Reite",null,275,null,"Aalesunds Roklub","Nei",null,"26.07.2001","Ja","M260701FRE01","6728505",null,"Aalesunds Roklub","Johan Myklebust","90894714","johan.myklebust@nordea.no","15.08.2016"]
["1013",1,"Lør 27.8",101,null,"1015","",null,null,null,null,null,85.5,null,null,null,4,3,4,null,null,null,null,"H","H J B","1x",null,"500 m","Bærum Roklubb","Øystein Dingen Endresen",null,275,null,"Bærum Roklubb","Nei",null,"07.06.2000","Ja","M070600ØYS01","5372192","29.04.2016","Bærum Roklubb","Anders Hovde","90775520","anders.hovde@tns-gallup.no","17.08.2016"]
[{"$f":"D76&R76","v":"1012"},{"$f":"OFFSET(B76,-1,0)","v":1},"Lør 27.8",101,null,{"$f":"OFFSET(F76,-1,0)","v":"1015"},null,null,null,null,null,null,87.7,null,null,null,4,2,4,null,null,null,null,"H","H J B","1x",null,"500","Porsgrunn Roklubb","Sturla Mogstad",null,550,"E","Porsgrunn Roklubb",null,null,null,null,null,null,null,null,"Dag Mogstad"," ","Dag Mogstad <dagmog@hotmail.com>",42605]
["1011",1,"Lør 27.8",101,null,{"$f":"OFFSET(F77,-1,0)","v":"1015"},{"$f":"OFFSET(G77,-1,0)","v":0},null,null,null,null,null,87.9,null,null,null,4,1,4,null,null,null,null,"H","H J B","1x",null,"500 m","Tønsberg Roklub","Lars Jørann Lindgren",null,275,null,"Tønsberg Roklub","Nei",null,"30.05.2001","Ja","M300501LAR02","4234298","15.04.2016","Tønsberg Roklub","Tore Nilsson","92686272","tore.nilsson@sf-nett.no","17.08.2016"]
[]
[]
[{"$f":"D80&R80","v":"1LLM0"},{"$f":"OFFSET(B80,-1,0)","v":0},"Lør 27.8","1LLM",null,{"$f":"VLOOKUP($D80,Tidsplan!$B:$D,3,FALSE)","v":"1100"},null,null,null,null,null,null,null,null,null,null,null,0,null,null,null,null,null,null,"LAGLEDERMØTE",null,0]
[]
["1030",1,"Lør 27.8",103,null,{"$f":"VLOOKUP($D82,Tidsplan!$B:$D,3,FALSE)","v":"1200"},{"$f":"VLOOKUP($D82,Tidsplan!$B:$D,2,FALSE)","v":""},null,null,null,null,null,null,null," ",null,null,0,null,null,null,null,null,null,"Åpen Nyb",null,0]
[{"$f":"D83&R83","v":"1031"},{"$f":"OFFSET(B83,-1,0)","v":1},"Lør 27.8",103,null,{"$f":"OFFSET(F83,-1,0)","v":"1200"},null,null,null,null,null,null,null,null,null,null,1,1,1,null,null,null,null,"Åpen","Åpen nybegynner","1x",null,"500 m","Norske Studenters Roklub","Arne Theodor Gjelsten",null,150,null,"Norske Studenters Roklub","Nei",null,"05.03.2000",null,"M050300ARN02","6071908",null,"Norske Studenters Roklub","Tor-geir Myhrer","90060234","rosjefen@gmail.com","17.08.2016"]
[{"$f":"D84&R84","v":"1032"},{"$f":"OFFSET(B84,-1,0)","v":1},"Lør 27.8",103,null,{"$f":"OFFSET(F84,-1,0)","v":"1200"},null,null,null,null,null,null,null,null,null,null,1,{"$f":"1+R83","v":2},1,null,null,null,null,"Åpen","Åpen nybegynner","1x",null,"500 m","Sarpsborg Roklubb - Roing","Nor Mustaf",null,150,null,"Sarpsborg Roklubb - Roing","Nei",null,"22.10.2004",null,"M221004NOR01","6917184","10.04.2016","Sarpsborg Roklubb - Roing","Thomas Gundersen","91874904","Thomas.gundersen@afgruppen.no;thomas.gundersen@afgruppen.no","17.08.2016"]
[{"$f":"D85&R85","v":"1033"},{"$f":"OFFSET(B85,-1,0)","v":1},"Lør 27.8",103,null,{"$f":"OFFSET(F85,-1,0)","v":"1200"},null,null,null,null,null,null,null,null,null,null,1,{"$f":"1+R84","v":3},1,null,null,null,null,"Åpen","Åpen nybegynner","1x",null,"500 m","Christiania Roklub","Elias Mahler",null,150,null,"Christiania Roklub","Nei",null,"22.12.2002",null,"M221202ELI02","4671202",null,"Ukjent/ikke registrert klubb","Grete Isachsen Stokke","91338845","grisach@gmail.com","16.08.2016"]
[{"$f":"D86&R86","v":"1034"},{"$f":"OFFSET(B86,-1,0)","v":1},"Lør 27.8",103,null,{"$f":"OFFSET(F86,-1,0)","v":"1200"},null,null,null,null,null,null,null,null,null,null,1,4,1,null,null,null,null,"Åpen","Åpen nybegynner","1x",null,"500 m","Norske Studenters Roklub","Hugo Haavind",null,150,null,"Norske Studenters Roklub","Nei",null,"17.05.2001",null,"M170501HUG03","5178950",null,"Norske Studenters Roklub","Tor-geir Myhrer","90060234","rosjefen@gmail.com","17.08.2016"]
["1035",1,"Lør 27.8",103,null,"1200",null,null,null,null,null,null,null,null,null,null,1,5,1,null,null,null,null,"Åpen","Åpen nybegynner","1x",null,"500 m","Sarpsborg Roklubb - Roing","Mina Alida Andresen",null,150,null,"Sarpsborg Roklubb - Roing","Nei",null,"14.07.2005",null,"K140705MIN02","6917176","10.04.2016","Sarpsborg Roklubb - Roing","Thomas Gundersen","91874904","Thomas.gundersen@afgruppen.no;thomas.gundersen@afgruppen.no","17.08.2016"]
[{"$f":"D88&R88","v":"1036"},{"$f":"OFFSET(B88,-1,0)","v":1},"Lør 27.8",103,null,{"$f":"OFFSET(F88,-1,0)","v":"1200"},null,null,null,null,null,null,null,null,null,null,1,6,1,null,null,null,null,"Åpen","Åpen nybegynner","1x",null,"500 m","Norske Studenters Roklub","Nicolai Fongaard",null,150,null,"Norske Studenters Roklub","Nei",null,"06.08.2001",null,"M060801NIC02","4916382","26.04.2016","Norske Studenters Roklub","Tor-geir Myhrer","90060234","rosjefen@gmail.com","17.08.2016"]
["1050",1,"Lør 27.8",105,null,{"$f":"VLOOKUP($D89,Tidsplan!$B:$D,3,FALSE)","v":"1205"},{"$f":"VLOOKUP($D89,Tidsplan!$B:$D,2,FALSE)","v":""},null,null,null,null,null,null,null,"S","K",null,0,null,null,null,null,null,"H","H J A","8+",{"$f":"IF(R89<>0,LEFT(Z89,1),0)*1","v":0},"500 m"]
["1051",{"$f":"OFFSET(B90,-1,0)","v":1},"Lør 27.8",105,null,{"$f":"VLOOKUP($D90,Tidsplan!$B:$D,3,FALSE)","v":"1205"},null,null,null,null,null,null,null,null,null,null,1,1,1,null,null,null,null,"H","H J A","8+",null,"500 m","Bærum Roklubb 1","Jaime Aalders\nPetter Bratli\nØystein Dingen Endresen\nsindre fuglseth\nEirik Myreng Hauge\nHermann Hovde\nTade Phanke\nLars Moberg Værnes\nTuva Skatt Gillebo",null,475,null,"Bærum Roklubb",null,null,"16.09.1999\n17.06.2000\n07.06.2000\n26.09.2000\n17.04.2000\n01.01.1999\n20.10.1999\n02.06.2000\n17.10.2002","Ja\nNei\nNei\nNei\nNei\nJa\nJa\nNei\nNei","M160999JAI02\nM170600PET02\nM070600ØYS01\nM260900SIN02\nM170400EIR02\nM010199HER12\nM201099TAD02\nM020600LAR02\nK171002TUV03","5508697\n5956457\n5372192\n6073987\n5005277\n5632327\n6760197\n4487587\n6101180","29.04.2016\n29.04.2016\n29.04.2016\n29.04.2016\n29.04.2016\n29.04.2016\n29.04.2016\n29.04.2016\n29.04.2016","Bærum Roklubb\nBærum Roklubb\nBærum Roklubb\nBærum Roklubb\nBærum Roklubb\nBærum Roklubb\nBærum Roklubb\nBærum Roklubb\nBærum Roklubb","Anders Hovde\n","90775520\n","anders.hovde@tns-gallup.no\n","17.08.2016\n17.08.2016\n17.08.2016\n17.08.2016\n17.08.2016\n17.08.2016\n17.08.2016\n17.08.2016\n17.08.2016"]
["1052",1,"Lør 27.8",105,null,{"$f":"VLOOKUP($D91,Tidsplan!$B:$D,3,FALSE)","v":"1205"},null,null,null,null,null,null,null,null,null,null,1,{"$f":"1+R90","v":2},1,null,null,null,null,"H","H J A","8+",null,"500 m","Norske Studenters Roklub 1","Andreas Clifford\nGustav Daniel Hagen Breivik\nPierre-Louis Bret\nOliver Alexander Petterson Stubbs\nSam Lorgen\nKristian Søhr\nEdvard Sander Bae Mysen\nPetter Arnøy\nHanna Kaupang Petersen",null,475,null,"Norske Studenters Roklub",null,null,"29.04.1999\n31.01.1999\n31.05.1999\n05.09.1998\n02.04.2000\n14.04.2000\n18.10.2000\n16.02.2001\n15.09.2000","Ja\nJa\nJa\nJa\nNei\nNei\nNei\nNei\nNei","M290499AND03\nM310199GUS03\nM310599PIE02\nM050998OLI01\nM020400SAM02\nM140400KRI01\nM181000EDV01\nM160201PET02\nK150900HAN01","2658162\n7274540\n6135379\n7311395\n6722466\n4077003\n5383840\n4179438\n2581292","26.04.2016\n11.03.2016\n26.04.2016\n\n26.04.2016\n26.04.2016\n26.04.2016\n26.04.2016\n26.04.2016","Norske Studenters Roklub\nNorske Studenters Roklub,Nøklevann Ro- og Padleklubb,Ormsund Roklub\nNorske Studenters Roklub\nNorske Studenters Roklub\nNorske Studenters Roklub\nNorske Studenters Roklub\nNorske Studenters Roklub\nNorske Studenters Roklub\nNorske Studenters Roklub","Tor-geir Myhrer\n","90060234\n","rosjefen@gmail.com\n","17.08.2016\n17.08.2016\n17.08.2016\n17.08.2016\n17.08.2016\n17.08.2016\n17.08.2016\n17.08.2016\n17.08.2016"]
["1060",1,"Lør 27.8",106,null,{"$f":"VLOOKUP($D92,Tidsplan!$B:$D,3,FALSE)","v":"1210"},{"$f":"VLOOKUP($D92,Tidsplan!$B:$D,2,FALSE)","v":""},null,null,null,null,null,null,null," ",null,null,0,null,null,null,null,null,"H","H J C","1x",0,"500 m"]
[{"$f":"D93&R93","v":"1061"},{"$f":"OFFSET(B93,-1,0)","v":1},"Lør 27.8",106,null,{"$f":"OFFSET(F93,-1,0)","v":"1210"},null,null,null,null,null,null,86,null,null,null,1,1,1,null,null,null,null,"H","H J C","1x",null,"500 m","Sarpsborg Roklubb - Roing","Dennis Rosseland",null,275,null,"Sarpsborg Roklubb - Roing","Nei",null,"02.05.2003","Ja","M020503DEN01","6917181","10.04.2016","Sarpsborg Roklubb - Roing","Thomas Gundersen","91874904","Thomas.gundersen@afgruppen.no;thomas.gundersen@afgruppen.no","17.08.2016"]
["1062",1,"Lør 27.8",106,null,"1210",null,null,null,null,null,null,36,null,null,null,1,{"$f":"1+R93","v":2},1,null,null,null,null,"H","H J C","1x",null,"500 m","Tønsberg Roklub","Ola Flatland Hoftun",null,275,null,"Tønsberg Roklub","Nei",null,"14.07.2002","Ja","M140702OLA02","6835964","15.04.2016","Tønsberg Roklub","Tore Nilsson","92686272","tore.nilsson@sf-nett.no","17.08.2016"]
["1063",1,"Lør 27.8",106,null,"1210",null,null,null,null,null,null,84,null,null,null,1,{"$f":"1+R94","v":3},1,null,null,null,null,"H","H J C","1x",null,"500 m","Ormsund Roklub","Adrian Lund",null,275,null,"Ormsund Roklub","Nei",null,"09.05.2003","Ja","M090503ADR03","6419581","25.04.2016","Ormsund Roklub","Antje Peine","+4792863244","antjep13@gmail.com","17.08.2016"]
["1064",1,"Lør 27.8",106,null,"1210",null,null,null,null,null,null,230,null,null,null,1,4,1,null,null,null,null,"H","H J C","1x",null,"500 m","Haldens Roklub","Haakon Elias Solli Borge",null,275,null,"Haldens Roklub","Nei",null,"21.02.2002","Ja","M210202HAA02","5006685","10.08.2016","Haldens Roklub","Eivind Borring Hansen","97588834","eivind@hkpensjon.no;eivhan@gmail.com","17.08.2016"]
["1065",1,"Lør 27.8",106,null,"1210",null,null,null,null,null,null,391,null,null,null,1,5,1,null,null,null,null,"H","H J C","1x",null,"500 m","Norske Studenters Roklub","Trygve Bye Løken",null,275,null,"Norske Studenters Roklub","Nei",null,"22.04.2003","Ja","M220403TRY08","7281238","26.04.2016","Norske Studenters Roklub","Tor-geir Myhrer","90060234","rosjefen@gmail.com","17.08.2016"]
["1066",1,"Lør 27.8",106,null,"1210",null,null,null,null,null,null,796,null,null,null,1,6,1,null,null,null,null,"H","H J C","1x",null,"500 m","Sarpsborg Roklubb - Roing","Håkon Grønberg Møller",null,275,null,"Sarpsborg Roklubb - Roing","Nei",null,"22.12.2002","Ja","M221202HÅK01","6848301","10.04.2016","Sarpsborg Roklubb - Roing","Thomas Gundersen","91874904","Thomas.gundersen@afgruppen.no;thomas.gundersen@afgruppen.no","17.08.2016"]
["1067",1,"Lør 27.8",106,null,"1210",null,null,null,null,null,null,506,null,null,null,2,7,2,null,null,null,null,"H","H J C","1x",null,"500 m","Drammen Roklubb ","Jonas Willand-Evensen",null,275,null,"Drammen Roklubb ","Nei",null,"30.08.2003","Ja","M300803JON01","4879656","06.04.2016","Drammen Roklubb ","Øyvind Leirset","40069485","oeylei@online.no;Oeylei@online.no","17.08.2016"]
["1068",1,"Lør 27.8",106,null,"1210",null,null,null,null,null,null,518,null,null,null,2,8,2,null,null,null,null,"H","H J C","1x",null,"500 m","Bærum Roklubb","Elias Håkonsen",null,275,null,"Bærum Roklubb","Nei",null,"29.10.2002","Ja","M291002ELI03","7309985",null,"Bærum Roklubb","Anders Hovde","90775520","anders.hovde@tns-gallup.no","17.08.2016"]
["1069",1,"Lør 27.8",106,null,"1210",null,null,null,null,null,null,583,null,null,null,2,9,2,null,null,null,null,"H","H J C","1x",null,"500 m","Moss Roklubb","Kasper Krognes Tuva",null,275,null,"Moss Roklubb","Nei",null,"10.05.2003","Ja","M100503KAS01","5059001","05.04.2016","Moss Roklubb","Jon Rekstad","92252667","rekstad0@gmail.com","17.08.2016"]
["10610",1,"Lør 27.8",106,null,"1210",null,null,null,null,null,null,618,null,null,null,2,10,2,null,null,null,null,"H","H J C","1x",null,"500 m","Bærum Roklubb","Magnus Kavli",null,275,null,"Bærum Roklubb","Nei",null,"01.01.2004","Nei","M010104MAG01","7232220",null,"Bærum Roklubb","Anders Hovde","90775520","anders.hovde@tns-gallup.no","17.08.2016"]
["10611",1,"Lør 27.8",106,null,"1210",null,null,null,null,null,null,680,null,null,null,2,11,2,null,null,null,null,"H","H J C","1x",null,"500 m","Moss Roklubb","Simen Solbakken-Thømt",null,275,null,"Moss Roklubb","Nei",null,"17.05.2002","Ja","M170502SIM07","7189809","05.04.2016","Moss Roklubb","Jon Rekstad","92252667","rekstad0@gmail.com","17.08.2016"]
["10612",1,"Lør 27.8",106,null,"1210",null,null,null,null,null,null,681,null,null,null,2,12,2,null,null,null,null,"H","H J C","1x",null,"500 m","Sarpsborg Roklubb - Roing","Silas Tangen",null,275,null,"Sarpsborg Roklubb - Roing","Nei",null,"13.04.2003","Ja","M130403SIL01","6935544","10.04.2016","Sarpsborg Roklubb - Roing","Thomas Gundersen","91874904","Thomas.gundersen@afgruppen.no;thomas.gundersen@afgruppen.no","17.08.2016"]
["10613",1,"Lør 27.8",106,null,"1210",null,null,null,null,null,null,701,null,null,null,3,13,3,null,null,null,null,"H","H J C","1x",null,"500 m","Drammen Roklubb ","Håkon Hannevold",null,275,null,"Drammen Roklubb ","Nei",null,"18.03.2003","Ja","M180303HÅK01","5005249","10.05.2016","Drammen Roklubb ","Øyvind Leirset","40069485","oeylei@online.no;Oeylei@online.no","17.08.2016"]
["10614",1,"Lør 27.8",106,null,"1210",null,null,null,null,null,null,716,null,null,null,3,14,3,null,null,null,null,"H","H J C","1x",null,"500 m","Sarpsborg Roklubb - Roing","Jakob Asbjørnsen",null,275,null,"Sarpsborg Roklubb - Roing","Nei",null,"25.02.2002","Ja","M250202JAK02","5632274","10.04.2016","Sarpsborg Roklubb - Roing","Thomas Gundersen","91874904","Thomas.gundersen@afgruppen.no;thomas.gundersen@afgruppen.no","17.08.2016"]
["10615",1,"Lør 27.8",106,null,"1210",null,null,null,null,null,null,340,null,null,null,3,15,3,null,null,null,null,"H","H J C","1x",null,"500 m","Ormsund Roklub","Erlend Hystad",null,275,null,"Ormsund Roklub","Nei",null,"01.12.2002","Ja","M011202ERL01","4859156","11.03.2016","Ormsund Roklub","Antje Peine","+4792863244","antjep13@gmail.com","17.08.2016"]
["10616",1,"Lør 27.8",106,null,"1210",null,null,null,null,null,null,935,null,null,null,3,16,3,null,null,null,null,"H","H J C","1x",null,"500 m","Moss Roklubb","Oliver Eliassen",null,275,null,"Moss Roklubb","Nei",null,"21.05.2002","Ja","M210502OLI01","4559253",null,"Ukjent/ikke registrert klubb","Jon Rekstad","92252667","rekstad0@gmail.com","17.08.2016"]
["10617",1,"Lør 27.8",106,null,"1210",null,null,null,null,null,null,962,null,null,null,3,17,3,null,null,null,null,"H","H J C","1x",null,"500 m","Norske Studenters Roklub","Charles Bret",null,275,null,"Norske Studenters Roklub","Nei",null,"24.10.2002","Ja","M241002CHA01","6722636","26.04.2016","Norske Studenters Roklub","Tor-geir Myhrer","90060234","rosjefen@gmail.com","17.08.2016"]
[{"$f":"D110&R110","v":"1070"},1,"Lør 27.8",107,null,{"$f":"VLOOKUP($D110,Tidsplan!$B:$D,3,FALSE)","v":"1215"},{"$f":"VLOOKUP($D110,Tidsplan!$B:$D,2,FALSE)","v":""},null,null,null,null,null,null,null," ",null,null,0,null,null,null,null,null,"D","D J C","2x",0,"500 m "]
[{"$f":"D111&R111","v":"1071"},{"$f":"OFFSET(B111,-1,0)","v":1},"Lør 27.8",107,null,{"$f":"OFFSET(F111,-1,0)","v":"1215"},null,null,null,null,null,null,null,null,null,null,1,1,1,null,null,null,null,"D","D J C","2x",null,"500 m ","Norske Studenters Roklub 2","Ella Marie Hegge\nLisa Nakamoto Byberg",null,325,null,"Norske Studenters Roklub",null,null,"18.05.2003\n08.04.2003","Ja\nJa","K180503ELL02\nK080403LIS01","5567226\n5391349","26.04.2016\n26.04.2016","Norske Studenters Roklub\nNorske Studenters Roklub","Tor-geir Myhrer\n","90060234\n","rosjefen@gmail.com\n","17.08.2016\n17.08.2016"]
[{"$f":"D112&R112","v":"1072"},{"$f":"OFFSET(B112,-1,0)","v":1},"Lør 27.8",107,null,{"$f":"OFFSET(F112,-1,0)","v":"1215"},null,null,null,null,null,null,null,null,null,null,1,{"$f":"1+R111","v":2},1,null,null,null,null,"D","D J C","2x",null,"500 m ","Christiania Roklub 1","Nicoline Lindstrøm\nKaroline Torkildsen",null,325,null,"Christiania Roklub",null,null,"25.09.2002\n23.02.2002","Ja\nJa","K250902NIC01\nK230202KAR06","7270145\n4539828","16.06.2016\n16.06.2016","Christiania Roklub\nChristiania Roklub","Grete Isachsen Stokke\n","91338845\n","grisach@gmail.com\n","16.08.2016\n16.08.2016"]
[{"$f":"D113&R113","v":"1073"},{"$f":"OFFSET(B113,-1,0)","v":1},"Lør 27.8",107,null,{"$f":"OFFSET(F113,-1,0)","v":"1215"},null,null,null,null,null,null,null,null,null,null,1,{"$f":"1+R112","v":3},1,null,null,null,null,"D","D J C","2x",null,"500 m ","Tønsberg Roklub 1","Marie Andrup-Næss\nIda kyvik Sandvik",null,325,null,"Tønsberg Roklub",null,null,"09.05.2002\n24.07.2002","Ja\nJa","K090502MAR05\nK240702IDA05","6102972\n7173655","15.04.2016\n15.04.2016","Tønsberg Roklub\nTønsberg Roklub","Tore Nilsson\n","92686272\n","tore.nilsson@sf-nett.no\n","17.08.2016\n17.08.2016"]
[{"$f":"D114&R114","v":"1074"},{"$f":"OFFSET(B114,-1,0)","v":1},"Lør 27.8",107,null,{"$f":"OFFSET(F114,-1,0)","v":"1215"},null,null,null,null,null,null,null,null,null,null,1,4,1,null,null,null,null,"D","D J C","2x",null,"500 m ","Bærum Roklubb 1","Tuva Skatt Gillebo\nIda Moberg Værnes",null,325,null,"Bærum Roklubb",null,null,"17.10.2002\n01.01.2002","Ja\nJa","K171002TUV03\nK010102IDA24","6101180\n7267553","29.04.2016\n","Bærum Roklubb\nBærum Roklubb","Anders Hovde\n","90775520\n","anders.hovde@tns-gallup.no\n","17.08.2016\n17.08.2016"]
[{"$f":"D115&R115","v":"1075"},{"$f":"OFFSET(B115,-1,0)","v":1},"Lør 27.8",107,null,{"$f":"OFFSET(F115,-1,0)","v":"1215"},null,null,null,null,null,null,null,null,null,null,1,5,1,null,null,null,null,"D","D J C","2x",null,"500 m ","Norske Studenters Roklub 1","Marie Glomnes Rudi\nMartine Egeland Hovland",null,325,null,"Norske Studenters Roklub",null,null,"25.07.2003\n17.02.2003","Ja\nJa","K250703MAR04\nK170203MAR03","5247452\n6211373","26.04.2016\n26.04.2016","Norske Studenters Roklub\nNorske Studenters Roklub","Tor-geir Myhrer\n","90060234\n","rosjefen@gmail.com\n","17.08.2016\n17.08.2016"]
["1080",1,"Lør 27.8",108,null,{"$f":"VLOOKUP($D116,Tidsplan!$B:$D,3,FALSE)","v":"1230"},{"$f":"VLOOKUP($D116,Tidsplan!$B:$D,2,FALSE)","v":""},null,null,null,null,null,null,null,"S",null,null,0,null,null,null,null,null,"D","D S","1x",0,"500 m"]
["1081",{"$f":"OFFSET(B117,-1,0)","v":1},"Lør 27.8",108,null,{"$f":"OFFSET(F117,-1,0)","v":"1230"},null,null,null,null,null,null,null,null,null,null,1,1,1,null,null,null,null,"D","D S","1x",null,"500 m","Christiania Roklub","Kari Andrea Solli Älveborn",null,275,null,"Christiania Roklub","Nei",null,"05.01.1992","Ja","K050192KAR06","6965697","06.03.2016","Christiania Roklub","Grete Isachsen Stokke","91338845","grisach@gmail.com","16.08.2016"]
["1082",1,"Lør 27.8",108,null,"1230",null,null,null,null,null,null,null,null,null,null,1,{"$f":"1+R117","v":2},1,null,null,null,null,"D","D S","1x",null,"500 m","Drammen Roklubb ","Astrid Leirset",null,275,null,"Drammen Roklubb ","Nei",null,"27.11.1997","Ja","K271197AST07","5661576","15.03.2016","Drammen Roklubb ","Øyvind Leirset","40069485","oeylei@online.no;Oeylei@online.no","17.08.2016"]
["1083",1,"Lør 27.8",108,null,"1230",null,null,null,null,null,null,null,null,null,null,1,{"$f":"1+R118","v":3},1,null,null,null,null,"D","D S","1x",null,"500 m","Norske Studenters Roklub","Sara Slettemark Juel",null,275,null,"Norske Studenters Roklub","Nei",null,"06.11.1997","Ja","K061197SAR05","5293357","26.04.2016","Norske Studenters Roklub","Tor-geir Myhrer","90060234","rosjefen@gmail.com","17.08.2016"]
["1090",1,"Lør 27.8",109,null,{"$f":"VLOOKUP($D120,Tidsplan!$B:$D,3,FALSE)","v":"1235"},{"$f":"VLOOKUP($D120,Tidsplan!$B:$D,2,FALSE)","v":""},null,null,null,null,null,null,null,"S",null,null,0,null,null,null,null,null,"D","D J A","2x",0,"500 m "]
[{"$f":"D121&R121","v":"1091"},{"$f":"OFFSET(B121,-1,0)","v":1},"Lør 27.8",109,null,{"$f":"OFFSET(F121,-1,0)","v":"1235"},null,null,null,null,null,null,null,null,null,null,1,1,1,null,null,null,null,"D","D J A","2x",null,"500 m ","Ormsund Roklub 2","Rikke Aslaksen Wåle",null,325,null,"Ormsund Roklub",null,null,"19.03.1999","Ja","K190399RIK03","6077550","11.03.2016","Ormsund Roklub","Antje Peine","+4792863244","antjep13@gmail.com","17.08.2016"]
[{"$f":"D122&R122","v":"1092"},{"$f":"OFFSET(B122,-1,0)","v":1},"Lør 27.8",109,null,{"$f":"OFFSET(F122,-1,0)","v":"1235"},null,null,null,null,null,null,null,null,null,null,1,{"$f":"1+R121","v":2},1,null,null,null,null,"D","D J A","2x",null,"500 m ","Bærum Roklubb 1","Synnøve Gillebo Foss\nMina West",null,325,null,"Bærum Roklubb",null,null,"11.08.1999\n01.04.1998","Ja\nJa","K110899SYN02\nK010498MIN06","5218490\n6837551","29.04.2016\n29.04.2016","Bærum Roklubb\nBærum Roklubb","Anders Hovde\n","90775520\n","anders.hovde@tns-gallup.no\n","17.08.2016\n17.08.2016"]
["1093",1,"Lør 27.8",109,null,"1235",null,null,null,null,null,null,null,null,null,null,1,{"$f":"1+R122","v":3},1,null,null,null,null,"D","D J A","2x",null,"500 m ","Drammen Roklubb  1","Karoline Rydland Masch\nSara Seip",null,325,null,"Drammen Roklubb ",null,null,"14.04.2001\n09.05.1998","Nei\nJa","K140401KAR10\nK090598SAR05","7214275\n5313667","06.04.2016\n15.03.2016","Drammen Roklubb \nDrammen Roklubb ","Øyvind Leirset\n","40069485\n","oeylei@online.no;Oeylei@online.no\n","17.08.2016\n17.08.2016"]
["1094",1,"Lør 27.8",109,null,"1235",null,null,null,null,null,null,null,null,null,null,1,4,1,null,null,null,null,"D","D J A","2x",null,"500 m ","Moss Roklubb 1","Hibaq Adbi Mohammed\nMaia Rekstad",null,325,null,"Moss Roklubb",null,null,"29.05.1999\n25.06.1999","Ja\nJa","K290599HIB03\nK250699MAI03","5643357\n5643443","05.04.2016\n05.04.2016","Moss Roklubb\nMoss Roklubb","Jon Rekstad\n","92252667\n","rekstad0@gmail.com\n","17.08.2016\n17.08.2016"]
["1095",1,"Lør 27.8",109,null,"1235",null,null,null,null,null,null,null,null,null,null,1,5,1,null,null,null,null,"D","D J A","2x",null,"500 m ","Ormsund Roklub 1","Serine Camilie Aaker\nAnna Mesel",null,325,null,"Ormsund Roklub",null,null,"05.06.1999\n03.04.1999","Ja\nJa","K050699SER01\nK030499ANN01","1626570\n1626245","\n11.03.2016","Ukjent/ikke registrert klubb\nOrmsund Roklub","Antje Peine\n","+4792863244\n","antjep13@gmail.com\n","17.08.2016\n17.08.2016"]
["1096",1,"Lør 27.8",109,null,"1235",null,null,null,null,null,null,null,null,null,null,1,6,1,null,null,null,null,"D","D J A","2x",null,"500 m ","Sarpsborg Roklubb - Roing 1","Kavi Ali\nCornelia Knutsen",null,325,null,"Sarpsborg Roklubb - Roing",null,null,"04.07.1998\n28.12.2000","Ja\nNei","K040798KAV02\nK281200COR02","2739661\n6060150","10.04.2016\n10.04.2016","Sarpsborg Roklubb - Roing\nSarpsborg Roklubb - Roing","Thomas Gundersen\n","91874904\n","Thomas.gundersen@afgruppen.no;thomas.gundersen@afgruppen.no\n","17.08.2016\n17.08.2016"]
["1100",1,"Lør 27.8",110,null,{"$f":"VLOOKUP($D127,Tidsplan!$B:$D,3,FALSE)","v":"1240"},{"$f":"VLOOKUP($D127,Tidsplan!$B:$D,2,FALSE)","v":""},null,null,null,null," ",null,null,null," ",null,0,null,null,null,null,null,"D","S","2-",{"$f":"IF(R127<>0,LEFT(Z127,1),0)*1","v":0},"500 m"]
["1110",1,"Lør 27.8",111,null,{"$f":"VLOOKUP($D128,Tidsplan!$B:$D,3,FALSE)","v":"1245"},{"$f":"VLOOKUP($D128,Tidsplan!$B:$D,2,FALSE)","v":"0945"},null,null,null,null," ",null,null,"K"," ",null,0,null,null,null,null,null,"H","H J A","1x",0,"500 m"]
["111",{"$f":"OFFSET(B129,-1,0)","v":1},"Lør 27.8",111,null,{"$f":"OFFSET(F129,-1,0)","v":"1245"},"0945",null,null,null,null,null,null,null,null,null,null,null,null,null,null,null,null,"H","H J A","1x",null,"500 m","Bærum Roklubb","Hermann Hovde",null,275,null,"Bærum Roklubb","Nei",null,"01.01.1999","Ja","M010199HER12","5632327","29.04.2016","Bærum Roklubb","Anders Hovde","90775520","anders.hovde@tns-gallup.no","17.08.2016"]
["111",1,"Lør 27.8",111,null,"1245","0945",null,null,null,null,null,null,null,null,null,null,null,null,null,null,null,null,"H","H J A","1x",null,"500 m","Bærum Roklubb","Jaime Aalders",null,275,null,"Bærum Roklubb","Nei",null,"16.09.1999","Ja","M160999JAI02","5508697","29.04.2016","Bærum Roklubb","Anders Hovde","90775520","anders.hovde@tns-gallup.no","17.08.2016"]
["111",1,"Lør 27.8",111,null,"1245","0945",null,null,null,null,null,null,null,null,null,null,null,null,null,null,null,null,"H","H J A","1x",null,"500 m","Bærum Roklubb","Tade Phanke",null,275,null,"Bærum Roklubb","Nei",null,"20.10.1999","Ja","M201099TAD02","6760197","29.04.2016","Bærum Roklubb","Anders Hovde","90775520","anders.hovde@tns-gallup.no","17.08.2016"]
["111",1,"Lør 27.8",111,null,"1245","0945",null,null,null,null,null,null,null,null,null,null,null,null,null,null,null,null,"H","H J A","1x",null,"500 m","Moss Roklubb","Alfred Eliassen",null,275,null,"Moss Roklubb","Nei",null,"06.12.1999","Ja","M061299ALF01","2747765","05.04.2016","Moss Roklubb","Jon Rekstad","92252667","rekstad0@gmail.com","17.08.2016"]
["111",1,"Lør 27.8",111,null,"1245","0945",null,null,null,null,null,null,null,null,null,null,null,null,null,null,null,null,"H","H J A","1x",null,"500 m","Moss Roklubb","Vegard Hjortkær Sæby",null,275,null,"Moss Roklubb","Nei",null,"07.07.1998","Ja","M070798VEG01","2696077","05.04.2016","Moss Roklubb","Jon Rekstad","92252667","rekstad0@gmail.com","17.08.2016"]
["111",1,"Lør 27.8",111,null,"1245","0945",null,null,null,null,null,null,null,null,null,null,null,null,null,null,null,null,"H","H J A","1x",null,"500 m","Norske Studenters Roklub","Oliver Alexander Petterson Stubbs",null,275,null,"Norske Studenters Roklub","Nei",null,"05.09.1998","Ja","M050998OLI01","7311395",null,"Norske Studenters Roklub","Tor-geir Myhrer","90060234","rosjefen@gmail.com","17.08.2016"]
["111",1,"Lør 27.8",111,null,"1245","0945",null,null,null,null,null,null,null,null,null,null,null,null,null,null,null,null,"H","H J A","1x",null,"500 m","Ormsund Roklub","Hauk Norum Sitre",null,275,null,"Ormsund Roklub","Nei",null,"29.06.1999","Ja","M290699HAU02","7203449","25.04.2016","Ormsund Roklub","Antje Peine","+4792863244","antjep13@gmail.com","17.08.2016"]
["111",1,"Lør 27.8",111,null,"1245","0945",null,null,null,null,null,null,null,null,null,null,null,null,null,null,null,null,"H","H J A","1x",null,"500 m","Ormsund Roklub","Herman Mathisen",null,275,null,"Ormsund Roklub","Nei",null,"17.01.1999","Ja","M170199HER02","5667123",null,"Ukjent/ikke registrert klubb","Antje Peine","+4792863244","antjep13@gmail.com","17.08.2016"]
["111",1,"Lør 27.8",111,null,"1245","0945",null,null,null,null,null,null,null,null,null,null,null,null,null,null,null,null,"H","H J A","1x",null,"500 m","Ormsund Roklub","Kristian Løken",null,275,null,"Ormsund Roklub","Nei",null,"21.06.1999","Ja","M210699KRI05","5859758","11.03.2016","Ormsund Roklub","Antje Peine","+4792863244","antjep13@gmail.com","17.08.2016"]
["111",1,"Lør 27.8",111,null,"1245","0945",null,null,null,null,null,null,null,null,null,null,null,null,null,null,null,null,"H","H J A","1x",null,"500 m","Ormsund Roklub","Magnus Nicolai Hofbauer",null,275,null,"Ormsund Roklub","Nei",null,"18.09.1999","Ja","M180999MAG02","4587638","11.03.2016","Ormsund Roklub","Antje Peine","+4792863244","antjep13@gmail.com","17.08.2016"]
["111",1,"Lør 27.8",111,null,"1245","0945",null,null,null,null,null,null,null,null,null,null,null,null,null,null,null,null,"H","H J A","1x",null,"500 m","Tønsberg Roklub","rasmus Mortensen",null,275,null,"Tønsberg Roklub","Nei",null,"01.06.1998","Ja","M010698RAS01","7270178","07.06.2016","Tønsberg Roklub","Tore Nilsson","92686272","tore.nilsson@sf-nett.no","17.08.2016"]
[{"$f":"D140&R140","v":"1120"},1,"Lør 27.8",112,null,{"$f":"VLOOKUP($D140,Tidsplan!$B:$D,3,FALSE)","v":"1255"},{"$f":"VLOOKUP($D140,Tidsplan!$B:$D,2,FALSE)","v":""},null,null,null,null,null,null,null,null," ",null,0,null,null,null,null,null,"H","S/M","4-",{"$f":"IF(R140<>0,LEFT(Z140,1),0)*1","v":0},"500 m",null," "]
[{"$f":"D141&R141","v":"1040"},1,"Lør 27.8",104,null,{"$f":"VLOOKUP($D141,Tidsplan!$B:$D,3,FALSE)","v":"1300"},{"$f":"VLOOKUP($D141,Tidsplan!$B:$D,2,FALSE)","v":""},null,null,null,null,null,null,null," "," ",null,0,null,null,null,null,null,"H/D","HJD /DJD","2x",{"$f":"IF(R141<>0,LEFT(Z141,1),0)*1","v":0},"500 m ",null," "]
[{"$f":"D142&R142","v":"1041"},{"$f":"OFFSET(B142,-1,0)","v":1},"Lør 27.8",104,null,{"$f":"VLOOKUP($D142,Tidsplan!$B:$D,3,FALSE)","v":"1300"},null,null,null,null,null,null,null,null,null,null,1,1,1,null,null,null,null,"H","H J D","2x",null,"500 m ","Christiania Roklub 1","Balder Haug Hagen",null,325,null,"Christiania Roklub",null,null,"14.01.2004",null,"M140104BAL01","5187160","04.05.2016","Christiania Roklub","Grete Isachsen Stokke","91338845","grisach@gmail.com","16.08.2016"]
[{"$f":"D143&R143","v":"1042"},{"$f":"OFFSET(B143,-1,0)","v":1},"Lør 27.8",104," ",{"$f":"OFFSET(F143,-1,0)","v":"1300"},null,null,null,null,null,null,null,null,null,null,1,2,1,null,null,null,null,"D","D J D","2x",null,500,"Ormsund","Mille Aslaksen Wåle\nTyra Eklo Hjemdal",null,650,"E","Ormsund ",null,null,null,null,null,"55498513\n55540314",null,null,"Antje Peine"," ","Antje Peine <antjep13@gmail.com>","2016-08-24"]
[{"$f":"D144&R144","v":"1043"},{"$f":"OFFSET(B144,-1,0)","v":1},"Lør 27.8",104,null,{"$f":"VLOOKUP($D144,Tidsplan!$B:$D,3,FALSE)","v":"1300"},null,null,null,null,null,null,null,null,null,null,1,3,1,null,null,null,null,"D","D J D","2x",null,"500 m ","Sarpsborg Roklubb - Roing 1","Mina Alida Andresen\nNor Mustaf",null,325,null,"Sarpsborg Roklubb - Roing",null,null,"14.07.2005\n22.10.2004",null,"K140705MIN02\nM221004NOR01","6917176\n6917184","10.04.2016\n10.04.2016","Sarpsborg Roklubb - Roing\nSarpsborg Roklubb - Roing","Thomas Gundersen\n","91874904\n","Thomas.gundersen@afgruppen.no;thomas.gundersen@afgruppen.no\n","17.08.2016\n17.08.2016"]
[{"$f":"D145&R145","v":"1044"},{"$f":"OFFSET(B145,-1,0)","v":1},"Lør 27.8",104,null,{"$f":"VLOOKUP($D145,Tidsplan!$B:$D,3,FALSE)","v":"1300"},null,null,null,null,null,null,null,null,null,null,1,4,1,null,null,null,null,"H","H J D","2x",null,"500 m ","Christiania Roklub 2","Jostein Eriksen Thon",null,325,null,"Christiania Roklub",null,null,"08.01.2004",null,"M080104JOS02","6201834","04.05.2016","Christiania Roklub","Grete Isachsen Stokke","91338845","grisach@gmail.com","16.08.2016"]
[]
["1130",1,"Lør 27.8",113,null,{"$f":"VLOOKUP($D147,Tidsplan!$B:$D,3,FALSE)","v":"1305"},{"$f":"VLOOKUP($D147,Tidsplan!$B:$D,2,FALSE)","v":""},null,null,null,null,null,null,null,null,"K",null,0,null,null,null,null,null,"D","D M","4x",0,"500 m",null," "]
["1131",1,"Lør 27.8",113,null,"1305","",null,null,null,null,null,null,null,null,null,1,1,1,null,null,null,null,"D","D M","4x",null,"500 m","Bestumkilen Roklubb 1","Marte Radmann\nThale Grøtt\nMarte Åsland Hansen\nIngrid Motzfeldt",null,375,null,"Bestumkilen Roklubb",null,null,"27.12.1978\n07.08.1984\n25.11.1984\n18.08.1978","Ja\nJa\nJa\nJa","K271278MAR04\nK070884THA01\nK251184MAR08\nK180878ING03","2636337\n5919615\n5807375\n2374727","13.07.2016\n31.05.2016\n31.05.2016\n13.07.2016","Bestumkilen Roklubb\nBestumkilen Roklubb\nBestumkilen Roklubb,Norske Studenters Roklub\nBestumkilen Roklubb","Sigbjørn Birkeland\n","93480893\n","sigbjorn.birkeland@storebrand.no;sigbjorn.birkeland@online.no\n","17.08.2016\n17.08.2016\n17.08.2016\n17.08.2016"]
["1140",1,"Lør 27.8",114,null,{"$f":"VLOOKUP($D149,Tidsplan!$B:$D,3,FALSE)","v":"1310"},{"$f":"VLOOKUP($D149,Tidsplan!$B:$D,2,FALSE)","v":""},null,null,null,null,null,null,null,"S",null,null,0,null,null,null,null,null,"H","H J A","2-",0,"500 m"," "]
[{"$f":"D150&R150","v":"1141"},{"$f":"OFFSET(B150,-1,0)","v":1},"Lør 27.8",114,null,{"$f":"VLOOKUP($D150,Tidsplan!$B:$D,3,FALSE)","v":"1310"},null,null,null,null,null,null,null,null,null,null,1,1,1,null,null,null,null,"H","H J A","2-",null,"500 m","Norske Studenters Roklub 2","Edvart Solberg Svingen\nJakob Øvensen Aanderaa",null,325,null,"Norske Studenters Roklub",null,null,"02.11.1998\n20.04.1998","Ja\nJa","M021198EDV03\nM200498JAK01","6033989\n5993748","26.04.2016\n","Norske Studenters Roklub\nNorske Studenters Roklub","Tor-geir Myhrer\n","90060234\n","rosjefen@gmail.com\n","17.08.2016\n17.08.2016"]
[{"$f":"D151&R151","v":"1142"},1,"Lør 27.8",114,null,{"$f":"VLOOKUP($D151,Tidsplan!$B:$D,3,FALSE)","v":"1310"},null,null,null,null,null,null,null,null,null,null,1,{"$f":"1+R150","v":2},1,null,null,null,null,"H","H J A","2-",null,"500 m","Bærum Roklubb 1","Jaime Aalders\nTade Phanke",null,325,null,"Bærum Roklubb",null,null,"16.09.1999\n20.10.1999","Ja\nJa","M160999JAI02\nM201099TAD02","5508697\n6760197","29.04.2016\n29.04.2016","Bærum Roklubb\nBærum Roklubb","Anders Hovde\n","90775520\n","anders.hovde@tns-gallup.no\n","17.08.2016\n17.08.2016"]
["1143",1,"Lør 27.8",114,null,{"$f":"VLOOKUP($D152,Tidsplan!$B:$D,3,FALSE)","v":"1310"},null,null,null,null,null,null,null,null,null,null,1,{"$f":"1+R151","v":3},1,null,null,null,null,"H","H J A","2-",null,"500 m","Moss Roklubb 1","Alfred Eliassen\nVegard Hjortkær Sæby",null,325,null,"Moss Roklubb",null,null,"06.12.1999\n07.07.1998","Ja\nJa","M061299ALF01\nM070798VEG01","2747765\n2696077","05.04.2016\n05.04.2016","Moss Roklubb\nMoss Roklubb","Jon Rekstad\n","92252667\n","rekstad0@gmail.com\n","17.08.2016\n17.08.2016"]
["1144",1,"Lør 27.8",114,null,{"$f":"VLOOKUP($D153,Tidsplan!$B:$D,3,FALSE)","v":"1310"},null,null,null,null,null,null,null,null,null,null,1,4,1,null,null,null,null,"H","H J A","2-",null,"500 m","Norske Studenters Roklub 1","Sam Lorgen\nKristian Søhr",null,325,null,"Norske Studenters Roklub",null,null,"02.04.2000\n14.04.2000","Nei\nNei","M020400SAM02\nM140400KRI01","6722466\n4077003","26.04.2016\n26.04.2016","Norske Studenters Roklub\nNorske Studenters Roklub","Tor-geir Myhrer\n","90060234\n","rosjefen@gmail.com\n","17.08.2016\n17.08.2016"]
["1145",1,"Lør 27.8",114,null,{"$f":"VLOOKUP($D154,Tidsplan!$B:$D,3,FALSE)","v":"1310"},null,null,null,null,null,null,null,null,null,null,1,5,1,null,null,null,null,"H","H J A","2-",null,"500 m","Ormsund Roklub 1","Thomas Soma Ferguson\nOskar Jørgensen",null,325,null,"Ormsund Roklub",null,null,"14.07.1998\n08.04.1998","Ja\nJa","M140798THO03\nM080498OSK02","5662311\n7249866","11.03.2016\n11.03.2016","Ormsund Roklub\nOrmsund Roklub","Antje Peine\n","+4792863244\n","antjep13@gmail.com\n","17.08.2016\n17.08.2016"]
["1150",1,"Lør 27.8",115,null,{"$f":"VLOOKUP($D155,Tidsplan!$B:$D,3,FALSE)","v":"1315"},{"$f":"VLOOKUP($D155,Tidsplan!$B:$D,2,FALSE)","v":""},null,null,null,null,null,null,null,null,"K ",null,0,1,6,1.1388888888888889E-3,null,null,"H","H S","1x",{"$f":"IF(R155<>0,LEFT(Z155,1),0)*1","v":0},"500 m"]
[{"$f":"D156&R156","v":"1151"},{"$f":"OFFSET(B156,-1,0)","v":1},"Lør 27.8",115,null,{"$f":"OFFSET(F156,-1,0)","v":"1315"},null,null,null,null,null,null,null,null,null,null,1,1,1,null,null,null,null,"H","H S","1x",null,"500 m","Haldens Roklub","Petter Norsted Kildebo",null,275,null,"Haldens Roklub","Nei",null,"26.09.1997","Ja","M260997PET06","6159432","25.04.2016","Haldens Roklub","Eivind Borring Hansen","97588834","eivind@hkpensjon.no;eivhan@gmail.com","17.08.2016"]
[{"$f":"D157&R157","v":"1152"},{"$f":"OFFSET(B157,-1,0)","v":1},"Lør 27.8",115,null,{"$f":"OFFSET(F157,-1,0)","v":"1315"},null,null,null,null,null,null,null,null,null,null,1,{"$f":"1+R156","v":2},1,null,null,null,null,"H","H S","1x",null,"500 m","Bærum Roklubb","Halvor Hølmkjær West",null,275,null,"Bærum Roklubb","Nei",null,"09.02.1994","Ja","M090294HAL02","5993966","29.04.2016","Bærum Roklubb","Anders Hovde","90775520","anders.hovde@tns-gallup.no","17.08.2016"]
[{"$f":"D158&R158","v":"1153"},{"$f":"OFFSET(B158,-1,0)","v":1},"Lør 27.8",115,null,{"$f":"OFFSET(F158,-1,0)","v":"1315"},null,null,null,null,null,null,null,null,null,null,1,{"$f":"1+R157","v":3},1,null,null,null,null,"H","H S","1x",null,"500 m","Ormsund Roklub","Audun Grepperud",null,275,null,"Ormsund Roklub","Nei",null,"02.06.1996","Ja","M020696AUD01","4399997","11.03.2016","Ormsund Roklub","Antje Peine","+4792863244","antjep13@gmail.com","17.08.2016"]
["1154",1,"Lør 27.8",115,null,"1315",null,null,null,null,null,null,null,null,null,null,1,4,1,null,null,null,null,"H","H S","1x",null,"500 m","Haldens Roklub","Thomas Furuvarp",null,275,null,"Haldens Roklub","Nei",null,"29.06.1995","Ja","M290695THO04","5304581","25.04.2016","Haldens Roklub","Eivind Borring Hansen","97588834","eivind@hkpensjon.no;eivhan@gmail.com","17.08.2016"]
["1160",0,"Lør 27.8",116,null,{"$f":"VLOOKUP($D160,Tidsplan!$B:$D,3,FALSE)","v":"1320"},{"$f":"VLOOKUP($D160,Tidsplan!$B:$D,2,FALSE)","v":""},null,null,null,null,null,null,null,"S"," ",null,0,null,null,null,null,null,"D","DJA","4-",0,500]
["1161",0,"Lør 27.8",116,null,{"$f":"VLOOKUP($D161,Tidsplan!$B:$D,3,FALSE)","v":"1320"},null,null,null,null,null,null,null,null,null,null,null,1,1,null,null,null,null,"D","D J A","4-",null,"500 m","Bærum Roklubb 1","Synnøve Gillebo Foss",null,375,null,"Bærum Roklubb",null,null,"11.08.1999","Ja","K110899SYN02","5218490","29.04.2016","Bærum Roklubb","Anders Hovde","90775520","anders.hovde@tns-gallup.no","17.08.2016"]
["1170",1,"Lør 27.8",117,null,{"$f":"VLOOKUP($D162,Tidsplan!$B:$D,3,FALSE)","v":"1340"},{"$f":"VLOOKUP($D162,Tidsplan!$B:$D,2,FALSE)","v":""},null,null,null,null,null,null,null,"","K",null,0,null,null,null,null,null,"H","HSL","2x",{"$f":"IF(R162<>0,LEFT(Z162,1),0)*1","v":0},"500 m",null," "]
["1180",1,"Lør 27.8",118,null,{"$f":"VLOOKUP($D163,Tidsplan!$B:$D,3,FALSE)","v":"1350"},{"$f":"VLOOKUP($D163,Tidsplan!$B:$D,2,FALSE)","v":""},null,null,null,null,null,null,null,"",null,null,0,null,null,null,null,null,"D","DS","2x",0,"500 m",null," "]
[{"$f":"D164&R164","v":"1181"},{"$f":"OFFSET(B164,-1,0)","v":1},"Lør 27.8",118,null,{"$f":"OFFSET(F164,-1,0)","v":"1350"},null,null,null,null,null,null,null,null,null,null,1,1,1,null,null,null,null,"D","D S","2x",null,"500 m ","Norske Studenters Roklub 1","Sara Slettemark Juel",null,325,null,"Norske Studenters Roklub",null,null,"06.11.1997","Ja","K061197SAR05","5293357","26.04.2016","Norske Studenters Roklub","Tor-geir Myhrer","90060234","rosjefen@gmail.com","17.08.2016"]
["1182",0,"Lør 27.8",118,null,{"$f":"OFFSET(F165,-1,0)","v":"1350"},null,null,null,null,null,null,null,null,null,null,1,2,1,null,null,null,null,"D","D S ","2x",null,"500 m","Drammen\nDrammen","Fanny Lucie Røed\nMari Evjen Bergersen",null,650,"E","Fredrikstad Roklubb",null,null,null,null,null,null,null,null,"Øyvind Leirset"," ","Øyvind Leirset <oeylei@online.no>",42604]
[{"$f":"D166&R166","v":"1190"},1,"Lør 27.8",119,null,{"$f":"VLOOKUP($D166,Tidsplan!$B:$D,3,FALSE)","v":"1400"},{"$f":"VLOOKUP($D166,Tidsplan!$B:$D,2,FALSE)","v":""},null,null,null,null,null,null,null," ",null,null,0,null,null,null,null,null,"H","H J C","2x",0,"500 m ",null,"104 ror med i dette løpet"]
[{"$f":"D167&R167","v":"1191"},{"$f":"OFFSET(B167,-1,0)","v":1},"Lør 27.8",119,null,{"$f":"OFFSET(F167,-1,0)","v":"1400"},null,null,null,null,null,null,null,null,null,null,1,1,1,null,null,null,null,"H","H J C","2x",null,"500 m ","Sarpsborg Roklubb - Roing 1","Jakob Asbjørnsen\nHåkon Grønberg Møller",null,325,null,"Sarpsborg Roklubb - Roing",null,null,"25.02.2002\n22.12.2002","Ja\nJa","M250202JAK02\nM221202HÅK01","5632274\n6848301","10.04.2016\n10.04.2016","Sarpsborg Roklubb - Roing\nSarpsborg Roklubb - Roing","Thomas Gundersen\n","91874904\n","Thomas.gundersen@afgruppen.no;thomas.gundersen@afgruppen.no\n","17.08.2016\n17.08.2016"]
["1192",1,"Lør 27.8",119,null,"1400",null,null,null,null,null,null,null,null,null,null,1,{"$f":"1+R167","v":2},1,null,null,null,null,"H","H J C","2x",null,"500 m ","Norske Studenters Roklub 1","Trygve Bye Løken\nAlexander Swensen",null,325,null,"Norske Studenters Roklub",null,null,"22.04.2003\n12.05.2002","Ja\nJa","M220403TRY08\nM120502ALE07","7281238\n5779831","26.04.2016\n26.04.2016","Norske Studenters Roklub\nNorske Studenters Roklub","Tor-geir Myhrer\n","90060234\n","rosjefen@gmail.com\n","17.08.2016\n17.08.2016"]
["1193",1,"Lør 27.8",119,null,"1400",null,null,null,null,null,null,null,null,null,null,1,{"$f":"1+R168","v":3},1,null,null,null,null,"H","H J C","2x",null,"500 m ","Drammen Roklubb  1","Håkon Hannevold\nJonas Willand-Evensen",null,325,null,"Drammen Roklubb ",null,null,"18.03.2003\n30.08.2003","Ja\nJa","M180303HÅK01\nM300803JON01","5005249\n4879656","10.05.2016\n06.04.2016","Drammen Roklubb \nDrammen Roklubb ","Øyvind Leirset\n","40069485\n","oeylei@online.no;Oeylei@online.no\n","17.08.2016\n17.08.2016"]
["1194",1,"Lør 27.8",119,null,"1400",null,null,null,null,null,null,null,null,null,null,1,4,1,null,null,null,null,"H","H J C","2x",null,"500 m ","Moss Roklubb 1","Oliver Eliassen\nSimen Solbakken-Thømt",null,325,null,"Moss Roklubb",null,null,"21.05.2002\n17.05.2002","Ja\nJa","M210502OLI01\nM170502SIM07","4559253\n7189809","\n05.04.2016","Ukjent/ikke registrert klubb\nMoss Roklubb","Jon Rekstad\n","92252667\n","rekstad0@gmail.com\n","17.08.2016\n17.08.2016"]
["1195",1,"Lør 27.8",119,null,"1400",null,null,null,null,null,null,null,null,null,null,2,5,2,null,null,null,null,"H","H J C","2x",null,"500 m ","Moss Roklubb 2","Viktor Rekstad\nSimen Dørre",null,325,null,"Moss Roklubb",null,null,"29.01.2003\n01.04.2003","Ja\nJa","M290103VIK01\nM010403SIM03","5993278\n7261136","05.04.2016\n27.05.2016","Moss Roklubb\nMoss Roklubb","Jon Rekstad\n","92252667\n","rekstad0@gmail.com\n","17.08.2016\n17.08.2016"]
["1196",1,"Lør 27.8",119,null,"1400",null,null,null,null,null,null,null,null,null,null,2,6,2,null,null,null,null,"H","H J C","2x",null,"500 m ","Bærum Roklubb 1","Elias Håkonsen\nMagnus Kavli",null,325,null,"Bærum Roklubb",null,null,"29.10.2002\n01.01.2004","Ja\nNei","M291002ELI03\nM010104MAG01","7309985\n7232220","\n","Bærum Roklubb\nBærum Roklubb","Anders Hovde\n","90775520\n","anders.hovde@tns-gallup.no\n","17.08.2016\n17.08.2016"]
["1197",1,"Lør 27.8",119,null,"1400",null,null,null,null,null,null,null,null,null,null,2,7,2,null,null,null,null,"H","H J C","2x",null,"500 m ","Sarpsborg Roklubb - Roing 2","Dennis Rosseland\nSilas Tangen",null,325,null,"Sarpsborg Roklubb - Roing",null,null,"02.05.2003\n13.04.2003","Ja\nJa","M020503DEN01\nM130403SIL01","6917181\n6935544","10.04.2016\n10.04.2016","Sarpsborg Roklubb - Roing\nSarpsborg Roklubb - Roing","Thomas Gundersen\n","91874904\n","Thomas.gundersen@afgruppen.no;thomas.gundersen@afgruppen.no\n","17.08.2016\n17.08.2016"]
["1198",1,"Lør 27.8",119,null,"1400",null,null,null,null,null,null,null,null,null,null,2,8,2,null,null,null,null,"H","H J C","2x",null,"500 m ","Tønsberg Roklub 1","Ola Flatland Hoftun\nTevje Wilhelmsen Larsen",null,325,null,"Tønsberg Roklub",null,null,"14.07.2002\n29.07.2002","Ja\nJa","M140702OLA02\nM290702TEV01","6835964\n7311816","15.04.2016\n18.08.2016","Tønsberg Roklub\nTønsberg Roklub","Tore Nilsson\n","92686272\n","tore.nilsson@sf-nett.no\n","17.08.2016\n17.08.2016"]
[null,null,"Lør 27.8",null,null,null,null,null,null,null,null,null,null,null,null,null,null,null,null,null,null,null,null,null,null,null,0]
[{"$f":"D176&R176","v":"1200"},1,"Lør 27.8",120,null,{"$f":"VLOOKUP($D176,Tidsplan!$B:$D,3,FALSE)","v":"1415"},{"$f":"VLOOKUP($D176,Tidsplan!$B:$D,2,FALSE)","v":""},null,null,null,null,null,null,null," "," ",null,0,null,null,null,null,null,"D","D J C","1x",0,"500 m"]
[{"$f":"D177&R177","v":"1201"},{"$f":"OFFSET(B177,-1,0)","v":1},"Lør 27.8",120,null,{"$f":"OFFSET(F177,-1,0)","v":"1415"},null,null,null,null,null,null,null,null,null,null,1,1,1,null,null,null,null,"D","D J C","1x",null,"500 m","Tønsberg Roklub","Ida kyvik Sandvik",null,275,null,"Tønsberg Roklub","Nei",null,"24.07.2002","Ja","K240702IDA05","7173655","15.04.2016","Tønsberg Roklub","Tore Nilsson","92686272","tore.nilsson@sf-nett.no","17.08.2016"]
["1202",1,"Lør 27.8",120,null,"1415",null,null,null,null,null,null,null,null,null,null,1,2,1,null,null,null,null,"D","D J C","1x",null,"500 m","Norske Studenters Roklub","Ella Marie Hegge",null,275,null,"Norske Studenters Roklub","Nei",null,"18.05.2003","Ja","K180503ELL02","5567226","26.04.2016","Norske Studenters Roklub","Tor-geir Myhrer","90060234","rosjefen@gmail.com","17.08.2016"]
["1203",1,"Lør 27.8",120,null,"1415",null,null,null,null,null,null,null,null,null,null,1,3,1,null,null,null,null,"D","D J C","1x",null,"500 m","Bærum Roklubb","Ida Moberg  Værnes",null,275,null,"Bærum Roklubb","Nei",null,"22.05.2002","Ja","K220502IDA01","4612874",null,"Ukjent/ikke registrert klubb","Anders Hovde","90775520","anders.hovde@tns-gallup.no","17.08.2016"]
["1204",1,"Lør 27.8",120,null,"1415",null,null,null,null,null,null,null,null,null,null,2,4,2,null,null,null,null,"D","D J C","1x",null,"500 m","Norske Studenters Roklub","Marie Glomnes Rudi",null,275,null,"Norske Studenters Roklub","Nei",null,"25.07.2003","Ja","K250703MAR04","5247452","26.04.2016","Norske Studenters Roklub","Tor-geir Myhrer","90060234","rosjefen@gmail.com","17.08.2016"]
["1205",1,"Lør 27.8",120,null,"1415",null,null,null,null,null,null,null,null,null,null,2,5,2,null,null,null,null,"D","D J C","1x",null,"500 m","Tønsberg Roklub","Marie Andrup-Næss",null,275,null,"Tønsberg Roklub","Nei",null,"09.05.2002","Ja","K090502MAR05","6102972","15.04.2016","Tønsberg Roklub","Tore Nilsson","92686272","tore.nilsson@sf-nett.no","17.08.2016"]
["1206",1,"Lør 27.8",120,null,"1415",null,null,null,null,null,null,null,null,null,null,2,6,2,null,null,null,null,"D","D J C","1x",null,"500 m","Bærum Roklubb","Tuva Skatt Gillebo",null,275,null,"Bærum Roklubb","Nei",null,"17.10.2002","Ja","K171002TUV03","6101180","29.04.2016","Bærum Roklubb","Anders Hovde","90775520","anders.hovde@tns-gallup.no","17.08.2016"]
["1207",1,"Lør 27.8",120,null,"1415",null,null,null,null,null,null,null,null,null,null,2,7,2,null,null,null,null,"D","D J C","1x",null,"500 m","Tønsberg Roklub","Frida Andrup-Næss",null,275,null,"Tønsberg Roklub","Nei",null,"01.10.2003","Ja","K011003FRI10","7173341","15.04.2016","Tønsberg Roklub","Tore Nilsson","92686272","tore.nilsson@sf-nett.no","17.08.2016"]
["1210",1,"Lør 27.8",121,null,{"$f":"VLOOKUP($D184,Tidsplan!$B:$D,3,FALSE)","v":"1420"},{"$f":"VLOOKUP($D184,Tidsplan!$B:$D,2,FALSE)","v":"0930"},null,null,null,null," ",null,null,null,"K",null,0,null,null,null,null,null,"H","H J B","2x",0,"500 m "]
["121",{"$f":"OFFSET(B185,-1,0)","v":1},"Lør 27.8",121,null,{"$f":"OFFSET(F185,-1,0)","v":"1420"},"0930",null,null,null,null,null,null,null,null,null,null,null,null,null,null,null,null,"H","H J B","2x",null,"500 m ","Bærum Roklubb 1","Eirik Myreng Hauge\nLars Moberg Værnes",null,325,null,"Bærum Roklubb",null,null,"17.04.2000\n02.06.2000","Ja\nJa","M170400EIR02\nM020600LAR02","5005277\n4487587","29.04.2016\n29.04.2016","Bærum Roklubb\nBærum Roklubb","Anders Hovde\n","90775520\n","anders.hovde@tns-gallup.no\n","17.08.2016\n17.08.2016"]
["121",1,"Lør 27.8",121,null,"1420","0930",null,null,null,null,null,null,null,null,null,null,null,null,null,null,null,null,"H","H J B","2x",null,"500 m ","Bærum Roklubb 2","Vitus Aparicio Tjøm\nFredrik Vistung",null,325,null,"Bærum Roklubb",null,null,"26.01.2001\n01.01.2001","Ja\nJa","M260101VIT01\nM010101FRE60","5062270\n7267551","29.04.2016\n","Bærum Roklubb\nBærum Roklubb","Anders Hovde\n","90775520\n","anders.hovde@tns-gallup.no\n","17.08.2016\n17.08.2016"]
["121",1,"Lør 27.8",121,null,"1420","0930",null,null,null,null,null,null,null,null,null,null,null,null,null,null,null,null,"H","H J B","2x",null,"500 m ","Bærum Roklubb 3","Petter Bratli\nØystein Dingen Endresen",null,325,null,"Bærum Roklubb",null,null,"17.06.2000\n07.06.2000","Ja\nJa","M170600PET02\nM070600ØYS01","5956457\n5372192","29.04.2016\n29.04.2016","Bærum Roklubb\nBærum Roklubb","Anders Hovde\n","90775520\n","anders.hovde@tns-gallup.no\n","17.08.2016\n17.08.2016"]
["1211",1,"Lør 27.8",121,null,"1420","0930",null,null,null,null,null,null,null,null,null,null,1,null,null,null,null,null,"H","H J B","2x",null,"500 m ","Bærum Roklubb 4","sindre fuglseth\nBrage Bragstad",null,325,null,"Bærum Roklubb",null,null,"26.09.2000\n12.09.2000","Ja\nJa","M260900SIN02\nM120900BRA03","6073987\n4908711","29.04.2016\n29.04.2016","Bærum Roklubb\nBærum Roklubb","Anders Hovde\n","90775520\n","anders.hovde@tns-gallup.no\n","17.08.2016\n17.08.2016"]
["121",1,"Lør 27.8",121,null,"1420","0930",null,null,null,null,null,null,null,null,null,null,null,null,null,null,null,null,"H","H J B","2x",null,"500 m ","Christiania Roklub 1","Andreas Dugstad Sørsgaar\nTinius Wilhelmsen",null,325,null,"Christiania Roklub",null,null,"06.10.2001\n18.10.2001","Ja\nJa","M061001AND03\nM181001TIN04","5640032\n6005810","\n06.03.2016","Christiania Roklub\nChristiania Roklub","Grete Isachsen Stokke\n","91338845\n","grisach@gmail.com\n","16.08.2016\n16.08.2016"]
["121",1,"Lør 27.8",121,null,"1420","0930",null,null,null,null,null,null,null,null,null,null,null,null,null,null,null,null,"H","H J B","2x",null,"500 m ","Christiania Roklub 2","Martin Dege\nSverre Engebretsen",null,325,null,"Christiania Roklub",null,null,"18.02.2001\n16.05.2001","Ja\nJa","M180201SVE04\nM160501MAR05","6759915\n6759918","27.05.2016\n","Christiania Roklub\nChristiania Roklub","Grete Isachsen Stokke\n","91338845\n","grisach@gmail.com\n","16.08.2016\n16.08.2016"]
["121",1,"Lør 27.8",121,null,"1420","0930",null,null,null,null,null,null,null,null,null,null,null,null,null,null,null,null,"H","H J B","2x",null,"500 m ","Drammen Roklubb  1","Bjørn Tarald Rosfjord Wik\nElias Loe Eritsland",null,325,null,"Drammen Roklubb ",null,null,"24.11.2001\n13.02.2001","Ja\nJa","M241101BJØ02\nM130201ELI01","7310641\n6756069","17.08.2016\n15.03.2016","Drammen Roklubb \nDrammen Roklubb ","Øyvind Leirset\n","40069485\n","oeylei@online.no;Oeylei@online.no\n","17.08.2016\n17.08.2016"]
["121",1,"Lør 27.8",121,null,"1420","0930",null,null,null,null,null,null,null,null,null,null,null,null,null,null,null,null,"H","H J B","2x",null,"500 m ","Moss Roklubb 1","Jarle Hjortkjær Sæby\nMagnus strømme",null,325,null,"Moss Roklubb",null,null,"17.08.2000\n15.11.2001","Ja\nJa","M170800JAR02\nM151101MAG07","2794789\n6045066","05.04.2016\n05.04.2016","Moss Roklubb\nMoss Roklubb","Jon Rekstad\n","92252667\n","rekstad0@gmail.com\n","17.08.2016\n17.08.2016"]
["121",1,"Lør 27.8",121,null,"1420","0930",null,null,null,null,null,null,null,null,null,null,null,null,null,null,null,null,"H","H J B","2x",null,"500 m ","Norske Studenters Roklub 1","Kristian Søhr\nSam Lorgen",null,325,null,"Norske Studenters Roklub",null,null,"14.04.2000\n02.04.2000","Ja\nJa","M140400KRI01\nM020400SAM02","4077003\n6722466","26.04.2016\n26.04.2016","Norske Studenters Roklub\nNorske Studenters Roklub","Tor-geir Myhrer\n","90060234\n","rosjefen@gmail.com\n","17.08.2016\n17.08.2016"]
["121",1,"Lør 27.8",121,null,"1420","0930",null,null,null,null,null,null,null,null,null,null,null,null,null,null,null,null,"H","H J B","2x",null,"500 m ","Norske Studenters Roklub 2","Petter Arnøy\nHugo Haavind",null,325,null,"Norske Studenters Roklub",null,null,"16.02.2001\n17.05.2001","Ja\nJa","M160201PET02\nM170501HUG03","4179438\n5178950","26.04.2016\n","Norske Studenters Roklub\nNorske Studenters Roklub","Tor-geir Myhrer\n","90060234\n","rosjefen@gmail.com\n","17.08.2016\n17.08.2016"]
["121",1,"Lør 27.8",121,null,"1420","0930",null,null,null,null,null,null,null,null,null,null,null,null,null,null,null,null,"H","H J B","2x",null,"500 m ","Norske Studenters Roklub 3","Edvard Sander Bae Mysen\nArne Theodor Gjelsten",null,325,null,"Norske Studenters Roklub",null,null,"18.10.2000\n05.03.2000","Ja\nJa","M181000EDV01\nM050300ARN02","5383840\n6071908","26.04.2016\n","Norske Studenters Roklub\nNorske Studenters Roklub","Tor-geir Myhrer\n","90060234\n","rosjefen@gmail.com\n","17.08.2016\n17.08.2016"]
["121",1,"Lør 27.8",121,null,"1420","0930",null,null,null,null,null,null,null,null,null,null,null,null,null,null,null,null,"H","H J B","2x",null,"500 m ","Ormsund Roklub 1","Jonathan K Dysvik\nErlend Hystad",null,325,null,"Ormsund Roklub",null,null,"12.05.2001\n01.12.2002","Ja\nNei","M120501JON09\nM011202ERL01","2820892\n4859156","11.03.2016\n11.03.2016","Ormsund Roklub\nOrmsund Roklub","Antje Peine\n","+4792863244\n","antjep13@gmail.com\n","17.08.2016\n17.08.2016"]
["121",1,"Lør 27.8",121,null,"1420","0930",null,null,null,null,null,null,null,null,null,null,null,null,null,null,null,null,"H","H J B","2x",null,"500 m ","Sarpsborg Roklubb - Roing 1","Diderik Skjønhaug\nJacob Gundersen",null,325,null,"Sarpsborg Roklubb - Roing",null,null,"28.12.2000\n08.04.2001","Ja\nJa","M281200DID01\nM080401JAC01","5330116\n5584584","10.04.2016\n10.04.2016","Sarpsborg Roklubb - Roing\nSarpsborg Roklubb - Roing","Thomas Gundersen\n","91874904\n","Thomas.gundersen@afgruppen.no;thomas.gundersen@afgruppen.no\n","17.08.2016\n17.08.2016"]
["121",1,"Lør 27.8",121,null,"1420","0930",null,null,null,null,null,null,null,null,null,null,null,null,null,null,null,null,"H","H J B","2x",null,"500 m ","Tønsberg Roklub 1","Lars Jørann Lindgren\nIsak Vartal-Gjerde",null,325,null,"Tønsberg Roklub",null,null,"30.05.2001\n24.12.2000","Ja\nJa","M300501LAR02\nM241200ISA03","4234298\n7173184","15.04.2016\n15.04.2016","Tønsberg Roklub\nTønsberg Roklub","Tore Nilsson\n","92686272\n","tore.nilsson@sf-nett.no\n","17.08.2016\n17.08.2016"]
["1220",1,"Lør 27.8",122,null,{"$f":"VLOOKUP($D199,Tidsplan!$B:$D,3,FALSE)","v":"1425"},{"$f":"VLOOKUP($D199,Tidsplan!$B:$D,2,FALSE)","v":"0955"},null,null,null,null," ",null,null,null,"K",null,0,null,null,null,null,null,"D","D J A","1x",0,"500 m"]
["122",{"$f":"OFFSET(B200,-1,0)","v":1},"Lør 27.8",122,null,{"$f":"OFFSET(F200,-1,0)","v":"1425"},"0955",null,null,null,null,null,null,null,null,null,null,null,null,null,null,null,null,"D","D J A","1x",null,"500 m","Christiania Roklub","Hermine Wilhelmsen",null,275,null,"Christiania Roklub","Nei",null,"23.07.1999","Ja","K230799HER03","5674641","06.03.2016","Christiania Roklub","Grete Isachsen Stokke","91338845","grisach@gmail.com","16.08.2016"]
["122",1,"Lør 27.8",122,null,"1425","0955",null,null,null,null,null,null,null,null,null,null,null,null,null,null,null,null,"D","D J A","1x",null,"500 m","Drammen Roklubb ","Sara Seip",null,275,null,"Drammen Roklubb ","Nei",null,"09.05.1998","Ja","K090598SAR05","5313667","15.03.2016","Drammen Roklubb ","Øyvind Leirset","40069485","oeylei@online.no;Oeylei@online.no","17.08.2016"]
["122",1,"Lør 27.8",122,null,"1425","0955",null,null,null,null,null,null,null,null,null,null,null,null,null,null,null,null,"D","D J A","1x",null,"500 m","Moss Roklubb","Hibaq Adbi Mohammed",null,275,null,"Moss Roklubb","Nei",null,"29.05.1999","Ja","K290599HIB03","5643357","05.04.2016","Moss Roklubb","Jon Rekstad","92252667","rekstad0@gmail.com","17.08.2016"]
["122",1,"Lør 27.8",122,null,"1425","0955",null,null,null,null,null,null,null,null,null,null,null,null,null,null,null,null,"D","D J A","1x",null,"500 m","Moss Roklubb","Maia Rekstad",null,275,null,"Moss Roklubb","Nei",null,"25.06.1999","Ja","K250699MAI03","5643443","05.04.2016","Moss Roklubb","Jon Rekstad","92252667","rekstad0@gmail.com","17.08.2016"]
["122",1,"Lør 27.8",122,null,"1425","0955",null,null,null,null,null,null,null,null,null,null,null,null,null,null,null,null,"D","D J A","1x",null,"500 m","Ormsund Roklub","Anna Mesel",null,275,null,"Ormsund Roklub","Nei",null,"03.04.1999","Ja","K030499ANN01","1626245","11.03.2016","Ormsund Roklub","Antje Peine","+4792863244","antjep13@gmail.com","17.08.2016"]
["122",1,"Lør 27.8",122,null,"1425","0955",null,null,null,null,null,null,null,null,null,null,null,null,null,null,null,null,"D","D J A","1x",null,"500 m","Ormsund Roklub","Serine Camilie Aaker",null,275,null,"Ormsund Roklub","Nei",null,"05.06.1999","Ja","K050699SER01","1626570",null,"Ukjent/ikke registrert klubb","Antje Peine","+4792863244","antjep13@gmail.com","17.08.2016"]
["122",1,"Lør 27.8",122,null,"1425","0955",null,null,null,null,null,null,null,null,null,null,null,null,null,null,null,null,"D","D J A","1x",null,"500 m","Sarpsborg Roklubb - Roing","Kavi Ali",null,275,null,"Sarpsborg Roklubb - Roing","Nei",null,"04.07.1998","Ja","K040798KAV02","2739661","10.04.2016","Sarpsborg Roklubb - Roing","Thomas Gundersen","91874904","Thomas.gundersen@afgruppen.no;thomas.gundersen@afgruppen.no","17.08.2016"]
["1230",1,"Lør 27.8",123,null,{"$f":"VLOOKUP($D207,Tidsplan!$B:$D,3,FALSE)","v":"1430"},{"$f":"VLOOKUP($D207,Tidsplan!$B:$D,2,FALSE)","v":""},null,null,null,null,null,null,null,null,"K",null,0,null,null,null,null,null,"D","D J B","4x",{"$f":"IF(R207<>0,LEFT(Z207,1),0)*1","v":0},500]
["1231",{"$f":"OFFSET(B208,-1,0)","v":1},"Lør 27.8",123,null,{"$f":"OFFSET(F208,-1,0)","v":"1430"},null,null,null,null,null,null,null,null,null,null,1,1,1,null,null,null,null,"D","D J B","4x",null,"500 m","Bærum Roklubb 1","Caitlin Aalders\nTuva Skatt Gillebo\nStina Halvorsen Vad\nIda Moberg  Værnes",null,375,null,"Bærum Roklubb",null,null,"03.06.2001\n17.10.2002\n26.09.2000\n22.05.2002","Ja\nNei\nJa\nNei","K030601CAI03\nK171002TUV03\nK260900STI02\nK220502IDA01","7289717\n6101180\n6778019\n4612874","\n29.04.2016\n29.04.2016\n","Bærum Roklubb\nBærum Roklubb\nBærum Roklubb\nUkjent/ikke registrert klubb","Anders Hovde\n","90775520\n","anders.hovde@tns-gallup.no\n","17.08.2016\n17.08.2016\n17.08.2016\n17.08.2016"]
["1232",1,"Lør 27.8",123,null,"1430",null,null,null,null,null,null,null,null,null,null,1,2,1,null,null,null,null,"D","D J B","4x",null,"500 m","Norske Studenters Roklub 1","Rebekka Øvensen Aanderaa\nHanna Kaupang Petersen\nHedda Dagestad-Larsen ",null,375,null,"Norske Studenters Roklub",null,null,"11.10.2000\n15.09.2000\n30.11.2000","Ja\nJa\nJa","K111000REB03\nK150900HAN01\nK301100HED02","5673868\n2581292\n6722633","26.04.2016\n26.04.2016\n26.04.2016","Norske Studenters Roklub\nNorske Studenters Roklub\nNorske Studenters Roklub","Tor-geir Myhrer\n","90060234\n","rosjefen@gmail.com\n","17.08.2016\n17.08.2016\n17.08.2016"]
["1240",1,"Lør 27.8",124,null,{"$f":"VLOOKUP($D210,Tidsplan!$B:$D,3,FALSE)","v":"1435"},{"$f":"VLOOKUP($D210,Tidsplan!$B:$D,2,FALSE)","v":""},null,null,null,null,null,null,null," ",null,null,0,null,null,null,null,null,"H","H M","2x",0,"500 m "]
["1241",{"$f":"OFFSET(B211,-1,0)","v":1},"Lør 27.8",124,null,{"$f":"OFFSET(F211,-1,0)","v":"1435"},null,null,null,null,null,null,null,null,null,null,1,1,1,null,null,null,null,"H","H M","2x",null,"500 m ","Bærum Roklubb 1","Espen Finanger\nTrond Amundsen",null,325,null,"Bærum Roklubb",null,null,"19.05.1975\n09.01.1968","Ja\nJa","M190575ESP02\nM090168TRO02","587671\n6779720","\n","Bærum Roklubb\nBærum Roklubb,Skullerud Sportsklubb","Anders Hovde\n","90775520\n","anders.hovde@tns-gallup.no\n","17.08.2016\n17.08.2016"]
["1242",1,"Lør 27.8",124,null,"1435",null,null,null,null,null,null,null,null,null,null,1,2,1,null,null,null,null,"H","H M","2x",null,"500 m ","Årungen Ro- og Kajakklubb 1","Gideon Loos\nZbigniew Andruszkiewicz",null,325,null,"Årungen Ro- og Kajakklubb",null,null,"15.06.1971\n01.11.1959","Ja\nJa","M150671GID01\nM011159ZBI02","7303767\n5304055","\n11.03.2016","Ukjent/ikke registrert klubb\nOrmsund Roklub,Årungen Ro- og Kajakklubb","Jens Petter Wold\n","95979749\n","jens.petter.wold@nofima.no\n","17.08.2016\n17.08.2016"]
["1250",1,"Lør 27.8",125,null,{"$f":"VLOOKUP($D213,Tidsplan!$B:$D,3,FALSE)","v":"1440"},{"$f":"VLOOKUP($D213,Tidsplan!$B:$D,2,FALSE)","v":""},null,null,null,null,null,null,null,null,"K",null,0,null,null,null,null,null,"D","D M","2x",0,"500 m "]
["1251",1,"Lør 27.8",125,null,"1440",null,null,null,null,null,null,null,null,null,null,1,1,1,null,null,null,null,"D","D M","2x",null,"500 m ","Bestumkilen Roklubb 1/\nChristiania","Irene Gaarud\nElisabeth Couto",null,325,null,"Bestumkilen Roklubb",null,null,"16.08.1976\n15.08.1974","Ja\nJa","K160876IRE01\nK150874ELI05","5288763\n5663938","31.05.2016\n13.07.2016","Bestumkilen Roklubb\nBestumkilen Roklubb,Christiania Roklub","Sigbjørn Birkeland\n","93480893\n","sigbjorn.birkeland@storebrand.no;sigbjorn.birkeland@online.no\n","16.08.2016\n16.08.2016"]
[{"$f":"D215&R215","v":"1252"},{"$f":"OFFSET(B215,-1,0)","v":1},"Lør 27.8",125,null,{"$f":"OFFSET(F215,-1,0)","v":"1440"},null,null,null,null,null,null,null,null,null,null,1,2,1,null,null,null,null,"D","D M","2x",null,"500 m ","Bærum Roklubb 1","Randi West\nAnne Heide Tjøm",null,325,null,"Bærum Roklubb",null,null,"20.05.1965\n16.05.1963","Ja\nJa","K200565RAN02\nK160563ANN09","5021405\n5122452","\n","Bærum Roklubb\nBærum Roklubb","Anders Hovde\n","90775520\n","anders.hovde@tns-gallup.no\n","17.08.2016\n17.08.2016"]
[{"$f":"D216&R216","v":"1253"},1,"Lør 27.8",125,null,"1440",null,null,null,null,null,null,null,null,null,null,1,3,1,null,null,null,null,"D","D M","2x",null,"500 m ","Bestumkilen Roklubb 2","Thale Grøtt\nMarte Åsland Hansen",null,325,null,"Bestumkilen Roklubb",null,null,"07.08.1984\n25.11.1984","Ja\nJa","K070884THA01\nK251184MAR08","5919615\n5807375","31.05.2016\n31.05.2016","Bestumkilen Roklubb\nBestumkilen Roklubb,Norske Studenters Roklub","Sigbjørn Birkeland\n","93480893\n","sigbjorn.birkeland@storebrand.no;sigbjorn.birkeland@online.no\n","17.08.2016\n17.08.2016"]
["1254",1,"Lør 27.8",125,null,"1440",null,null,null,null,null,null,null,null,null,null,1,4,1,null,null,null,null,"D","D M","2x",null,"500 m ","Bestumkilen Roklubb 3","Marte Radmann\nIngrid Motzfeldt",null,325,null,"Bestumkilen Roklubb",null,null,"27.12.1978\n18.08.1978","Ja\nJa","K271278MAR04\nK180878ING03","2636337\n2374727","13.07.2016\n13.07.2016","Bestumkilen Roklubb\nBestumkilen Roklubb","Sigbjørn Birkeland\n","93480893\n","sigbjorn.birkeland@storebrand.no;sigbjorn.birkeland@online.no\n","17.08.2016\n17.08.2016"]
["1260",0,"Lør 27.8",126,null,{"$f":"VLOOKUP($D218,Tidsplan!$B:$D,3,FALSE)","v":"1445"},{"$f":"VLOOKUP($D218,Tidsplan!$B:$D,2,FALSE)","v":""},null,null,null,null,null,null,null,null,"K ",null,0,null,null,null,null,null,"D","S L"," 2x",0,500]
["1261",0,"Lør 27.8",126,null,{"$f":"VLOOKUP($D219,Tidsplan!$B:$D,3,FALSE)","v":"1445"},null,null,null,null,null,null,null,null,null,null,1,1,1,null,null,null,null,"D","D SLv","2x",null,"500 m ","Drammen Roklubb  1","Fanny Lucie Røed\nMari Evje Borgersen",null,325,null,"Drammen Roklubb ",null,null,"20.09.1994\n01.07.1996","Ja\nJa","K200994FAN02\nK010796MAR09","7073229\n5923049","15.03.2016\n15.03.2016","Drammen Roklubb \nDrammen Roklubb ","Øyvind Leirset\n","40069485\n","oeylei@online.no;Oeylei@online.no\n","17.08.2016\n17.08.2016"]
["1270",1,"Lør 27.8",127,null,{"$f":"VLOOKUP($D220,Tidsplan!$B:$D,3,FALSE)","v":"1450"},{"$f":"VLOOKUP($D220,Tidsplan!$B:$D,2,FALSE)","v":""},null,null,null,null,null,null,null,"S"," ",1,0,null,null,null,null,null,"H","H S","2x",0,"500 m "]
["1271",1,"Lør 27.8",127,null,{"$f":"VLOOKUP($D221,Tidsplan!$B:$D,3,FALSE)","v":"1450"},null,null,null,null,null,null,null,null,null,null,1,1,1,null,null,null,null,"H","H S","2x",null,"500 m ","Haldens Roklub 1","Thomas Furuvarp\nPetter Norsted Kildebo",null,325,null,"Haldens Roklub",null,null,"29.06.1995\n26.09.1997","Ja\nJa","M290695THO04\nM260997PET06","5304581\n6159432","25.04.2016\n25.04.2016","Haldens Roklub\nHaldens Roklub","Eivind Borring Hansen\n","97588834\n","eivind@hkpensjon.no;eivhan@gmail.com\n","17.08.2016\n17.08.2016"]
["1280",1,"Lør 27.8",128,null,{"$f":"VLOOKUP($D222,Tidsplan!$B:$D,3,FALSE)","v":"1455"},{"$f":"VLOOKUP($D222,Tidsplan!$B:$D,2,FALSE)","v":""},null,null,null,null,null,null,null,null,"K ",1,0,null,null,null,null,null,"D","DS","4x",0,"500m",null,"Ror sammen med 128 kl 1450"]
["",{"$f":"OFFSET(B223,-1,0)","v":1},"Lør 27.8",null,null,null,null,null,null,null,null,null,null,null,null,null,null,null,0,0,null,null,null,null,null,null,0]
["1290",1,"Lør 27.8",129,null,{"$f":"VLOOKUP($D224,Tidsplan!$B:$D,3,FALSE)","v":"1500"},{"$f":"VLOOKUP($D224,Tidsplan!$B:$D,2,FALSE)","v":""},null,null,null,null,null,null,null,"S",null,1,0,null,null,null,null,null,"H","H J A","4x",0,"500 m",null,"127 Ror sammen med dette løpet"]
["1301",{"$f":"OFFSET(B225,-1,0)","v":1},"Lør 27.8",130,null,{"$f":"OFFSET(F225,-1,0)","v":"1500"},null,null,null,null,null,null,null,null,null,null,1,1,1,null,null,null,null,"H","H J A","4x",4,"500 m","Bærum Roklubb 1","Jaime Aalders\nEirik Myreng Hauge\nHermann Hovde\nTade Phanke",null,375,null,"Bærum Roklubb",null,null,"16.09.1999\n17.04.2000\n01.01.1999\n20.10.1999","Ja\nNei\nJa\nJa","M160999JAI02\nM170400EIR02\nM010199HER12\nM201099TAD03","5508697\n5005277\n5632327\n6760198","29.04.2016\n29.04.2016\n29.04.2016\n","Bærum Roklubb\nBærum Roklubb\nBærum Roklubb\nBærum Roklubb","Anders Hovde\n","90775520\n","anders.hovde@tns-gallup.no\n","17.08.2016\n17.08.2016\n17.08.2016\n17.08.2016"]
["1302",1,"Lør 27.8",130,null,"1500",null,null,null,null,null,null,null,null,null,null,1,2,1,null,null,null,null,"H","H J A","4x",4,"500 m","Moss Roklubb 1","Alfred Eliassen\nMagnus strømme\nJarle Hjortkjær Sæby\nVegard Hjortkær Sæby",null,375,null,"Moss Roklubb",null,null,"06.12.1999\n15.11.2001\n17.08.2000\n07.07.1998","Ja\nNei\nNei\nJa","M061299ALF01\nM151101MAG07\nM170800JAR02\nM070798VEG01","2747765\n6045066\n2794789\n2696077","05.04.2016\n05.04.2016\n05.04.2016\n05.04.2016","Moss Roklubb\nMoss Roklubb\nMoss Roklubb\nMoss Roklubb","Jon Rekstad\n","92252667\n","rekstad0@gmail.com\n","17.08.2016\n17.08.2016\n17.08.2016\n17.08.2016"]
["1303",1,"Lør 27.8",130,null,"1500",null,null,null,null,null,null,null,null,null,null,1,3,1,null,null,null,null,"H","H J A","4x",4,"500 m","Norske Studenters Roklub 1","Edvart Solberg Svingen\nCarl Oscar Christensen Hoff\nDavid Alexander Anderson\nOliver Alexander Petterson Stubbs",null,375,null,"Norske Studenters Roklub",null,null,"02.11.1998\n29.12.1998\n07.09.1998\n05.09.1998","Ja\nJa\nJa\nJa","M021198EDV03\nM291298CAR02\nM070998DAV02\nM050998OLI01","6033989\n5296631\n5296623\n7311395","26.04.2016\n26.04.2016\n26.04.2016\n","Norske Studenters Roklub\nNorske Studenters Roklub\nNorske Studenters Roklub\nNorske Studenters Roklub","Tor-geir Myhrer\n","90060234\n","rosjefen@gmail.com\n","17.08.2016\n17.08.2016\n17.08.2016\n17.08.2016"]
[]
[{"$f":"D229&R229","v":"1300"},0,"Lør 27.8",130,null,{"$f":"VLOOKUP($D229,Tidsplan!$B:$D,3,FALSE)","v":"1505"},{"$f":"VLOOKUP($D229,Tidsplan!$B:$D,2,FALSE)","v":""},null,null,null,null,null,null,null,"S"," ",null,0,null,null,null,null,null,"D","D J A","2-",{"$f":"IF(R229<>0,LEFT(Z229,1),0)*1","v":0},500]
[{"$f":"D230&R230","v":"1291"},{"$f":"OFFSET(B230,-1,0)","v":0},"Lør 27.8",129,null,{"$f":"OFFSET(F230,-1,0)","v":"1505"},null,null,null,null,null,null,null,null,null,null,1,1,1,null,null,null,null,"D","D J A","2-",null,"500 m","Bærum Roklubb 1","Synnøve Gillebo Foss\nKlara Moene Omholt",null,325,null,"Bærum Roklubb",null,null,"11.08.1999\n17.03.1998","Ja\nJa","K110899SYN02\nK170398KLA02","5218490\n5645099","29.04.2016\n29.04.2016","Bærum Roklubb\nBærum Roklubb","Anders Hovde\n","90775520\n","anders.hovde@tns-gallup.no\n","17.08.2016\n17.08.2016"]
["1310",0,"Lør 27.8",131,null,{"$f":"VLOOKUP($D231,Tidsplan!$B:$D,3,FALSE)","v":"1510"},{"$f":"VLOOKUP($D231,Tidsplan!$B:$D,2,FALSE)","v":""},null,null,null,null,null,null,null,null,"K",1,0,null,null,null,null,null,"H","JB","4-",0,500]
["1320",1,"Lør 27.8",132,null,{"$f":"VLOOKUP($D232,Tidsplan!$B:$D,3,FALSE)","v":"1515"},{"$f":"VLOOKUP($D232,Tidsplan!$B:$D,2,FALSE)","v":""},null,null,null,null," ",null,null,null,"K",null,0,null,null,null,null,null,"D","D J B","2x",0,"500 m "]
["1321",{"$f":"OFFSET(B233,-1,0)","v":1},"Lør 27.8",132,null,{"$f":"OFFSET(F233,-1,0)","v":"1515"},null,null,null,null,null,null,null,null,null,null,1,1,1,null,null,null,null,"D","D J B","2x",2,"500 m ","Bærum Roklubb 1","Stina Halvorsen Vad\nCaitlin Aalders",null,325,null,"Bærum Roklubb",null,null,"26.09.2000\n03.06.2001","Ja\nJa","K260900STI02\nK030601CAI03","6778019\n7289717","29.04.2016\n","Bærum Roklubb\nBærum Roklubb","Anders Hovde\n","90775520\n","anders.hovde@tns-gallup.no\n","17.08.2016\n17.08.2016"]
["1322",1,"Lør 27.8",132,null,"1515",null,null,null,null,null,null,null,null,null,null,1,2,1,null,null,null,null,"D","D J B","2x",2,"500 m ","Moss Roklubb 1\nDrammen","Lise Meinike Dørre\n Karoline Rydland Masch",null,325,null,"Moss Roklubb",null,null,"13.02.2000","Ja","K130200LIS02","6059397",null,"Årungen Ro- og Kajakklubb\nDrammen Roklubb","Jon Rekstad","92252667","rekstad0@gmail.com","17.08.2016"]
["1323",1,"Lør 27.8",132,null,"1515",null,null,null,null,null,null,null,null,null,null,1,3,1,null,null,null,null,"D","D J B","2x",2,"500 m ","Norske Studenters Roklub 1","Hanna Kaupang Petersen\nRebekka Øvensen Aanderaa",null,325,null,"Norske Studenters Roklub",null,null,"15.09.2000\n11.10.2000","Ja\nJa","K150900HAN01\nK111000REB03","2581292\n5673868","26.04.2016\n26.04.2016","Norske Studenters Roklub\nNorske Studenters Roklub","Tor-geir Myhrer\n","90060234\n","rosjefen@gmail.com\n","17.08.2016\n17.08.2016"]
["1324",1,"Lør 27.8",132,null,"1515",null,null,null,null,null,null,null,null,null,null,1,4,1,null,null,null,null,"D","D J B","2x",2,"500 m ","Norske Studenters Roklub 2","Hedda Dagestad-Larsen ",null,325,null,"Norske Studenters Roklub",null,null,"30.11.2000","Ja","K301100HED02","6722633","26.04.2016","Norske Studenters Roklub","Tor-geir Myhrer","90060234","rosjefen@gmail.com","17.08.2016"]
["1330",1,"Lør 27.8",133,null,{"$f":"VLOOKUP($D237,Tidsplan!$B:$D,3,FALSE)","v":"1520"},{"$f":"VLOOKUP($D237,Tidsplan!$B:$D,2,FALSE)","v":""},null,null,null,null,null,null," ","",null,null,0,null,null,null,null,null,"Åpen","Mix JC","4x",0,"500 m"]
[{"$f":"D238&R238","v":"1331"},{"$f":"OFFSET(B238,-1,0)","v":1},"Lør 27.8",133,null,{"$f":"OFFSET(F238,-1,0)","v":"1520"},null,null,null,null,null,null,null,null,null,null,1,1,1,null,null,null,null,"Åpen","Mix JC","4x",null,"500 m","Norske Studenters Roklub 1","Ella Marie Hegge\nCharles Bret\nLisa Nakamoto Byberg\nErik Delme Mostue Thomas",null,375,null,"Norske Studenters Roklub",null,null,"18.05.2003\n24.10.2002\n08.04.2003\n14.11.2003","Nei\nNei\nNei\nNei","K180503ELL02\nM241002CHA01\nK080403LIS01\nM141103ERI03","5567226\n6722636\n5391349\n6422041","26.04.2016\n26.04.2016\n26.04.2016\n","Norske Studenters Roklub\nNorske Studenters Roklub\nNorske Studenters Roklub\nNorske Studenters Roklub","Tor-geir Myhrer\n","90060234\n","rosjefen@gmail.com\n","17.08.2016\n17.08.2016\n17.08.2016\n17.08.2016"]
["1332",{"$f":"OFFSET(B239,-1,0)","v":1},"Lør 27.8",133,null,{"$f":"OFFSET(F239,-1,0)","v":"1520"},null,null,null,null,null,null,null,null,null,null,1,2,1,null,null,null,null,"Åpen","Mix JC","4x",null,"500 m","Bærum Roklubb 1","Tuva Skatt Gillebo\nElias Håkonsen\nMagnus Kavli\nIda Moberg Værnes",null,375,null,"Bærum Roklubb",null,null,"17.10.2002\n29.10.2002\n01.01.2004\n01.01.2002","Nei\nNei\nNei\nNei","K171002TUV03\nM291002ELI03\nM010104MAG01\nK010102IDA24","6101180\n7309985\n7232220\n7267553","29.04.2016\n\n\n","Bærum Roklubb\nBærum Roklubb\nBærum Roklubb\nBærum Roklubb","Anders Hovde\n","90775520\n","anders.hovde@tns-gallup.no\n","17.08.2016\n17.08.2016\n17.08.2016\n17.08.2016"]
["1333",1,"Lør 27.8",133,null,"1520",null,null,null,null,null,null,null,null,null,null,1,3,1,null,null,null,null,"Åpen","Mix JC","4x",null,"500 m","Christiania Roklub 1","Balder Haug Hagen\nNicoline Lindstrøm\nLorentz Pran",null,375,null,"Christiania Roklub",null,null,"14.01.2004\n25.09.2002\n20.01.2004","Nei\nNei\nNei","M140104BAL01\nK250902NIC01\nM200104LOR01","5187160\n7270145\n7231175","04.05.2016\n16.06.2016\n04.05.2016","Christiania Roklub\nChristiania Roklub\nChristiania Roklub","Grete Isachsen Stokke\n","91338845\n","grisach@gmail.com\n","16.08.2016\n16.08.2016\n16.08.2016"]
["1334",1,"Lør 27.8",133,null,"1520",null,null,null,null,null,null,null,null,null,null,1,4,1,null,null,null,null,"Åpen","Mix JC","4x",null,"500 m","Sarpsborg Roklubb - Roing 1","Jakob Asbjørnsen\nHåkon Grønberg Møller\nDennis Rosseland\nMina Alida Andresen",null,375,null,"Sarpsborg Roklubb - Roing",null,null,"25.02.2002\n22.12.2002\n02.05.2003\n14.07.2005","Nei\nNei\nNei\nNei","M250202JAK02\nM221202HÅK01\nM020503DEN01\nK140705MIN02","5632274\n6848301\n6917181\n6917176","10.04.2016\n10.04.2016\n10.04.2016\n10.04.2016","Sarpsborg Roklubb - Roing\nSarpsborg Roklubb - Roing\nSarpsborg Roklubb - Roing\nSarpsborg Roklubb - Roing","Thomas Gundersen\n","91874904\n","Thomas.gundersen@afgruppen.no;thomas.gundersen@afgruppen.no\n","17.08.2016\n17.08.2016\n17.08.2016\n17.08.2016"]
["1335",{"$f":"OFFSET(B242,-1,0)","v":1},"Lør 27.8",133,null,{"$f":"OFFSET(F242,-1,0)","v":"1520"},null,null,null,null,null,null,null,null,null,null,null,5,1,null,null,null,null,"Åpen","Mix JC","4x",null,"500 m","Tønsberg Roklub 1","Marie Andrup-Næss\nOla Flatland Hoftun\nFrida Andrup-Næss\nIda kyvik Sandvik",null,375,null,"Tønsberg Roklub",null,null,"09.05.2002\n14.07.2002\n01.10.2003\n24.07.2002","Nei\nNei\nNei\nNei","K090502MAR05\nM140702OLA02\nK011003FRI10\nK240702IDA05","6102972\n6835964\n7173341\n7173655","15.04.2016\n15.04.2016\n15.04.2016\n15.04.2016","Tønsberg Roklub\nTønsberg Roklub\nTønsberg Roklub\nTønsberg Roklub","Tore Nilsson\n","92686272\n","tore.nilsson@sf-nett.no\n","17.08.2016\n17.08.2016\n17.08.2016\n17.08.2016"]
["1336",{"$f":"OFFSET(B243,-1,0)","v":1},"Lør 27.8",133,null,{"$f":"OFFSET(F243,-1,0)","v":"1520"},null,null,null,null,null,null,null,null,null,null,null,6,1,null,null,null,null,"Åpen","Mix JC","4x",null,"500 m","Norske Studenters Roklub 2","Trygve Bye Løken\nMarie Glomnes Rudi\nMartine Egeland Hovland\nAlexander Swensen",null,375,null,"Norske Studenters Roklub",null,null,"22.04.2003\n25.07.2003\n17.02.2003\n12.05.2002","Nei\nNei\nNei\nNei","M220403TRY08\nK250703MAR04\nK170203MAR03\nM120502ALE07","7281238\n5247452\n6211373\n5779831","26.04.2016\n26.04.2016\n26.04.2016\n26.04.2016","Norske Studenters Roklub\nNorske Studenters Roklub\nNorske Studenters Roklub\nNorske Studenters Roklub","Tor-geir Myhrer\n","90060234\n","rosjefen@gmail.com\n","17.08.2016\n17.08.2016\n17.08.2016\n17.08.2016"]
[{"$f":"D244&R244","v":"1340"},1,"Lør 27.8",134,null,{"$f":"VLOOKUP($D244,Tidsplan!$B:$D,3,FALSE)","v":"1525"},{"$f":"VLOOKUP($D244,Tidsplan!$B:$D,2,FALSE)","v":""},null,null,null,null,null,null,null,null,"K",null,0,null,null,null,null,null,"H","H J A","4-",0,"500 m"]
[{"$f":"D245&R245","v":"1341"},{"$f":"OFFSET(B245,-1,0)","v":1},"Lør 27.8",134,null,{"$f":"OFFSET(F245,-1,0)","v":"1525"},null,null,null,null,null,null,null,null,null,null,1,1,1,null,null,null,null,"H","H J A","4-",null,"500 m","Norske Studenters Roklub 1","Andreas Clifford\nGustav Daniel Hagen Breivik\nPierre-Louis Bret\nKristian Søhr",null,375,null,"Norske Studenters Roklub",null,null,"29.04.1999\n31.01.1999\n31.05.1999\n14.04.2000","Ja\nJa\nJa\nNei","M290499AND03\nM310199GUS03\nM310599PIE02\nM140400KRI01","2658162\n7274540\n6135379\n4077003","26.04.2016\n11.03.2016\n26.04.2016\n26.04.2016","Norske Studenters Roklub\nNorske Studenters Roklub,Nøklevann Ro- og Padleklubb,Ormsund Roklub\nNorske Studenters Roklub\nNorske Studenters Roklub","Tor-geir Myhrer\n","90060234\n","rosjefen@gmail.com\n","17.08.2016\n17.08.2016\n17.08.2016\n17.08.2016"]
[{"$f":"D246&R246","v":"1342"},{"$f":"OFFSET(B246,-1,0)","v":1},"Lør 27.8",134,null,{"$f":"OFFSET(F246,-1,0)","v":"1525"},null,null,null,null,null,null,null,null,null,null,1,2,1,null,null,null,null,"H","H J A","4-",null,"500 m","Bærum Roklubb 1","Jaime Aalders\nEirik Myreng Hauge\nHermann Hovde\nTade Phanke",null,375,null,"Bærum Roklubb",null,null,"16.09.1999\n17.04.2000\n01.01.1999\n20.10.1999","Ja\nNei\nJa\nJa","M160999JAI02\nM170400EIR02\nM010199HER12\nM201099TAD02","5508697\n5005277\n5632327\n6760197","29.04.2016\n29.04.2016\n29.04.2016\n29.04.2016","Bærum Roklubb\nBærum Roklubb\nBærum Roklubb\nBærum Roklubb","Anders Hovde\n","90775520\n","anders.hovde@tns-gallup.no\n","17.08.2016\n17.08.2016\n17.08.2016\n17.08.2016"]
[{"$f":"D247&R247","v":"1343"},{"$f":"OFFSET(B247,-1,0)","v":1},"Lør 27.8",134,null,{"$f":"OFFSET(F247,-1,0)","v":"1525"},null,null,null,null,null,null,null,null,null,null,1,3,1,null,null,null,null,"H","H J A","4-",null,"500 m","Ormsund Roklub 1","Thomas Soma Ferguson\nHerman Mathisen\nMagnus Nicolai Hofbauer\nOskar Jørgensen",null,375,null,"Ormsund Roklub",null,null,"14.07.1998\n17.01.1999\n18.09.1999\n08.04.1998","Ja\nJa\nJa\nJa","M140798THO03\nM170199HER02\nM180999MAG02\nM080498OSK02","5662311\n5667123\n4587638\n7249866","11.03.2016\n\n11.03.2016\n11.03.2016","Ormsund Roklub\nSarpsborg Roklubb - Roing\nOrmsund Roklub\nOrmsund Roklub","Antje Peine\n","+4792863244\n","antjep13@gmail.com\n","17.08.2016\n17.08.2016\n17.08.2016\n17.08.2016"]
["1344",1,"Lør 27.8",134,null,"1525",null,null,null,null,null,null,null,null,null,null,1,4,1,null,null,null,null,"H","H J A","4-",null,"500 m","Norske Studenters Roklub 2","Edvart Solberg Svingen\nCarl Oscar Christensen Hoff\nDavid Alexander Anderson\nOliver Alexander Petterson Stubbs",null,375,null,"Norske Studenters Roklub",null,null,"02.11.1998\n29.12.1998\n07.09.1998\n05.09.1998","Ja\nJa\nJa\nJa","M021198EDV03\nM291298CAR02\nM070998DAV02\nM050998OLI01","6033989\n5296631\n5296623\n7311395","26.04.2016\n26.04.2016\n26.04.2016\n","Norske Studenters Roklub\nNorske Studenters Roklub\nNorske Studenters Roklub\nNorske Studenters Roklub","Tor-geir Myhrer\n","90060234\n","rosjefen@gmail.com\n","17.08.2016\n17.08.2016\n17.08.2016\n17.08.2016"]
["1350",0,"Lør 27.8",135,null,{"$f":"VLOOKUP($D249,Tidsplan!$B:$D,3,FALSE)","v":"1530"},{"$f":"VLOOKUP($D249,Tidsplan!$B:$D,2,FALSE)","v":""},null,null,null,null,null,null,null,null,"K",null,0,null,null,null,null,null,"H","S","2-",0,500]
["1351",0,"Lør 27.8",135,null,{"$f":"VLOOKUP($D250,Tidsplan!$B:$D,3,FALSE)","v":"1530"},null,null,null,null,null,null,null,null,null,null,1,1,1,null,null,null,null,"H","H S","2-",null,"500 m","Ormsund Roklub 1","Audun Grepperud\nMorten Grepperud",null,325,null,"Ormsund Roklub",null,null,"02.06.1996\n13.10.1962","Ja\nJa","M020696AUD01\nM131062MOR02","4399997\n5663466","11.03.2016\n","Ormsund Roklub\nOrmsund Roklub","Antje Peine\n","+4792863244\n","antjep13@gmail.com\n","17.08.2016\n17.08.2016"]
["1360",1,"Lør 27.8",136,null,{"$f":"VLOOKUP($D251,Tidsplan!$B:$D,3,FALSE)","v":"1535"},{"$f":"VLOOKUP($D251,Tidsplan!$B:$D,2,FALSE)","v":""},null,null,null,null,null,null,null,"S",null,null,0,null,null,null,null,null,"D","D J A","4x",0,"500 m"]
["1361",{"$f":"OFFSET(B252,-1,0)","v":1},"Lør 27.8",136,null,{"$f":"OFFSET(F252,-1,0)","v":"1535"},null,null,null,null,null,null,null,null,null,null,1,1,null,null,null,null,null,"D","D J A","4x",null,"500 m","Bærum Roklubb 1","Synnøve Gillebo Foss\nStina Halvorsen Vad\nKlara Moene Omholt\nMina West",null,375,null,"Bærum Roklubb",null,null,"11.08.1999\n26.09.2000\n17.03.1998\n01.04.1998","Ja\nNei\nJa\nJa","K110899SYN02\nK260900STI02\nK170398KLA02\nK010498MIN06","5218490\n6778019\n5645099\n6837551","29.04.2016\n29.04.2016\n29.04.2016\n29.04.2016","Bærum Roklubb\nBærum Roklubb\nBærum Roklubb\nBærum Roklubb","Anders Hovde\n","90775520\n","anders.hovde@tns-gallup.no\n","17.08.2016\n17.08.2016\n17.08.2016\n17.08.2016"]
["1362",1,"Lør 27.8",136,null,"1535",null,null,null,null,null,null,null,null,null,null,1,2,null,null,null,null,null,"D","D J A","4x",null,"500 m","Norske Studenters Roklub 1","Elisabeth Astrup Wiik\nHanna Kaupang Petersen\nRebekka Øvensen Aanderaa\nHedda Dagestad-Larsen ",null,375,null,"Norske Studenters Roklub",null,null,"01.11.1998\n15.09.2000\n11.10.2000\n30.11.2000","Ja\nNei\nNei\nNei","K011198ELI04\nK150900HAN01\nK111000REB03\nK301100HED02","5993806\n2581292\n5673868\n6722633","26.04.2016\n26.04.2016\n26.04.2016\n26.04.2016","Norske Studenters Roklub\nNorske Studenters Roklub\nNorske Studenters Roklub\nNorske Studenters Roklub","Tor-geir Myhrer\n","90060234\n","rosjefen@gmail.com\n","17.08.2016\n17.08.2016\n17.08.2016\n17.08.2016"]
["1363",1,"Lør 27.8",136,null,"1535",null,null,null,null,null,null,null,null,null,null,1,3,null,null,null,null,null,"D","D J A","4x",null,"500 m","Ormsund Roklub 1","Serine Camilie Aaker\nAnna Mesel\nRikke Aslaksen Wåle",null,375,null,"Ormsund Roklub",null,null,"05.06.1999\n03.04.1999\n19.03.1999","Ja\nJa\nJa","K050699SER01\nK030499ANN01\nK190399RIK03","1626570\n1626245\n6077550","\n11.03.2016\n11.03.2016","Ukjent/ikke registrert klubb\nOrmsund Roklub\nOrmsund Roklub","Antje Peine\n","+4792863244\n","antjep13@gmail.com\n","17.08.2016\n17.08.2016\n17.08.2016"]
["1370",0,"Lør 27.8",137,null,{"$f":"VLOOKUP($D255,Tidsplan!$B:$D,3,FALSE)","v":"1540"},{"$f":"VLOOKUP($D255,Tidsplan!$B:$D,2,FALSE)","v":""},null,null,null,null,null,null,null,"S",null,null,0,null,null,null,null,null,"H","S L"," 2x",0,500]
["1380",1,"Lør 27.8",138,null,{"$f":"VLOOKUP($D256,Tidsplan!$B:$D,3,FALSE)","v":"1545"},{"$f":"VLOOKUP($D256,Tidsplan!$B:$D,2,FALSE)","v":""},null,null,null,null,null,null,null,"S",null,null,0,null,null,null,null,null,"D","D SLv","1x",0,"500 m"," "]
["1281",{"$f":"OFFSET(B257,-1,0)","v":1},"Lør 27.8",128,null,{"$f":"OFFSET(F257,-1,0)","v":"1545"},null,null,null,null,null,null,null,null,null,null,1,1,null,null,null,null,null,"D","D SLv","1x",null,"500 m","Drammen Roklubb ","Fanny Lucie Røed",null,275,null,"Drammen Roklubb ","Nei",null,"20.09.1994","Ja","K200994FAN02","7073229","15.03.2016","Drammen Roklubb ","Øyvind Leirset","40069485","oeylei@online.no;Oeylei@online.no","17.08.2016"]
["1282",1,"Lør 27.8",128,null,"1545",null,null,null,null,null,null,null,null,null,null,1,2,null,null,null,null,null,"D","D SLv","1x",null,"500 m","Drammen Roklubb ","Mari Evje Borgersen",null,275,null,"Drammen Roklubb ","Nei",null,"01.07.1996","Ja","K010796MAR09","5923049","15.03.2016","Drammen Roklubb ","Øyvind Leirset","40069485","oeylei@online.no;Oeylei@online.no","17.08.2016"]
["1390",1,"Lør 27.8",139,null,{"$f":"VLOOKUP($D259,Tidsplan!$B:$D,3,FALSE)","v":"1550"},{"$f":"VLOOKUP($D259,Tidsplan!$B:$D,2,FALSE)","v":""},null,null,null,null,null,null,null,"S","K",null,0,null,null,null,null,null,"H","H S/HM","4x",0,"500 m"," "]
["1400",1,"Lør 27.8",140,null,{"$f":"VLOOKUP($D260,Tidsplan!$B:$D,3,FALSE)","v":"1555"},{"$f":"VLOOKUP($D260,Tidsplan!$B:$D,2,FALSE)","v":""},null,null,null,null,null,null,null,null,"K",null,0,null,null,null,null,null,"H","H J A","2x",0,"500 m "]
["1401",{"$f":"OFFSET(B261,-1,0)","v":1},"Lør 27.8",140,null,{"$f":"OFFSET(F261,-1,0)","v":"1555"},null,null,null,null,null,null,null,null,null,null,1,1,null,null,null,null,null,"H","H J A","2x",null,"500 m ","Bærum Roklubb 2","Hermann Hovde\nTade Phanke",null,325,null,"Bærum Roklubb",null,null,"01.01.1999\n20.10.1999","Ja\nJa","M010199HER12\nM201099TAD02","5632327\n6760197","29.04.2016\n29.04.2016","Bærum Roklubb\nBærum Roklubb","Anders Hovde\n","90775520\n","anders.hovde@tns-gallup.no\n","17.08.2016\n17.08.2016"]
["1402",1,"Lør 27.8",140,null,"1555",null,null,null,null,null,null,null,null,null,null,1,2,null,null,null,null,null,"H","H J A","2x",null,"500 m ","Moss Roklubb 1","Alfred Eliassen\nVegard Hjortkær Sæby",null,325,null,"Moss Roklubb",null,null,"06.12.1999\n07.07.1998","Ja\nJa","M061299ALF01\nM070798VEG01","2747765\n2696077","05.04.2016\n05.04.2016","Moss Roklubb\nMoss Roklubb","Jon Rekstad\n","92252667\n","rekstad0@gmail.com\n","17.08.2016\n17.08.2016"]
["1403",1,"Lør 27.8",140,null,"1555",null,null,null,null,null,null,null,null,null,null,1,3,null,null,null,null,null,"H","H J A","2x",null,"500 m ","Norske Studenters Roklub 1","Andreas Clifford\nPierre-Louis Bret",null,325,null,"Norske Studenters Roklub",null,null,"29.04.1999\n31.05.1999","Ja\nJa","M290499AND03\nM310599PIE02","2658162\n6135379","26.04.2016\n26.04.2016","Norske Studenters Roklub\nNorske Studenters Roklub","Tor-geir Myhrer\n","90060234\n","rosjefen@gmail.com\n","17.08.2016\n17.08.2016"]
[{"$f":"D264&R264","v":"1404"},{"$f":"OFFSET(B264,-1,0)","v":1},"Lør 27.8",140,null,{"$f":"OFFSET(F264,-1,0)","v":"1555"},null,null,null,null,null,null,null,null,null,null,1,4,null,null,null,null,null,"H","H J A","2x",null,"500 m ","Ormsund Roklub 1","Kristian Løken\nHauk Norum Sitre",null,325,null,"Ormsund Roklub",null,null,"21.06.1999\n29.06.1999","Ja\nJa","M210699KRI05\nM290699HAU02","5859758\n7203449","11.03.2016\n25.04.2016","Ormsund Roklub\nOrmsund Roklub","Antje Peine\n","+4792863244\n","antjep13@gmail.com\n","17.08.2016\n17.08.2016"]
[{"$f":"D265&R265","v":"1405"},{"$f":"OFFSET(B265,-1,0)","v":1},"Lør 27.8",140,null,{"$f":"OFFSET(F265,-1,0)","v":"1555"},null,null,null,null,null,null,null,null,null,null,1,5,null,null,null,null,null,"H","H J A","2x",null,"500 m ","Bærum Roklubb 1","Jaime Aalders\nEirik Myreng Hauge",null,325,null,"Bærum Roklubb",null,null,"16.09.1999\n17.04.2000","Ja\nNei","M160999JAI02\nM170400EIR02","5508697\n5005277","29.04.2016\n29.04.2016","Bærum Roklubb\nBærum Roklubb","Anders Hovde\n","90775520\n","anders.hovde@tns-gallup.no\n","17.08.2016\n17.08.2016"]
[{"$f":"D266&R266","v":"1410"},1,"Lør 27.8",141,null,{"$f":"VLOOKUP($D266,Tidsplan!$B:$D,3,FALSE)","v":"1600"},{"$f":"VLOOKUP($D266,Tidsplan!$B:$D,2,FALSE)","v":""},null,null,null,null,null,null,null,null,"K",null,0,".",".",".",null,null,"H","H J B","4x",{"$f":"IF(R266<>0,LEFT(Z266,1),0)*1","v":0},"500 m"]
[{"$f":"D267&R267","v":"1411"},{"$f":"OFFSET(B267,-1,0)","v":1},"Lør 27.8",141,null,{"$f":"OFFSET(F267,-1,0)","v":"1600"},null,null,null,null,null,null,null,null,null,null,1,1,1,null,null,null,null,"H","H J B","4x",null,"500 m","Bærum Roklubb 2","Brage Bragstad\nJakob Holt\nVitus Aparicio Tjøm\nFredrik Vistung",null,375,null,"Bærum Roklubb",null,null,"12.09.2000\n03.09.2001\n26.01.2001\n01.01.2001","Ja\nJa\nJa\nJa","M120900BRA03\nM030901JAK02\nM260101VIT01\nM010101FRE60","4908711\n5494644\n5062270\n7267551","29.04.2016\n29.04.2016\n29.04.2016\n","Bærum Roklubb\nBærum Roklubb\nBærum Roklubb\nBærum Roklubb","Anders Hovde\n","90775520\n","anders.hovde@tns-gallup.no\n","17.08.2016\n17.08.2016\n17.08.2016\n17.08.2016"]
[{"$f":"D268&R268","v":"1412"},{"$f":"OFFSET(B268,-1,0)","v":1},"Lør 27.8",141,null,{"$f":"OFFSET(F268,-1,0)","v":"1600"},null,null,null,null,null,null,null,null,null,null,1,2,1,null,null,null,null,"H","H J B","4x",null,"500 m","Norske Studenters Roklub 1","Petter Arnøy\nNicolai Fongaard\nHugo Haavind\nArne Theodor Gjelsten",null,375,null,"Norske Studenters Roklub",null,null,"16.02.2001\n06.08.2001\n17.05.2001\n05.03.2000","Ja\nJa\nJa\nJa","M160201PET02\nM060801NIC02\nM170501HUG03\nM050300ARN02","4179438\n4916382\n5178950\n6071908","26.04.2016\n26.04.2016\n\n","Norske Studenters Roklub\nNorske Studenters Roklub\nNorske Studenters Roklub\nNorske Studenters Roklub","Tor-geir Myhrer\n","90060234\n","rosjefen@gmail.com\n","17.08.2016\n17.08.2016\n17.08.2016\n17.08.2016"]
["1413",1,"Lør 27.8",141,null,"1600",null,null,null,null,null,null,null,null,null,null,1,3,1,null,null,null,null,"H","H J B","4x",null,"500 m","Christiania Roklub 1/\nAalesund","Sverre Engebretsen\nTinius Wilhelmsen\nAndreas Dugstad Sørskaar\nFredrik Reite",null,375,null,"Christiania Roklub",null,null,"18.02.2001\n18.10.2001\n10.06.2001\n26.07.2001","Ja\nJa\nJa\nJa","M180201SVE01\nM181001TIN04\nM100601AND02\nM260701FRE01","4161599\n6005810\n4221227\n6728505","\n06.03.2016\n24.03.2016\n","Ukjent/ikke registrert klubb\nChristiania Roklub\nChristiania Roklub\nAalesunds Roklub","Grete Isachsen Stokke\n","91338845\n","grisach@gmail.com\n","16.08.2016\n16.08.2016\n16.08.2016\n16.08.2016"]
["1414",1,"Lør 27.8",141,null,"1600",null,null,null,null,null,null,null,null,null,null,1,4,1,null,null,null,null,"H","H J B","4x",null,"500 m","Bærum Roklubb 1","Petter Bratli\nØystein Dingen Endresen\nsindre fuglseth\nLars Moberg Værnes",null,375,null,"Bærum Roklubb",null,null,"17.06.2000\n07.06.2000\n26.09.2000\n02.06.2000","Ja\nJa\nJa\nJa","M170600PET02\nM070600ØYS01\nM260900SIN02\nM020600LAR02","5956457\n5372192\n6073987\n4487587","29.04.2016\n29.04.2016\n29.04.2016\n29.04.2016","Bærum Roklubb\nBærum Roklubb\nBærum Roklubb\nBærum Roklubb","Anders Hovde\n","90775520\n","anders.hovde@tns-gallup.no\n","17.08.2016\n17.08.2016\n17.08.2016\n17.08.2016"]
["1420",1,"Lør 27.8",142,null,{"$f":"VLOOKUP($D271,Tidsplan!$B:$D,3,FALSE)","v":"1605"},{"$f":"VLOOKUP($D271,Tidsplan!$B:$D,2,FALSE)","v":""},null,null,null,null,null,null,null,null,"K",null,0,null,null,null,null,null,"H","H M","1x",0,"500 m",null," "]
["1421",{"$f":"OFFSET(B272,-1,0)","v":1},"Lør 27.8",142,null,{"$f":"OFFSET(F272,-1,0)","v":"1605"},null,null,null,null,null,null,null,null,null,null,1,1,null,null,null,null,null,"H","H M","1x",null,"500 m","Bærum Roklubb","Anders Hovde",null,275,null,"Bærum Roklubb","Nei",null,"21.04.1965","Ja","M210465AND01","6896172",null,"Bærum Roklubb","Anders Hovde","90775520","anders.hovde@tns-gallup.no","17.08.2016"]
[{"$f":"D273&R273","v":"1422"},{"$f":"OFFSET(B273,-1,0)","v":1},"Lør 27.8",142,null,{"$f":"OFFSET(F273,-1,0)","v":"1605"},null,null,null,null,null,null,null,null,null,null,1,2,null,null,null,null,null,"H","H M","1x",null,"500 m","Bestumkilen Roklubb","Ole Thomas Nøklegaard",null,275,null,"Bestumkilen Roklubb","Nei",null,"14.02.1966","Ja","M140266OLE03","5277043","08.08.2016","Bestumkilen Roklubb","Sigbjørn Birkeland","93480893","sigbjorn.birkeland@storebrand.no;sigbjorn.birkeland@online.no","16.08.2016"]
["1423",1,"Lør 27.8",142,null,"1605",null,null,null,null,null,null,null,null,null,null,1,3,null,null,null,null,null,"H","H M","1x",null,"500 m","Bærum Roklubb","Espen Finanger",null,275,null,"Bærum Roklubb","Nei",null,"19.05.1975","Ja","M190575ESP02","587671",null,"Bærum Roklubb","Anders Hovde","90775520","anders.hovde@tns-gallup.no","17.08.2016"]
["1424",1,"Lør 27.8",142,null,"1605",null,null,null,null,null,null,null,null,null,null,1,4,null,null,null,null,null,"H","H M","1x",null,"500 m","Bærum Roklubb","Trond Amundsen",null,275,null,"Bærum Roklubb","Nei",null,"09.01.1968","Ja","M090168TRO02","6779720",null,"Bærum Roklubb","Anders Hovde","90775520","anders.hovde@tns-gallup.no","17.08.2016"]
["142",1,"Lør 27.8",142," ","1605",null,null,null,null,null,null,null,null,null,null,null,null,null,null,null,null,null,"H","Master","1x"," ",500,"Porsgrunn Roklubb","Roger Beggerud",null,550,"E","Porsgrunn Roklubb",null,null,null,null,null,null,null,null,"Dag Mogstad"," ","Dag Mogstad <dagmog@hotmail.com>","2016-08-23"]
["1430",1,"Lør 27.8",143,null,{"$f":"VLOOKUP($D277,Tidsplan!$B:$D,3,FALSE)","v":"1610"},{"$f":"VLOOKUP($D277,Tidsplan!$B:$D,2,FALSE)","v":""},null,null,null,null,null,null,null," ",null,null,0,null,null,null,null,null,"D","D M","1x",0,"500 m"]
["1431",{"$f":"OFFSET(B278,-1,0)","v":1},"Lør 27.8",143,null,{"$f":"OFFSET(F278,-1,0)","v":"1610"},null,null,null,null,null,null,null,null,null,null,1,1,1,null,null,null,null,"D","D M","1x",null,"500 m","Christiania Roklub","Elisabeth Couto",null,275,null,"Christiania Roklub","Nei",null,"15.08.1974","Ja","K150874ELI05","5663938","13.07.2016","Christiania Roklub","Grete Isachsen Stokke","91338845","grisach@gmail.com","16.08.2016"]
[{"$f":"D279&R279","v":"1440"},1,"Lør 27.8",144,null,{"$f":"VLOOKUP($D279,Tidsplan!$B:$D,3,FALSE)","v":{"$error":"#N/A"}},{"$f":"VLOOKUP($D279,Tidsplan!$B:$D,2,FALSE)","v":{"$error":"#N/A"}},null,null,null,null,null,null,null,"S",null,null,0,null,null,null,null,null,"D","D  S","8+",{"$f":"IF(R279<>0,LEFT(Z279,1),0)*1","v":0},"500 m"]

{"sheet":"Søndg løp","index":5,"n_rows":48,"n_cols":8,"rows_kept":48,"cut":false,"hidden":false,"merged":[[0,0,0,7],[2,1,2,2],[5,0,5,7]]}
["LØPSOPPSETT SØNDAG"]
["DAG","Løp nr.","Kjønn","Klasse","Båttype","Distanse","ANNET","Startkontingent"]
["Søndag","FORSØKSLØP\nFORSØKSLØP"]
[null,201,"H","JB","1x",500,"K",275]
[null,202,"D","JB","1x",500," ",275]
["Pause\nLAGLEDERMØTE kl. 11.00"]
[null,203,"D/H","Nybeg","Åpen",500," ",150]
[null,204,"D/H","JD","1x",500,null,275]
[null,205,"D","JA","8+",500,"SP/K",475]
[null,206,"H","JC","1x",500," ",275]
[null,207,"D","JC","2x",500," ",325]
[null,208,"D","S","1x",500,"K",275]
[null,209,"D","JA","2x",500,"K",325]
[null,210,"D","S","2-",500,null,325]
[null,211,"H","JA","1x",500,"SP",275]
[null,212,"H","S/Master","4-",500,"SP/K",375]
[null,213,"D","Master","4x",500,null,375]
[null,214,"H","JA","2-",500,"K",325]
[null,215,"H","S","1x",500," SP",275]
[null,{"$f":"B19+1","v":216},"D","JA","4-",500,"K",375]
[null,{"$f":"B20+1","v":217},"H","S L ","1x",500,"SP",275]
[null,218,"D","S","2x",500,"SP/K ",325]
[null,219,"H","JC","2x",500," ",325]
[null,220,"D","JC","1x",500," ",275]
[null,221,"H","JB","2x",500," ",325]
[null,222,"D","JA","1x",500,"SP",275]
[null,223,"D","JB","4x",500," ",375]
[null,224,"H","Master","2x",500,"K",325]
[null,225,"D","Master","2x",500," ",325]
[null,226,"D","S L ","2x",500,"SP",325]
[null,227,"H","S","2x",500,"K",325]
[null,228,"D","S","4x",500,"SP",375]
[null,229,"H","JA","4x",500,"K",375]
[null,230,"D","JA","2-",500,"K",325]
[null,231,"H","JB","4-",500," ",375]
[null,232,"D","JB","2x",500," ",325]
[null,233,"MIX","JC","4x",500,null,375]
[null,234,"H","JA","4-",500,"SP",375]
[null,235,"H","S","2-",500,"K ",325]
[null,236,"D","JA","4x",500,"K",375]
[null,237,"H","S L"," 2x",500,"K",325]
[null,238,"D","S L ","1x",500,null,275]
[null,239,"H","S/Master","4x",500," ",375]
[null,240,"H","JA","2x",500,"SP",325]
[null,241,"H","JB","4x",500," ",375]
[null,242,"H","Master","1x",500," ",275]
[null,243,"D","Master","1x",500," K",275]
[null,244,"MIX","Åpen","8+",500," ",475]

{"sheet":"LØPSOPPSETT OPPSLAG","index":6,"n_rows":203,"n_cols":12,"rows_kept":203,"cut":false,"hidden":true,"merged":[[48,1,48,2],[51,0,51,7]]}
["LØPSOPPSETT LØRDAG"]
["Dag","Løp nr.","Kjønn","Klasse","Båttype","Distanse","ANNET","START\nFINALE"]
["LØRDAG","FORSØKSLØP\nFORSØKSLØP"]
[null,101,"H","JB","1x",500," ","12:45:00"]
[null,102,"D","JB","1x",500,"K","14:40:00"]
["Pause\nLAGLEDERMØTE kl. 11.00"]
[]
[null,103,"D/H","Nybeg","Åpen",500," ","12:00:00"]
[null,104,"D/H","JD","2x",500," ","12:05:00"]
[null,105,"H","JA","8+",500,"SP/K","14:00:00"]
[null,106,"H","JC","1x",500," ","12:10:00"]
[null,107,"D","JC","2x",500," ","12:20:00"]
[null,108,"D","S","1x",500,"SP","12:25:00"]
[null,109,"D","JA","2x",500,"SP","12:35:00"]
[null,110,"D","S","2-",500,null,"14:20:00"]
[null,111,"H","JA","1x",500,"K","12:40:00"]
[null,112,"H","S/Master","4-",500," ","13:10:00"]
[null,113,"D","Master","4x",500,"K"]
[null,114,"H","JA","2-",500,"SP"," "]
[null,115,"H","S","1x",500,"K "," "]
[null,116,"H","S L ","1x",500,"K "," "]
[null,117,"D","S","2x",500,null,"13:20:00"]
[null,118,"H","JC","2x",500," ","13:30:00"]
[null,119,"D","JC","1x",500," ","13:40:00"]
[null,120,"H","JB","2x",500,"K","13:45:00"]
[null,121,"D","JA","1x",500,"K","13:55:00"]
[null,122,"D","JB","4x",500,"K","14:05:00"]
[null,123,"H","Master","2x",500," ","15:15:00"]
[null,124,"D","Master","2x",500,"K","14:15:00"]
[null,125,"D","S L"," 2x",500,"K "," "]
[null,126,"H","S","2x",500,"SP"," "]
[null,127,"D","S","4x",500,"K ","14:25:00"]
[null,128,"H","JA","4x",500,"SP","14:30:00"]
[null,129,"H","JB","4-",500,"K","15:05:00"]
[null,130,"D","JB","2x",500,"K","13:05:00"]
[null,131,"MIX","JC","4x",500,null,"14:45:00"]
[null,132,"H","JA","4-",500,"K","14:50:00"]
[null,133,"H","S","2-",500,"K"," "]
[null,134,"D","JA","4x",500,"SP","14:55:00"]
[null,135,"H","S L"," 2x",500,"SP"," "]
[null,136,"D","S L"," 1x",500,"SP"," "]
[null,137,"H","S/Master","4x",500,"SP/K"," "]
[null,138,"H","JA","2x",500,"K","15:00:00"]
[null,139,"H","JB","4x",500,"K","14:35:00"]
[null,140,"H","Master","1x",500,"K","14:10:00"]
[null,141,"D","Master","1x",500," "," "]
[null,142,"D","S","8+",500,"SP","15:10:00"]
["DAG","Løp nr.","Kjønn","Klasse","Båttype","Distanse"]
["Søndag","FORSØKSLØP\nFORSØKSLØP"]
[null,201,"H","JB","1x",500,"K",250]
[null,202,"D","JB","1x",500," ",250]
["Pause\nLAGLEDERMØTE kl. 11.00"]
[null,203,"D/H","Nybeg","Åpen",500," ",120]
[null,204,"D/H","JD","1x",500,null,250]
[null,205,"D","JA","8+",500,"SP/K",450]
[null,206,"H","JC","1x",500," ",250]
[null,207,"D","JC","2x",500," ",300]
[null,208,"D","S","1x",500,"K",250]
[null,209,"D","JA","2x",500,"K",300]
[null,210,"D","S","2-",500,null,300]
[null,211,"H","JA","1x",500,"SP",250]
[null,212,"H","S/Master","4-",500,"SP/K",350]
[null,213,"D","Master","4x",500,null,350]
[null,214,"H","JA","2-",500,"K",300]
[null,215,"H","S","1x",500," SP",250]
[null,216,"H","S L ","1x",500,"SP",250]
[null,217,"D","S","2x",500,"SP/K ",300]
[null,218,"H","JC","2x",500," ",300]
[null,219,"D","JC","1x",500," ",250]
[null,220,"H","JB","2x",500," ",300]
[null,221,"D","JA","1x",500,"SP",250]
[null,222,"D","JB","4x",500," ",350]
[null,223,"H","Master","2x",500,"K",300]
[null,224,"D","Master","2x",500," ",300]
[null,225,"D","S L ","2x",500,"SP",300]
[null,226,"H","S","2x",500,"K",300]
[null,227,"D","S","4x",500,"SP",350]
[null,228,"H","JA","4x",500,"K",350]
[null,229,"H","JB","4-",500," ",350]
[null,230,"D","JB","2x",500," ",300]
[null,231,"MIX","JC","4x",500,null,350]
[null,232,"H","JA","4-",500,"SP",350]
[null,233,"H","S","2-",500,"K ",300]
[null,234,"D","JA","4x",500,"K",350]
[null,235,"H","S L"," 2x",500,"K",300]
[null,236,"D","S L ","1x",500,null,250]
[null,237,"H","S/Master","4x",500," ",350]
[null,238,"H","JA","2x",500,"SP",300]
[null,239,"H","JB","4x",500," ",350]
[null,240,"H","Master","1x",500," ",250]
[null,241,"D","Master","1x",500," K",250]
[null,242,"MIX","Åpen","8+",500," ",450]
[]
[]
[]
[]
[]
[]
[]
[]
[]
[]
[]
[]
[]
[]
[]
[]
[]
[]
[]
[]
[]
[]
[]
[]
[]
[]
[]
[]
[]
[]
[]
[]
[]
[]
[]
[]
[]
[]
[]
[]
[]
[]
[]
[]
[]
[]
[]
[]
[]
[]
[]
[]
[]
[]
[]
[]
[]
[]
[]
[]
[]
[]
[]
[]
[]
[]
[]
[]
[]
[]
[]
[]
[]
[]
[]
[]
[]
[]
[]
[]
[]
[]
[]
[]
[]
[]
[]
[]
[]
[]
[]
[]
[]
[]
[]
[]
[]
[]
[]
[]
[]
[]
[]
[]
[]
[]
[]
[]
[]
[]
[null,null,null,null,null,null,null,null,null,null,null,{"$f":"VLOOKUP(\"\"&B203,'Lørdag løp'!A6+'LØPSOPPSETT OPPSLAG'!A6,2,FALSE)","v":{"$error":"#VALUE!"}}]

{"sheet":"Søndag Trekning","index":7,"n_rows":300,"n_cols":46,"rows_kept":300,"cut":false,"hidden":false,"merged":[]}
[{"$f":"COLUMNS($A1:A1)","v":1},{"$f":"COLUMNS($A1:B1)","v":2},{"$f":"COLUMNS($A1:C1)","v":3},{"$f":"COLUMNS($A1:D1)","v":4},{"$f":"COLUMNS($A1:E1)","v":5},{"$f":"COLUMNS($A1:F1)","v":6},{"$f":"COLUMNS($A1:G1)","v":7},{"$f":"COLUMNS($A1:H1)","v":8},{"$f":"COLUMNS($A1:I1)","v":9},{"$f":"COLUMNS($A1:J1)","v":10},{"$f":"COLUMNS($A1:K1)","v":11},{"$f":"COLUMNS($A1:L1)","v":12},{"$f":"COLUMNS($A1:M1)","v":13},{"$f":"COLUMNS($A1:N1)","v":14},{"$f":"COLUMNS($A1:O1)","v":15},{"$f":"COLUMNS($A1:P1)","v":16},{"$f":"COLUMNS($A1:Q1)","v":17},{"$f":"COLUMNS($A1:R1)","v":18},19,20,21,{"$f":"COLUMNS($A1:V1)","v":22},{"$f":"COLUMNS($A1:W1)","v":23},{"$f":"COLUMNS($A1:X1)","v":24},{"$f":"COLUMNS($A1:Y1)","v":25},{"$f":"COLUMNS($A1:Z1)","v":26},null,{"$f":"COLUMNS($A1:AB1)","v":28},{"$f":"COLUMNS($A1:AC1)","v":29},{"$f":"COLUMNS($A1:AD1)","v":30},{"$f":"COLUMNS($A1:AE1)","v":31},{"$f":"COLUMNS($A1:AF1)","v":32},{"$f":"COLUMNS($A1:AG1)","v":33},{"$f":"COLUMNS($A1:AH1)","v":34},{"$f":"COLUMNS($A1:AI1)","v":35},{"$f":"COLUMNS($A1:AJ1)","v":36},{"$f":"COLUMNS($A1:AK1)","v":37},{"$f":"COLUMNS($A1:AL1)","v":38},{"$f":"COLUMNS($A1:AM1)","v":39},{"$f":"COLUMNS($A1:AN1)","v":40},{"$f":"COLUMNS($A1:AO1)","v":41},{"$f":"COLUMNS($A1:AP1)","v":42},{"$f":"COLUMNS($A1:AQ1)","v":43},{"$f":"COLUMNS($A1:AR1)","v":44},{"$f":"COLUMNS($A1:AS1)","v":45},{"$f":"COLUMNS($A1:AT1)","v":46}]
[null,null,null,null,null,null,null,null,null,null,null,null,null,null,null,null,null,null,3,5,6]
[null,null,null,null,null,null,null,null,null,null,null,null,null,null,null,null,null,{"$f":"SUBTOTAL(3,R4:R299)-1","v":242},null,null,null,null,null,null,null,null,{"$f":"SUBTOTAL(9,AA4:AA299)-1","v":{"$error":"#VALUE!"}},null,{"$f":"SUBTOTAL(3,AC4:AC299)-1","v":235}]
["ID","Oppslag","LØPSDAG","LØP NR","Plassering","Start Finale","Start Forsøk","Veiing","Forsøk","Slått ut","Semifinale","Start Forsøk","Rendom 1","random","Sprintmesterskap (S)","Kretsmesterslap (K)","Heat","Startnr","Heat actual","Plassering","Tid","Plass x Heat","Poeng","Kjønn","Klasse","Båttype","Deltakere (seter)","Distanse","Roklubb","ROERE","NC Kvalifisering Nordisk/Baltic","START-KONTIGENT","Etteranmeldt/Strøket","Påmeldene/Betalende klubb","Betaling registrert","Betalingstransaksjon","Fødselsdato","Påmelding innenfor klasse (ja/nei)","Idrettsnummer","Person ID","Betalt lisens","\"Hjemme-klubb\"","Påmeldt av (person)","Mobil","E-post","Påmeldt dato"]
[]
[]
[{"$f":"D7&R7","v":"209F0"},1,"Søn 28.8","209F",null,{"$f":"VLOOKUP($D7,Tidsplan!$B:$D,3,FALSE)","v":"1240"},{"$f":"VLOOKUP($D7,Tidsplan!$B:$D,2,FALSE)","v":"0915"},null,null,null,null,null,null,null," ","K",null,0,null,null,null,null,null,"H","H J B","2x",{"$f":"IF(R7<>0,LEFT(Z7,1),0)*1","v":0},"500 m "]
["209F1",{"$f":"OFFSET(B8,-1,0)","v":1},"Søn 28.8","209F",null,{"$f":"OFFSET(F8,-1,0)","v":"1240"},"0915",null,null,null,null,null,null,{"$f":"RANDBETWEEN(0,1000)","v":716},null,null,1,1,1,null,null,null,null,"D","D J A","2x",null,"500 m ","Bærum Roklubb 1","Synnøve Gillebo Foss\nKlara Moene Omholt",null,325,null,"Bærum Roklubb",null,null,"11.08.1999\n17.03.1998","Ja\nJa","K110899SYN02\nK170398KLA02","5218490\n5645099","29.04.2016\n29.04.2016","Bærum Roklubb\nBærum Roklubb","Anders Hovde\n","90775520\n","anders.hovde@tns-gallup.no\n","17.08.2016\n17.08.2016"]
["209F2",1,"Søn 28.8","209F",null,"1240","0915",null,null,null,null,null,null,27,null,null,1,2,1,null,null,null,null,"D","D J A","2x",null,"500 m ","Christiania Roklub 1","Aurora Olsen Junklesad\nHermine Wilhelmsen",null,325,null,"Christiania Roklub",null,null,"02.12.1998\n23.07.1999","Ja\nJa","K021298AUR02\nK230799HER03","5674631\n5674641","\n06.03.2016","Ukjent/ikke registrert klubb\nChristiania Roklub","Grete Isachsen Stokke\n","91338845\n","grisach@gmail.com\n","16.08.2016\n16.08.2016"]
["209F3",1,"Søn 28.8","209F",null,"1240","0915",null,null,null,null,null,null,652,null,null,1,3,1,null,null,null,null,"D","D J A","2x",null,"500 m ","Drammen Roklubb  1","Karoline Rydland Masch\nSara Seip",null,325,null,"Drammen Roklubb ",null,null,"14.04.2001\n09.05.1998","Nei\nJa","K140401KAR10\nK090598SAR05","7214275\n5313667","06.04.2016\n15.03.2016","Drammen Roklubb \nDrammen Roklubb ","Øyvind Leirset\n","40069485\n","oeylei@online.no;Oeylei@online.no\n","17.08.2016\n17.08.2016"]
["209F4",1,"Søn 28.8","209F",null,"1240","0915",null,null,null,null,null,null,171,null,null,1,4,1,null,null,null,null,"D","D J A","2x",null,"500 m ","Norske Studenters Roklub 1","Hanna Kaupang Petersen\nElisabeth Astrup Wiik",null,325,null,"Norske Studenters Roklub",null,null,"15.09.2000\n01.11.1998","Nei\nJa","K150900HAN01\nK011198ELI04","2581292\n5993806","26.04.2016\n26.04.2016","Norske Studenters Roklub\nNorske Studenters Roklub","Tor-geir Myhrer\n","90060234\n","rosjefen@gmail.com\n","17.08.2016\n17.08.2016"]
["209F5",1,"Søn 28.8","209F",null,"1240","0915",null,null,null,null,null,null,150,null,null,2,5,2,null,null,null,null,"D","D J A","2x",null,"500 m ","Norske Studenters Roklub 2/\nFredrikstad","Emilie Stabe Helvig\nMarie Fensbekk Grønneberg",null,325,null,"Norske Studenters Roklub",null,null,"03.04.1998\n27.12.1998","Ja\nJa","K030498EMI01\nK271298MAR04","5296622\n2633539","26.04.2016\n13.04.2016","Norske Studenters Roklub\nFredriksstad Roklub,Sarpsborg Roklubb - Roing","Tor-geir Myhrer\n","90060234\n","rosjefen@gmail.com\n","17.08.2016\n17.08.2016"]
["209F6",1,"Søn 28.8","209F",null,"1240","0915",null,null,null,null,null,null,780,null,null,2,6,2,null,null,null,null,"D","D J A","2x",null,"500 m ","Ormsund Roklub 1","Rikke Aslaksen Wåle",null,325,null,"Ormsund Roklub",null,null,"19.03.1999","Ja","K190399RIK03","6077550","11.03.2016","Ormsund Roklub","Antje Peine","+4792863244","antjep13@gmail.com","17.08.2016"]
["209F7",1,"Søn 28.8","209F",null,"1240","0915",null,null,null,null,null,null,643,null,null,2,7,2,null,null,null,null,"D","D J A","2x",null,"500 m ","Sarpsborg Roklubb - Roing 1","Kavi Ali\nCornelia Knutsen",null,325,null,"Sarpsborg Roklubb - Roing",null,null,"04.07.1998\n28.12.2000","Ja\nNei","K040798KAV02\nK281200COR02","2739661\n6060150","10.04.2016\n10.04.2016","Sarpsborg Roklubb - Roing\nSarpsborg Roklubb - Roing","Thomas Gundersen\n","91874904\n","Thomas.gundersen@afgruppen.no;thomas.gundersen@afgruppen.no\n","17.08.2016\n17.08.2016"]
[null,null," "]
[{"$f":"D16&R16","v":"221F0"},1,"Søn 28.8","221F",null,{"$f":"VLOOKUP($D16,Tidsplan!$B:$D,3,FALSE)","v":"1350"},{"$f":"VLOOKUP($D16,Tidsplan!$B:$D,2,FALSE)","v":"0925"},null,null,null,null,null,null,null,null,null,null,0,null,null,null,null,null,"D","D J A","1x",{"$f":"IF(R16<>0,LEFT(Z16,1),0)*1","v":0},"500 m"]
["221F1",{"$f":"OFFSET(B17,-1,0)","v":1},"Søn 28.8","221F",null,{"$f":"OFFSET(F17,-1,0)","v":"1350"},"0925",null,null,null,null,null,239,{"$f":"RANDBETWEEN(0,1000)","v":996},null,null,1,1,1,null,null,null,null,"H","H J B","2x",null,"500 m ","Bærum Roklubb 1","Eirik Myreng Hauge\nsindre fuglseth",null,325,null,"Bærum Roklubb",null,null,"17.04.2000\n26.09.2000","Ja\nJa","M170400EIR02\nM260900SIN02","5005277\n6073987","29.04.2016\n29.04.2016","Bærum Roklubb\nBærum Roklubb","Anders Hovde\n","90775520\n","anders.hovde@tns-gallup.no\n","17.08.2016\n17.08.2016"]
["221F2",1,"Søn 28.8","221F",null,"1350","0925",null,null,null,null,null,41,597,null,null,1,2,1,null,null,null,null,"H","H J B","2x",null,"500 m ","Moss Roklubb 1","Jarle Hjortkjær Sæby\nMagnus strømme",null,325,null,"Moss Roklubb",null,null,"17.08.2000\n15.11.2001","Ja\nJa","M170800JAR02\nM151101MAG07","2794789\n6045066","05.04.2016\n05.04.2016","Moss Roklubb\nMoss Roklubb","Jon Rekstad\n","92252667\n","rekstad0@gmail.com\n","17.08.2016\n17.08.2016"]
["221F3",1,"Søn 28.8","221F",null,"1350","0925",null,null,null,null,null,188,65,null,null,1,3,1,null,null,null,null,"H","H J B","2x",null,"500 m ","Drammen Roklubb  1","Bjørn Tarald Rosfjord Wik\nElias Loe Eritsland",null,325,null,"Drammen Roklubb ",null,null,"24.11.2001\n13.02.2001","Ja\nJa","M241101BJØ02\nM130201ELI01","7310641\n6756069","17.08.2016\n15.03.2016","Drammen Roklubb \nDrammen Roklubb ","Øyvind Leirset\n","40069485\n","oeylei@online.no;Oeylei@online.no\n","17.08.2016\n17.08.2016"]
["221F4",1,"Søn 28.8","221F",null,"1350","0925",null,null,null,null,null,353,541,null,null,1,4,1,null,null,null,null,"H","H J B","2x",null,"500 m ","Christiania Roklub 2","Sverre Johan Steinvik Engebretsen\nMartin Dege",null,325,null,"Christiania Roklub",null,null,"18.02.2001\n16.05.2001","Ja\nJa","M180201SVE04\nM160501MAR05","6759915\n6759918","27.05.2016\n","Christiania Roklub\nChristiania Roklub","Grete Isachsen Stokke\n","91338845\n","grisach@gmail.com\n","16.08.2016\n16.08.2016"]
["221F5",1,"Søn 28.8","221F",null,"1350","0925",null,null,null,null,null,461,642,null,null,1,5,1,null,null,null,null,"H","H J B","2x",null,"500 m ","Bærum Roklubb 4","Vitus Aparicio Tjøm\nBrage Bragstad",null,325,null,"Bærum Roklubb",null,null,"26.01.2001\n12.09.2000","Ja\nJa","M260101VIT01\nM120900BRA03","5062270\n4908711","29.04.2016\n29.04.2016","Bærum Roklubb\nBærum Roklubb","Anders Hovde\n","90775520\n","anders.hovde@tns-gallup.no\n","17.08.2016\n17.08.2016"]
["221F1",1,"Søn 28.8","221F",null,"1350","0925",null,null,null,null,null,560,702,null,null,2,1,2,null,null,null,null,"H","H J B","2x",null,"500 m ","Christiania Roklub 1","Tinius Wilhelmsen\nAndreas Dugstad Sørskaar",null,325,null,"Christiania Roklub",null,null,"18.10.2001\n10.06.2001","Ja\nJa","M181001TIN04\nM100601AND02","6005810\n4221227","06.03.2016\n24.03.2016","Christiania Roklub\nChristiania Roklub","Grete Isachsen Stokke\n","91338845\n","grisach@gmail.com\n","16.08.2016\n16.08.2016"]
["221F2",1,"Søn 28.8","221F",null,"1350","0925",null,null,null,null,null,667,39,null,null,2,2,2,null,null,null,null,"H","H J B","2x",null,"500 m ","Norske Studenters Roklub 2","Petter Arnøy\nNicolai Fongaard",null,325,null,"Norske Studenters Roklub",null,null,"16.02.2001\n06.08.2001","Ja\nJa","M160201PET02\nM060801NIC02","4179438\n4916382","26.04.2016\n26.04.2016","Norske Studenters Roklub\nNorske Studenters Roklub","Tor-geir Myhrer\n","90060234\n","rosjefen@gmail.com\n","17.08.2016\n17.08.2016"]
["221F3",1,"Søn 28.8","221F",null,"1350","0925",null,null,null,null,null,670,774,null,null,2,3,2,null,null,null,null,"H","H J B","2x",null,"500 m ","Bærum Roklubb 3","Lars Moberg Værnes\nFredrik Vistung",null,325,null,"Bærum Roklubb",null,null,"02.06.2000\n01.01.2001","Ja\nJa","M020600LAR02\nM010101FRE60","4487587\n7267551","29.04.2016\n","Bærum Roklubb\nBærum Roklubb","Anders Hovde\n","90775520\n","anders.hovde@tns-gallup.no\n","17.08.2016\n17.08.2016"]
["221F4",1,"Søn 28.8","221F",null,"1350","0925",null,null,null,null,null,991,802,null,null,2,4,2,null,null,null,null,"H","H J B","2x",null,"500 m ","Norske Studenters Roklub 1","Sam Lorgen\nEdvard Sander Bae Mysen",null,325,null,"Norske Studenters Roklub",null,null,"02.04.2000\n18.10.2000","Ja\nJa","M020400SAM02\nM181000EDV01","6722466\n5383840","26.04.2016\n26.04.2016","Norske Studenters Roklub\nNorske Studenters Roklub","Tor-geir Myhrer\n","90060234\n","rosjefen@gmail.com\n","17.08.2016\n17.08.2016"]
["221F1",1,"Søn 28.8","221F",null,"1350","0925",null,null,null,null,null,678,703,null,null,3,1,3,null,null,null,null,"H","H J B","2x",null,"500 m ","Tønsberg Roklub 1","Lars Jørann Lindgren\nIsak Vartal-Gjerde",null,325,null,"Tønsberg Roklub",null,null,"30.05.2001\n24.12.2000","Ja\nJa","M300501LAR02\nM241200ISA03","4234298\n7173184","15.04.2016\n15.04.2016","Tønsberg Roklub\nTønsberg Roklub","Tore Nilsson\n","92686272\n","tore.nilsson@sf-nett.no\n","17.08.2016\n17.08.2016"]
["221F2",1,"Søn 28.8","221F",null,"1350","0925",null,null,null,null,null,718,555,null,null,3,2,3,null,null,null,null,"H","H J B","2x",null,"500 m ","Sarpsborg Roklubb - Roing 1","Diderik Skjønhaug\nJacob Gundersen",null,325,null,"Sarpsborg Roklubb - Roing",null,null,"28.12.2000\n08.04.2001","Ja\nJa","M281200DID01\nM080401JAC01","5330116\n5584584","10.04.2016\n10.04.2016","Sarpsborg Roklubb - Roing\nSarpsborg Roklubb - Roing","Thomas Gundersen\n","91874904\n","Thomas.gundersen@afgruppen.no;thomas.gundersen@afgruppen.no\n","17.08.2016\n17.08.2016"]
["221F3",1,"Søn 28.8","221F",null,"1350","0925",null,null,null,null,null,800,287,null,null,3,3,3,null,null,null,null,"H","H J B","2x",null,"500 m ","Norske Studenters Roklub 3","Hugo Haavind\nArne Theodor Gjelsten",null,325,null,"Norske Studenters Roklub",null,null,"17.05.2001\n05.03.2000","Ja\nJa","M170501HUG03\nM050300ARN02","5178950\n6071908","\n","Norske Studenters Roklub\nNorske Studenters Roklub","Tor-geir Myhrer\n","90060234\n","rosjefen@gmail.com\n","17.08.2016\n17.08.2016"]
["221F4",1,"Søn 28.8","221F",null,"1350","0925",null,null,null,null,null,677,41,null,null,3,4,3,null,null,null,null,"H","H J B","2x",null,"500 m ","Bærum Roklubb 2","Petter Bratli\nØystein Dingen Endresen",null,325,null,"Bærum Roklubb",null,null,"17.06.2000\n07.06.2000","Ja\nJa","M170600PET02\nM070600ØYS01","5956457\n5372192","29.04.2016\n29.04.2016","Bærum Roklubb\nBærum Roklubb","Anders Hovde\n","90775520\n","anders.hovde@tns-gallup.no\n","17.08.2016\n17.08.2016"]
[null,null," "]
[{"$f":"D31&R31","v":"211F0"},1,"Søn 28.8","211F",null,{"$f":"VLOOKUP($D31,Tidsplan!$B:$D,3,FALSE)","v":"1255"},{"$f":"VLOOKUP($D31,Tidsplan!$B:$D,2,FALSE)","v":"0940"},null,null,null,null,null,null,null,"S",null,null,0,null,null,null,null,null,"H","H J A","1x",{"$f":"IF(R31<>0,LEFT(Z31,1),0)*1","v":0},"500 m"]
["211F1",{"$f":"OFFSET(B32,-1,0)","v":1},"Søn 28.8","211F",null,{"$f":"OFFSET(F32,-1,0)","v":"1255"},"0940",null,null,null,null,null,395,null,null,null,1,1,1,null,null,null,null,"H","H J A","1x",null,"500 m","Ormsund Roklub","Kristian Løken",null,275,null,"Ormsund Roklub","Nei",null,"21.06.1999","Ja","M210699KRI05","5859758","11.03.2016","Ormsund Roklub","Antje Peine","+4792863244","antjep13@gmail.com","17.08.2016"]
["211F2",1,"Søn 28.8","211F",null,"1255","0940",null,null,null,null,null,214,null,null,null,1,{"$f":"1+R32","v":2},1,null,null,null,null,"H","H J A","1x",null,"500 m","Tønsberg Roklub","rasmus Mortensen",null,275,null,"Tønsberg Roklub","Nei",null,"01.06.1998","Ja","M010698RAS01","7270178","07.06.2016","Tønsberg Roklub","Tore Nilsson","92686272","tore.nilsson@sf-nett.no","17.08.2016"]
["211F3",1,"Søn 28.8","211F",null,"1255","0940",null,null,null,null,null,362,null,null,null,1,{"$f":"1+R33","v":3},1,null,null,null,null,"H","H J A","1x",null,"500 m","Bærum Roklubb","Jaime Aalders",null,275,null,"Bærum Roklubb","Nei",null,"16.09.1999","Ja","M160999JAI02","5508697","29.04.2016","Bærum Roklubb","Anders Hovde","90775520","anders.hovde@tns-gallup.no","17.08.2016"]
["211F4",1,"Søn 28.8","211F",null,"1255","0940",null,null,null,null,null,971,null,null,null,1,4,1,null,null,null,null,"H","H J A","1x",null,"500 m","Ormsund Roklub","Hauk Norum Sitre",null,275,null,"Ormsund Roklub","Nei",null,"29.06.1999","Ja","M290699HAU02","7203449","25.04.2016","Ormsund Roklub","Antje Peine","+4792863244","antjep13@gmail.com","17.08.2016"]
["211F5",1,"Søn 28.8","211F",null,"1255","0940",null,null,null,null,null,405,null,null,null,1,5,1,null,null,null,null,"H","H J A","1x",null,"500 m","Bærum Roklubb","Tade Phanke",null,275,null,"Bærum Roklubb","Nei",null,"20.10.1999","Ja","M201099TAD02","6760197","29.04.2016","Bærum Roklubb","Anders Hovde","90775520","anders.hovde@tns-gallup.no","17.08.2016"]
["211F6",1,"Søn 28.8","211F",null,"1255","0940",null,null,null,null,null,552,null,null,null,1,6,1,null,null,null,null,"H","H J A","1x",null,"500 m","Moss Roklubb","Alfred Eliassen",null,275,null,"Moss Roklubb","Nei",null,"06.12.1999","Ja","M061299ALF01","2747765","05.04.2016","Moss Roklubb","Jon Rekstad","92252667","rekstad0@gmail.com","17.08.2016"]
["211F7",1,"Søn 28.8","211F",null,"1255","0940",null,null,null,null,null,685,null,null,null,2,7,2,null,null,null,null,"H","H J A","1x",null,"500 m","Ormsund Roklub","Oskar Jørgensen",null,275,null,"Ormsund Roklub","Nei",null,"08.04.1998","Ja","M080498OSK02","7249866","11.03.2016","Ormsund Roklub","Antje Peine","+4792863244","antjep13@gmail.com","17.08.2016"]
["211F8",1,"Søn 28.8","211F",null,"1255","0940",null,null,null,null,null,799,null,null,null,2,8,2,null,null,null,null,"H","H J A","1x",null,"500 m","Moss Roklubb","Vegard Hjortkær Sæby",null,275,null,"Moss Roklubb","Nei",null,"07.07.1998","Ja","M070798VEG01","2696077","05.04.2016","Moss Roklubb","Jon Rekstad","92252667","rekstad0@gmail.com","17.08.2016"]
["211F9",1,"Søn 28.8","211F",null,"1255","0940",null,null,null,null,null,906,null,null,null,2,9,2,null,null,null,null,"H","H J A","1x",null,"500 m","Ormsund Roklub","Thomas Soma Ferguson",null,275,null,"Ormsund Roklub","Nei",null,"14.07.1998","Ja","M140798THO03","5662311","11.03.2016","Ormsund Roklub","Antje Peine","+4792863244","antjep13@gmail.com","17.08.2016"]
["211F10",1,"Søn 28.8","211F",null,"1255","0940",null,null,null,null,null,396,null,null,null,2,10,2,null,null,null,null,"H","H J A","1x",null,"500 m","Bærum Roklubb","Hermann Hovde",null,275,null,"Bærum Roklubb","Nei",null,"01.01.1999","Ja","M010199HER12","5632327","29.04.2016","Bærum Roklubb","Anders Hovde","90775520","anders.hovde@tns-gallup.no","17.08.2016"]
["211F11",1,"Søn 28.8","211F",null,"1255","0940",null,null,null,null,null,665,null,null,null,2,11,2,null,null,null,null,"H","H J A","1x",null,"500 m","Norske Studenters Roklub","Oliver Alexander Petterson Stubbs",null,275,null,"Norske Studenters Roklub","Nei",null,"05.09.1998","Ja","M050998OLI01","7311395",null,"Norske Studenters Roklub","Tor-geir Myhrer","90060234","rosjefen@gmail.com","17.08.2016"]
["211F12",1,"Søn 28.8","211F",null,"1255","0940",null,null,null,null,null,991,null,null,null,2,12,2,null,null,null,null,"H","H J A","1x",null,"500 m","Ormsund Roklub","Herman Mathisen",null,275,null,"Ormsund Roklub","Nei",null,"17.01.1999","Ja","M170199HER02","5667123",null,"Ukjent/ikke registrert klubb","Antje Peine","+4792863244","antjep13@gmail.com","17.08.2016"]
["222F0",1,"Søn 28.8","222F",null,{"$f":"VLOOKUP($D44,Tidsplan!$B:$D,3,FALSE)","v":"1400"},{"$f":"VLOOKUP($D44,Tidsplan!$B:$D,2,FALSE)","v":"0950"},null,null,null,null,null,null,null,"S",null,null,0,null,null,null,null,null,"D","D J A","1x",0,"500 m "]
["222F1",{"$f":"OFFSET(B45,-1,0)","v":1},"Søn 28.8","222F",null,{"$f":"OFFSET(F45,-1,0)","v":"1400"},"0950",null,null,null,null,null,731,null,null,null,1,1,1,null,null,null,null,"D","D J A","1x",null,"500 m","Moss Roklubb","Maia Rekstad",null,275,null,"Moss Roklubb","Nei",null,"25.06.1999","Ja","K250699MAI03","5643443","05.04.2016","Moss Roklubb","Jon Rekstad","92252667","rekstad0@gmail.com","17.08.2016"]
["222F2",1,"Søn 28.8","222F",null,"1400","0950",null,null,null,null,null,248,null,null,null,1,2,1,null,null,null,null,"D","D J A","1x",null,"500 m","Christiania Roklub","Aurora Olsen Juklestad",null,275,null,"Christiania Roklub","Nei",null,"05.12.1998","Ja","K051298AUR02","5444521","10.08.2016","Christiania Roklub","Grete Isachsen Stokke","91338845","grisach@gmail.com","16.08.2016"]
["222F3",1,"Søn 28.8","222F",null,"1400","0950",null,null,null,null,null,278,null,null,null,1,3,1,null,null,null,null,"D","D J A","1x",null,"500 m","Ormsund Roklub","Serine Camilie Aaker",null,275,null,"Ormsund Roklub","Nei",null,"05.06.1999","Ja","K050699SER01","1626570",null,"Ukjent/ikke registrert klubb","Antje Peine","+4792863244","antjep13@gmail.com","17.08.2016"]
["222F4",1,"Søn 28.8","222F",null,"1400","0950",null,null,null,null,null,446,null,null,null,1,4,1,null,null,null,null,"D","D J A","1x",null,"500 m","Sarpsborg Roklubb - Roing","Kavi Ali",null,275,null,"Sarpsborg Roklubb - Roing","Nei",null,"04.07.1998","Ja","K040798KAV02","2739661","10.04.2016","Sarpsborg Roklubb - Roing","Thomas Gundersen","91874904","Thomas.gundersen@afgruppen.no;thomas.gundersen@afgruppen.no","17.08.2016"]
["222F5",1,"Søn 28.8","222F",null,"1400","0950",null,null,null,null,null,890,null,null,null,2,5,2,null,null,null,null,"D","D J A","1x",null,"500 m","Christiania Roklub","Hermine Wilhelmsen",null,275,null,"Christiania Roklub","Nei",null,"23.07.1999","Ja","K230799HER03","5674641","06.03.2016","Christiania Roklub","Grete Isachsen Stokke","91338845","grisach@gmail.com","16.08.2016"]
["222F6",1,"Søn 28.8","222F",null,"1400","0950",null,null,null,null,null,912,null,null,null,2,6,2,null,null,null,null,"D","D J A","1x",null,"500 m","Drammen Roklubb ","Sara Seip",null,275,null,"Drammen Roklubb ","Nei",null,"09.05.1998","Ja","K090598SAR05","5313667","15.03.2016","Drammen Roklubb ","Øyvind Leirset","40069485","oeylei@online.no;Oeylei@online.no","17.08.2016"]
["222F7",1,"Søn 28.8","222F",null,"1400","0950",null,null,null,null,null,614,null,null,null,2,7,2,null,null,null,null,"D","D J A","1x",null,"500 m","Ormsund Roklub","Anna Mesel",null,275,null,"Ormsund Roklub","Nei",null,"03.04.1999","Ja","K030499ANN01","1626245","11.03.2016","Ormsund Roklub","Antje Peine","+4792863244","antjep13@gmail.com","17.08.2016"]
["2228",1,"Søn 28.8",222,null,"1400","0950",null,null,null,null,null,null,null,null,null,2,8,2,null,null,null,null,"D","JA","1x",null,"500","Porsgrunn Roklubb","Mariet Nijmeijer",null,550,"E","Porsgrunn Roklubb",null,null,null,null,null,null,null,null,"Dag Mogstad"," ","Dag Mogstad <dagmog@hotmail.com>","2016-08-23"]
["2020",1,"Søn 28.8",202,null,{"$f":"VLOOKUP($D53,Tidsplan!$B:$D,3,FALSE)","v":"1005"},{"$f":"VLOOKUP($D53,Tidsplan!$B:$D,2,FALSE)","v":""},null,null,null,null,null,null,null," ",null,null,0,null,null,null,null,null,"D","D J B","1x",{"$f":"IF(R53<>0,LEFT(Z53,1),0)*1","v":0},"500 m"]
["20210",{"$f":"OFFSET(B54,-1,0)","v":1},"Søn 28.8",202,null,{"$f":"OFFSET(F54,-1,0)","v":"1005"},null,null,null,null,null,null,0,null,null,null,2,10,2,null,null,null,null,"D","D J B","1x",null,"500 m","Haldens Roklub","Marthe Emilie Bagger",null,275,null,"Haldens Roklub","Nei",null,"22.09.2000","Ja","K220900MAR09","6094778","25.04.2016","Haldens Roklub","Eivind Borring Hansen","97588834","eivind@hkpensjon.no;eivhan@gmail.com","17.08.2016"]
[{"$f":"D55&R55","v":"2029"},1,"Søn 28.8",202,null,"1005",null,null,null,null,null,null,73.5,null,null,null,2,9,2,null,null,null,null,"D","D J B","1x",null,"500 m","Bærum Roklubb","Caitlin Aalders",null,275,null,"Bærum Roklubb","Nei",null,"03.06.2001","Ja","K030601CAI03","7289717",null,"Bærum Roklubb","Anders Hovde","90775520","anders.hovde@tns-gallup.no","17.08.2016"]
["2028",1,"Søn 28.8",202,null,"1005",null,null,null,null,null,null,76.8,null,null,null,2,8,2,null,null,null,null,"D","D J B","1x",null,"500 m","Norske Studenters Roklub","Hedda Dagestad-Larsen ",null,275,null,"Norske Studenters Roklub","Nei",null,"30.11.2000","Ja","K301100HED02","6722633","26.04.2016","Norske Studenters Roklub","Tor-geir Myhrer","90060234","rosjefen@gmail.com","17.08.2016"]
["2027",1,"Søn 28.8",202,null,"1005",null,null,null,null,null,null,80,null,null,null,2,7,2,null,null,null,null,"D","D J B","1x",null,"500 m","Drammen Roklubb ","Karoline Rydland Masch",null,275,null,"Drammen Roklubb ","Nei",null,"14.04.2001","Ja","K140401KAR10","7214275",null,"Drammen Roklubb ","Øyvind Leirset","40069485","oeylei@online.no;Oeylei@online.no","17.08.2016"]
["2026",1,"Søn 28.8",202,null,"1005",null,null,null,null,null,null,80.2,null,null,null,1,6,1,null,null,null,null,"D","D J B","1x",null,"500 m","Norske Studenters Roklub","Rebekka Øvensen Aanderaa",null,275,null,"Norske Studenters Roklub","Nei",null,"11.10.2000","Ja","K111000REB03","5673868","26.04.2016","Norske Studenters Roklub","Tor-geir Myhrer","90060234","rosjefen@gmail.com","17.08.2016"]
["2025",1,"Søn 28.8",202,null,"1005",null,null,null,null,null,null,82.3,null,null,null,1,5,1,null,null,null,null,"D","D J B","1x",null,"500 m","Moss Roklubb","Lise Meinike Dørre",null,275,null,"Moss Roklubb","Nei",null,"13.02.2000","Ja","K130200LIS02","6059397",null,"Ukjent/ikke registrert klubb","Jon Rekstad","92252667","rekstad0@gmail.com","17.08.2016"]
["2024",1,"Søn 28.8",202,null,"1005",null,null,null,null,null,null,83.1,null,null,null,1,4,1,null,null,null,null,"D","D J B","1x",null,"500 m","Tønsberg Roklub","Lene Samland",null,275,null,"Tønsberg Roklub","Nei",null,"30.11.2000","Ja","K301100LEN03","6134299","15.04.2016","Tønsberg Roklub","Tore Nilsson","92686272","tore.nilsson@sf-nett.no","17.08.2016"]
["2023",1,"Søn 28.8",202,null,"1005",null,null,null,null,null,null,88.7,null,null,null,1,3,1,null,null,null,null,"D","D J B","1x",null,"500 m","Bærum Roklubb","Stina Halvorsen Vad",null,275,null,"Bærum Roklubb","Nei",null,"26.09.2000","Ja","K260900STI02","6778019","29.04.2016","Bærum Roklubb","Anders Hovde","90775520","anders.hovde@tns-gallup.no","17.08.2016"]
["2022",1,"Søn 28.8",202,null,"1005",null,null,null,null,null,null,89.2,null,null,null,1,2,1,null,null,null,null,"D","D J B","1x",null,"500 m","Norske Studenters Roklub","Hanna Kaupang Petersen",null,275,null,"Norske Studenters Roklub","Nei",null,"15.09.2000","Ja","K150900HAN01","2581292","26.04.2016","Norske Studenters Roklub","Tor-geir Myhrer","90060234","rosjefen@gmail.com","17.08.2016"]
["2021",1,"Søn 28.8",202,null,"1005",null,null,null,null,null,null,91.2,null,null,null,1,1,1,null,null,null,null,"D","D J B","1x",null,"500 m","Sarpsborg Roklubb - Roing","Cornelia Knutsen",null,275,null,"Sarpsborg Roklubb - Roing","Nei",null,"28.12.2000","Ja","K281200COR02","6060150","10.04.2016","Sarpsborg Roklubb - Roing","Thomas Gundersen","91874904","Thomas.gundersen@afgruppen.no;thomas.gundersen@afgruppen.no","17.08.2016"]
["2010",1,"Søn 28.8",201,null,{"$f":"VLOOKUP($D64,Tidsplan!$B:$D,3,FALSE)","v":"1030"},{"$f":"VLOOKUP($D64,Tidsplan!$B:$D,2,FALSE)","v":""},null,null,null,null,null,null,null,null,"K",null,0,null,null,null,null,null,"H","H J B","1x",0,"500 m"]
["20124",{"$f":"OFFSET(B65,-1,0)","v":1},"Søn 28.8",201,null,{"$f":"VLOOKUP($D65,Tidsplan!$B:$D,3,FALSE)","v":"1030"},null,null,null,null,null,null,0,null,null,null,4,24,4,null,null,null,null,"H","H J B","1x",null,"500 m","Bærum Roklubb","Fredrik Vistung",null,275,null,"Bærum Roklubb","Nei",null,"01.01.2001","Ja","M010101FRE60","7267551",null,"Bærum Roklubb","Anders Hovde","90775520","anders.hovde@tns-gallup.no","17.08.2016"]
["20123",1,"Søn 28.8",201,null,{"$f":"VLOOKUP($D66,Tidsplan!$B:$D,3,FALSE)","v":"1030"},null,null,null,null,null,null,42.8,null,null,null,4,23,4,null,null,null,null,"H","H J B","1x",null,"500 m","Bærum Roklubb","Brage Bragstad",null,275,null,"Bærum Roklubb","Nei",null,"12.09.2000","Ja","M120900BRA03","4908711","29.04.2016","Bærum Roklubb","Anders Hovde","90775520","anders.hovde@tns-gallup.no","17.08.2016"]
["20122",1,"Søn 28.8",201,null,{"$f":"VLOOKUP($D67,Tidsplan!$B:$D,3,FALSE)","v":"1030"},null,null,null,null,null,null,52.8,null,null,null,4,22,4,null,null,null,null,"H","H J B","1x",null,"500 m","Bærum Roklubb","Jakob Holt",null,275,null,"Bærum Roklubb","Nei",null,"03.09.2001","Ja","M030901JAK02","5494644","29.04.2016","Bærum Roklubb","Anders Hovde","90775520","anders.hovde@tns-gallup.no","17.08.2016"]
["20121",1,"Søn 28.8",201,null,{"$f":"VLOOKUP($D68,Tidsplan!$B:$D,3,FALSE)","v":"1030"},null,null,null,null,null,null,62,null,null,null,4,21,4,null,null,null,null,"H","H J B","1x",null,"500 m","Norske Studenters Roklub","Petter Arnøy",null,275,null,"Norske Studenters Roklub","Nei",null,"16.02.2001","Ja","M160201PET02","4179438","26.04.2016","Norske Studenters Roklub","Tor-geir Myhrer","90060234","rosjefen@gmail.com","17.08.2016"]
["20120",1,"Søn 28.8",201,null,{"$f":"VLOOKUP($D69,Tidsplan!$B:$D,3,FALSE)","v":"1030"},null,null,null,null,null,null,63.7,null,null,null,4,20,4,null,null,null,null,"H","H J B","1x",null,"500 m","Drammen Roklubb ","Elias Loe Eritsland",null,275,null,"Drammen Roklubb ","Nei",null,"13.02.2001","Ja","M130201ELI01","6756069","15.03.2016","Drammen Roklubb ","Øyvind Leirset","40069485","oeylei@online.no;Oeylei@online.no","17.08.2016"]
["20119",1,"Søn 28.8",201,null,{"$f":"VLOOKUP($D70,Tidsplan!$B:$D,3,FALSE)","v":"1030"},null,null,null,null,null,null,64.400000000000006,null,null,null,4,19,4,null,null,null,null,"H","H J B","1x",null,"500 m","Norske Studenters Roklub","Edvard Sander Bae Mysen",null,275,null,"Norske Studenters Roklub","Nei",null,"18.10.2000","Ja","M181000EDV01","5383840","26.04.2016","Norske Studenters Roklub","Tor-geir Myhrer","90060234","rosjefen@gmail.com","17.08.2016"]
["20118",1,"Søn 28.8",201,null,{"$f":"VLOOKUP($D71,Tidsplan!$B:$D,3,FALSE)","v":"1030"},null,null,null,null,null,null,65.3,null,null,null,3,18,3,null,null,null,null,"H","H J B","1x",null,"500 m","Bærum Roklubb","Vitus Aparicio Tjøm",null,275,null,"Bærum Roklubb","Nei",null,"26.01.2001","Ja","M260101VIT01","5062270","29.04.2016","Bærum Roklubb","Anders Hovde","90775520","anders.hovde@tns-gallup.no","17.08.2016"]
["20117",1,"Søn 28.8",201,null,{"$f":"VLOOKUP($D72,Tidsplan!$B:$D,3,FALSE)","v":"1030"},null,null,null,null,null,null,66.2,null,null,null,3,17,3,null,null,null,null,"H","H J B","1x",null,"500 m","Tønsberg Roklub","Sander Benden Nilsen",null,275,null,"Tønsberg Roklub","Nei",null,"13.02.2000","Ja","M130200SAN05","6126909","15.04.2016","Tønsberg Roklub","Tore Nilsson","92686272","tore.nilsson@sf-nett.no","17.08.2016"]
["20116",1,"Søn 28.8",201,null,{"$f":"VLOOKUP($D73,Tidsplan!$B:$D,3,FALSE)","v":"1030"},null,null,null,null,null,null,66.7,null,null,null,3,16,3,null,null,null,null,"H","H J B","1x",null,"500 m","Moss Roklubb","Jarle Hjortkjær Sæby",null,275,null,"Moss Roklubb","Nei",null,"17.08.2000","Ja","M170800JAR02","2794789","05.04.2016","Moss Roklubb","Jon Rekstad","92252667","rekstad0@gmail.com","17.08.2016"]
["20115",1,"Søn 28.8",201,null,{"$f":"VLOOKUP($D74,Tidsplan!$B:$D,3,FALSE)","v":"1030"},null,null,null,null,null,null,69.7,null,null,null,3,15,3,null,null,null,null,"H","H J B","1x",null,"500 m","Bærum Roklubb","sindre fuglseth",null,275,null,"Bærum Roklubb","Nei",null,"26.09.2000","Ja","M260900SIN02","6073987","29.04.2016","Bærum Roklubb","Anders Hovde","90775520","anders.hovde@tns-gallup.no","17.08.2016"]
["20114",1,"Søn 28.8",201,null,{"$f":"VLOOKUP($D75,Tidsplan!$B:$D,3,FALSE)","v":"1030"},null,null,null,null,null,null,70.8,null,null,null,3,14,3,null,null,null,null,"H","H J B","1x",null,"500 m","Norske Studenters Roklub","Sam Lorgen",null,275,null,"Norske Studenters Roklub","Nei",null,"02.04.2000","Ja","M020400SAM02","6722466","26.04.2016","Norske Studenters Roklub","Tor-geir Myhrer","90060234","rosjefen@gmail.com","17.08.2016"]
["20113",1,"Søn 28.8",201,null,{"$f":"VLOOKUP($D76,Tidsplan!$B:$D,3,FALSE)","v":"1030"},null,null,null,null,null,null,72.400000000000006,null,null,null,3,13,3,null,null,null,null,"H","H J B","1x",null,"500 m","Sarpsborg Roklubb - Roing","Jacob Gundersen",null,275,null,"Sarpsborg Roklubb - Roing","Nei",null,"08.04.2001","Ja","M080401JAC01","5584584","10.04.2016","Sarpsborg Roklubb - Roing","Thomas Gundersen","91874904","Thomas.gundersen@afgruppen.no","17.08.2016"]
["20112",1,"Søn 28.8",201,null,{"$f":"VLOOKUP($D77,Tidsplan!$B:$D,3,FALSE)","v":"1030"},null,null,null,null,null,null,73,null,null,null,2,12,2,null,null,null,null,"H","H J B","1x",null,"500 m","Bærum Roklubb","Petter Bratli",null,275,null,"Bærum Roklubb","Nei",null,"17.06.2000","Ja","M170600PET02","5956457","29.04.2016","Bærum Roklubb","Anders Hovde","90775520","anders.hovde@tns-gallup.no","17.08.2016"]
["20111",1,"Søn 28.8",201,null,{"$f":"VLOOKUP($D78,Tidsplan!$B:$D,3,FALSE)","v":"1030"},null,null,null,null,null,null,75.900000000000006,null,null,null,2,11,2,null,null,null,null,"H","H J B","1x",null,"500 m","Christiania Roklub","Tinius Wilhelmsen",null,275,null,"Christiania Roklub","Nei",null,"18.10.2001","Ja","M181001TIN04","6005810","06.03.2016","Christiania Roklub","Grete Isachsen Stokke","91338845","grisach@gmail.com","16.08.2016"]
["20110",1,"Søn 28.8",201,null,{"$f":"VLOOKUP($D79,Tidsplan!$B:$D,3,FALSE)","v":"1030"},null,null,null,null,null,null,77.599999999999994,null,null,null,2,10,2,null,null,null,null,"H","H J B","1x",null,"500 m","Bærum Roklubb","Eirik Myreng Hauge",null,275,null,"Bærum Roklubb","Nei",null,"17.04.2000","Ja","M170400EIR02","5005277","29.04.2016","Bærum Roklubb","Anders Hovde","90775520","anders.hovde@tns-gallup.no","17.08.2016"]
["2019",1,"Søn 28.8",201,null,{"$f":"VLOOKUP($D80,Tidsplan!$B:$D,3,FALSE)","v":"1030"},null,null,null,null,null,null,78.3,null,null,null,2,9,2,null,null,null,null,"H","H J B","1x",null,"500 m","Christiania Roklub","Andreas Dugstad Sørskaar",null,275,null,"Christiania Roklub","Nei",null,"10.06.2001","Ja","M100601AND02","4221227","24.03.2016","Christiania Roklub","Grete Isachsen Stokke","91338845","grisach@gmail.com","16.08.2016"]
["2018",1,"Søn 28.8",201,null,{"$f":"VLOOKUP($D81,Tidsplan!$B:$D,3,FALSE)","v":"1030"},null,null,null,null,null,null,83.4,null,null,null,2,8,2,null,null,null,null,"H","H J B","1x",null,"500 m","Sarpsborg Roklubb - Roing","Diderik Skjønhaug",null,275,null,"Sarpsborg Roklubb - Roing","Nei",null,"28.12.2000","Ja","M281200DID01","5330116","10.04.2016","Sarpsborg Roklubb - Roing","Thomas Gundersen","91874904","Thomas.gundersen@afgruppen.no","17.08.2016"]
["2017",1,"Søn 28.8",201,null,{"$f":"VLOOKUP($D82,Tidsplan!$B:$D,3,FALSE)","v":"1030"},null,null,null,null,null,null,83.5,null,null,null,2,7,2,null,null,null,null,"H","H J B","1x",null,"500 m","Tønsberg Roklub","Isak Vartal-Gjerde",null,275,null,"Tønsberg Roklub","Nei",null,"24.12.2000","Ja","M241200ISA03","7173184","15.04.2016","Tønsberg Roklub","Tore Nilsson","92686272","tore.nilsson@sf-nett.no","17.08.2016"]
["2016",1,"Søn 28.8",201,null,{"$f":"VLOOKUP($D83,Tidsplan!$B:$D,3,FALSE)","v":"1030"},null,null,null,null,null,null,83.6,null,null,null,1,6,1,null,null,null,null,"H","H J B","1x",null,"500 m","Moss Roklubb","Magnus strømme",null,275,null,"Moss Roklubb","Nei",null,"15.11.2001","Ja","M151101MAG07","6045066","05.04.2016","Moss Roklubb","Jon Rekstad","92252667","rekstad0@gmail.com","17.08.2016"]
["2015",1,"Søn 28.8",201,null,{"$f":"VLOOKUP($D84,Tidsplan!$B:$D,3,FALSE)","v":"1030"},null,null,null,null,null,null,83.7,null,null,null,1,5,1,null,null,null,null,"H","H J B","1x",null,"500 m","Norske Studenters Roklub","Kristian Søhr",null,275,null,"Norske Studenters Roklub","Nei",null,"14.04.2000","Ja","M140400KRI01","4077003","26.04.2016","Norske Studenters Roklub","Tor-geir Myhrer","90060234","rosjefen@gmail.com","17.08.2016"]
[{"$f":"D84&R84","v":"2015"},1,"Søn 28.8",201,null,{"$f":"VLOOKUP($D85,Tidsplan!$B:$D,3,FALSE)","v":"1030"},null,null,null,null,null,null,84.2,null,null,null,1,4,1,null,null,null,null,"H","H J B","1x",null,"500 m","Aalesunds Roklub","Fredrik Reite",null,275,null,"Aalesunds Roklub","Nei",null,"26.07.2001","Ja","M260701FRE01","6728505",null,"Aalesunds Roklub","Johan Myklebust","90894714","johan.myklebust@nordea.no","15.08.2016"]
[{"$f":"D86&R86","v":"2013"},1,"Søn 28.8",201,null,{"$f":"VLOOKUP($D86,Tidsplan!$B:$D,3,FALSE)","v":"1030"},null,null,null,null,null,null,85.5,null,null,null,1,3,1,null,null,null,null,"H","H J B","1x",null,"500 m","Bærum Roklubb","Øystein Dingen Endresen",null,275,null,"Bærum Roklubb","Nei",null,"07.06.2000","Ja","M070600ØYS01","5372192","29.04.2016","Bærum Roklubb","Anders Hovde","90775520","anders.hovde@tns-gallup.no","17.08.2016"]
[{"$f":"D87&R87","v":"2012"},1,"Søn 28.8",201,null,{"$f":"OFFSET(F87,-1,0)","v":"1030"},null,null,null,null,null,null,87.7,null,null,null,1,2,1,null,null,null,null,"H","H J B","1x",null,"500","Porsgrunn Roklubb","Sturla Mogstad",null,550,"E","Porsgrunn Roklubb",null,null,null,null,null,null,null,null,"Dag Mogstad"," ","Dag Mogstad <dagmog@hotmail.com>","2016-08-23"]
[{"$f":"D88&R88","v":""},1,"Søn 28.8",null,null,null,null,null,null,null,null,null,null,null,null,null,1,null,null,null,null,null,null,null,null,null,{"$f":"IF(R88<>0,LEFT(Z88,1),0)*1","v":0}]
[null,null,"Søn 28.8",null,null,null,null,null,null,null,null,null,null,null,null,null,null,null,null,null,null,null,null,null,null,null,{"$f":"IF(R89<>0,LEFT(Z89,1),0)*1","v":0}]
[{"$f":"D90&R90","v":"2011"},{"$f":"OFFSET(B90,-1,0)","v":0},"Søn 28.8",201,null,{"$f":"VLOOKUP($D90,Tidsplan!$B:$D,3,FALSE)","v":"1030"},null,null,null,null,null,null,87.9,null,null,null,1,1,1,null,null,null,null,"H","H J B","1x",null,"500 m","Tønsberg Roklub","Lars Jørann Lindgren",null,275,null,"Tønsberg Roklub","Nei",null,"30.05.2001","Ja","M300501LAR02","4234298","15.04.2016","Tønsberg Roklub","Tore Nilsson","92686272","tore.nilsson@sf-nett.no","17.08.2016"]
[{"$f":"D91&R91","v":"1LLM "},{"$f":"OFFSET(B91,-1,0)","v":0},"Søn 28.8","1LLM",null,{"$f":"VLOOKUP($D91,Tidsplan!$B:$D,3,FALSE)","v":"1100"},null,null,null,null,null,null,null,null,null,null,null," ",null,null,null,null,null,null,"LAGLEDERMØTE",null,{"$f":"IF(R91<>0,LEFT(Z91,1),0)*1","v":{"$error":"#VALUE!"}}]
["2030",1,"Søn 28.8",203,null,{"$f":"VLOOKUP($D92,Tidsplan!$B:$D,3,FALSE)","v":"1200"},{"$f":"VLOOKUP($D92,Tidsplan!$B:$D,2,FALSE)","v":""},null,null,null,null,null,null,null," ",null,null,0,null,null,null,null,null,"D/H","Nybeg","Åpen",0,500]
["2031",{"$f":"OFFSET(B93,-1,0)","v":1},"Søn 28.8",203,null,1200,null,null,null,null,null,null,null,null,null,null,1,1,1,null,null,null,null,"Åpen","Åpen nybegynner","1x",null,"500 m","Norske Studenters Roklub","Hugo Haavind",null,150,null,"Norske Studenters Roklub","Nei",null,"17.05.2001",null,"M170501HUG03","5178950",null,"Norske Studenters Roklub","Tor-geir Myhrer","90060234","rosjefen@gmail.com","17.08.2016"]
["2032",1,"Søn 28.8",203,null,1200,null,null,null,null,null,null,null,null,null,null,1,2,1,null,null,null,null,"Åpen","Åpen nybegynner","1x",null,"500 m","Sarpsborg Roklubb - Roing","Mina Alida Andresen",null,150,null,"Sarpsborg Roklubb - Roing","Nei",null,"14.07.2005",null,"K140705MIN02","6917176","10.04.2016","Sarpsborg Roklubb - Roing","Thomas Gundersen","91874904","Thomas.gundersen@afgruppen.no;thomas.gundersen@afgruppen.no","17.08.2016"]
["2033",1,"Søn 28.8",203,null,1200,null,null,null,null,null,null,null,null,null,null,1,3,1,null,null,null,null,"Åpen","Åpen nybegynner","1x",null,"500 m","Christiania Roklub","Nicolai Borbè",null,150,null,"Christiania Roklub","Nei",null,"01.01.2002",null,"M010102NIC07","7310301","16.08.2016","Christiania Roklub","Grete Isachsen Stokke","91338845","grisach@gmail.com","16.08.2016"]
["2034",1,"Søn 28.8",203,null,1200,null,null,null,null,null,null,null,null,null,null,1,4,1,null,null,null,null,"Åpen","Åpen nybegynner","1x",null,"500 m","Norske Studenters Roklub","Arne Theodor Gjelsten",null,150,null,"Norske Studenters Roklub","Nei",null,"05.03.2000",null,"M050300ARN02","6071908",null,"Norske Studenters Roklub","Tor-geir Myhrer","90060234","rosjefen@gmail.com","17.08.2016"]
["2035",1,"Søn 28.8",203,null,1200,null,null,null,null,null,null,null,null,null,null,2,5,2,null,null,null,null,"Åpen","Åpen nybegynner","1x",null,"500 m","Norske Studenters Roklub","Nicolai Fongaard",null,150,null,"Norske Studenters Roklub","Nei",null,"06.08.2001",null,"M060801NIC02","4916382","26.04.2016","Norske Studenters Roklub","Tor-geir Myhrer","90060234","rosjefen@gmail.com","17.08.2016"]
["2036",1,"Søn 28.8",203,null,1200,null,null,null,null,null,null,null,null,null,null,2,6,2,null,null,null,null,"Åpen","Åpen nybegynner","1x",null,"500 m","Sarpsborg Roklubb - Roing","Nor Mustaf",null,150,null,"Sarpsborg Roklubb - Roing","Nei",null,"22.10.2004",null,"M221004NOR01","6917184","10.04.2016","Sarpsborg Roklubb - Roing","Thomas Gundersen","91874904","Thomas.gundersen@afgruppen.no;thomas.gundersen@afgruppen.no","17.08.2016"]
["2037",1,"Søn 28.8",203,null,1200,null,null,null,null,null,null,null,null,null,null,2,7,2,null,null,null,null,"Åpen","Åpen nybegynner","1x",null,"500 m","Christiania Roklub","Elias Mahler",null,150,null,"Christiania Roklub","Nei",null,"22.12.2002",null,"M221202ELI02","4671202",null,"Ukjent/ikke registrert klubb","Grete Isachsen Stokke","91338845","grisach@gmail.com","16.08.2016"]
["2038",1,"Lør 27.8",203," ",{"$f":"OFFSET(F100,-1,0)","v":1200},null,null,null,null,null,null,null,null,null,null,2,8,2,null,null,null,null,"Åpen ","Nybegynner","2x",null,500,"Ormsund","Mille Aslaksen Wåle\nTyra Eklo Hjemdal",null,300,"E","Ormsund ",null,null,null,null,null,null,"55498513\n55540314",null,"Antje Peine"," ","Antje Peine <antjep13@gmail.com>","2016-08-24"]
["2040",1,"Søn 28.8",204,null,{"$f":"VLOOKUP($D101,Tidsplan!$B:$D,3,FALSE)","v":"1205"},{"$f":"VLOOKUP($D101,Tidsplan!$B:$D,2,FALSE)","v":""},null,null,null,null,null,null,null,"",null,null,0,null,null,null,null,null,"D/H","D J D/HJD","1x",0,"500 m"]
["2041",{"$f":"OFFSET(B102,-1,0)","v":1},"Søn 28.8",204,null,{"$f":"OFFSET(F102,-1,0)","v":"1205"},null,null,null,null,null,null,null,null,null,null,1,1,1," ",null,null,null,"H","H J D","1x",null,"500 m","Bærum Roklubb","Magnus Kavli",null,275,null,"Bærum Roklubb","Nei",null,"01.01.2004",null,"M010104MAG01","7232220",null,"Bærum Roklubb","Anders Hovde","90775520","anders.hovde@tns-gallup.no","17.08.2016"]
["2050",1,"Søn 28.8",205,null,{"$f":"VLOOKUP($D103,Tidsplan!$B:$D,3,FALSE)","v":"1210"},{"$f":"VLOOKUP($D103,Tidsplan!$B:$D,2,FALSE)","v":""},null,null,null,null,null,null,null,"S","K",null,0," "," "," ",null,null,"D","D J A ","8+",{"$f":"IF(R103<>0,LEFT(Z103,1),0)*1","v":0},"500 m"]
["2060",1,"Søn 28.8",206,null,{"$f":"VLOOKUP($D104,Tidsplan!$B:$D,3,FALSE)","v":"1215"},{"$f":"VLOOKUP($D104,Tidsplan!$B:$D,2,FALSE)","v":""},null,null,null,null,null,null,null," ",null,null,0," "," "," ",null,null,"H","H J C","1x",0,"500 m"]
["2061",{"$f":"OFFSET(B105,-1,0)","v":1},"Søn 28.8",206,null,{"$f":"OFFSET(F105,-1,0)","v":"1215"},null,null,null,null,null,null,null,null,null,null,1,1,1,null,null,null,null,"H","H J C","1x",null,"500 m","Ormsund Roklub","Erlend Hystad",null,275,null,"Ormsund Roklub","Nei",null,"01.12.2002","Ja","M011202ERL01","4859156","11.03.2016","Ormsund Roklub","Antje Peine","+4792863244","antjep13@gmail.com","17.08.2016"]
["2062",1,"Søn 28.8",206,null,"1215",null,null,null,null,null,null,null,null,null,null,1,{"$f":"1+R105","v":2},1,null,null,null,null,"H","H J C","1x",null,"500 m","Drammen Roklubb ","Håkon Hannevold",null,275,null,"Drammen Roklubb ","Nei",null,"18.03.2003","Ja","M180303HÅK01","5005249","10.05.2016","Drammen Roklubb ","Øyvind Leirset","40069485","oeylei@online.no;Oeylei@online.no","17.08.2016"]
["2063",1,"Søn 28.8",206,null,"1215",null,null,null,null,null,null,null,null,null,null,1,{"$f":"1+R106","v":3},1,null,null,null,null,"H","H J C","1x",null,"500 m","Sarpsborg Roklubb - Roing","Håkon Grønberg Møller",null,275,null,"Sarpsborg Roklubb - Roing","Nei",null,"22.12.2002","Ja","M221202HÅK01","6848301","10.04.2016","Sarpsborg Roklubb - Roing","Thomas Gundersen","91874904","Thomas.gundersen@afgruppen.no;thomas.gundersen@afgruppen.no","17.08.2016"]
["2064",1,"Søn 28.8",206,null,"1215",null,null,null,null,null,null,null,null,null,null,1,4,1,null,null,null,null,"H","H J C","1x",null,"500 m","Haldens Roklub","Haakon Elias Solli Borge",null,275,null,"Haldens Roklub","Nei",null,"21.02.2002","Ja","M210202HAA02","5006685","10.08.2016","Haldens Roklub","Eivind Borring Hansen","97588834","eivind@hkpensjon.no;eivhan@gmail.com","17.08.2016"]
["2065",1,"Søn 28.8",206,null,"1215",null,null,null,null,null,null,null,null,null,null,1,5,1,null,null,null,null,"H","H J C","1x",null,"500 m","Bærum Roklubb","Magnus Kavli",null,275,null,"Bærum Roklubb","Nei",null,"01.01.2004","Nei","M010104MAG01","7232220",null,"Bærum Roklubb","Anders Hovde","90775520","anders.hovde@tns-gallup.no","17.08.2016"]
["2066",1,"Søn 28.8",206,null,"1215",null,null,null,null,null,null,null,null,null,null,1,6,1,null,null,null,null,"H","H J C","1x",null,"500 m","Moss Roklubb","Kasper Krognes Tuva",null,275,null,"Moss Roklubb","Nei",null,"10.05.2003","Ja","M100503KAS01","5059001","05.04.2016","Moss Roklubb","Jon Rekstad","92252667","rekstad0@gmail.com","17.08.2016"]
["2067",1,"Søn 28.8",206,null,"1215",null,null,null,null,null,null,null,null,null,null,2,7,2,null,null,null,null,"H","H J C","1x",null,"500 m","Sarpsborg Roklubb - Roing","Dennis Rosseland",null,275,null,"Sarpsborg Roklubb - Roing","Nei",null,"02.05.2003","Ja","M020503DEN01","6917181","10.04.2016","Sarpsborg Roklubb - Roing","Thomas Gundersen","91874904","Thomas.gundersen@afgruppen.no;thomas.gundersen@afgruppen.no","17.08.2016"]
["2068",1,"Søn 28.8",206,null,"1215",null,null,null,null,null,null,null,null,null,null,2,8,2,null,null,null,null,"H","H J C","1x",null,"500 m","Drammen Roklubb ","Jonas Willand-Evensen",null,275,null,"Drammen Roklubb ","Nei",null,"30.08.2003","Ja","M300803JON01","4879656","06.04.2016","Drammen Roklubb ","Øyvind Leirset","40069485","oeylei@online.no;Oeylei@online.no","17.08.2016"]
["2069",1,"Søn 28.8",206,null,"1215",null,null,null,null,null,null,null,null,null,null,2,9,2,null,null,null,null,"H","H J C","1x",null,"500 m","Norske Studenters Roklub","Trygve Bye Løken",null,275,null,"Norske Studenters Roklub","Nei",null,"22.04.2003","Ja","M220403TRY08","7281238","26.04.2016","Norske Studenters Roklub","Tor-geir Myhrer","90060234","rosjefen@gmail.com","17.08.2016"]
["20610",1,"Søn 28.8",206,null,"1215",null,null,null,null,null,null,null,null,null,null,2,10,2,null,null,null,null,"H","H J C","1x",null,"500 m","Ormsund Roklub","Adrian Lund",null,275,null,"Ormsund Roklub","Nei",null,"09.05.2003","Ja","M090503ADR03","6419581","25.04.2016","Ormsund Roklub","Antje Peine","+4792863244","antjep13@gmail.com","17.08.2016"]
["20611",1,"Søn 28.8",206,null,"1215",null,null,null,null,null,null,null,null,null,null,2,11,2,null,null,null,null,"H","H J C","1x",null,"500 m","Sarpsborg Roklubb - Roing","Silas Tangen",null,275,null,"Sarpsborg Roklubb - Roing","Nei",null,"13.04.2003","Ja","M130403SIL01","6935544","10.04.2016","Sarpsborg Roklubb - Roing","Thomas Gundersen","91874904","Thomas.gundersen@afgruppen.no;thomas.gundersen@afgruppen.no","17.08.2016"]
["20612",1,"Søn 28.8",206,null,"1215",null,null,null,null,null,null,null,null,null,null,2,12,2,null,null,null,null,"H","H J C","1x",null,"500 m","Moss Roklubb","Oliver Eliassen",null,275,null,"Moss Roklubb","Nei",null,"21.05.2002","Ja","M210502OLI01","4559253",null,"Ukjent/ikke registrert klubb","Jon Rekstad","92252667","rekstad0@gmail.com","17.08.2016"]
["20613",1,"Søn 28.8",206,null,"1215",null,null,null,null,null,null,null,null,null,null,3,13,3,null,null,null,null,"H","H J C","1x",null,"500 m","Tønsberg Roklub","Ola Flatland Hoftun",null,275,null,"Tønsberg Roklub","Nei",null,"14.07.2002","Ja","M140702OLA02","6835964","15.04.2016","Tønsberg Roklub","Tore Nilsson","92686272","tore.nilsson@sf-nett.no","17.08.2016"]
["20614",1,"Søn 28.8",206,null,"1215",null,null,null,null,null,null,null,null,null,null,3,14,3,null,null,null,null,"H","H J C","1x",null,"500 m","Moss Roklubb","Simen Solbakken-Thømt",null,275,null,"Moss Roklubb","Nei",null,"17.05.2002","Ja","M170502SIM07","7189809","05.04.2016","Moss Roklubb","Jon Rekstad","92252667","rekstad0@gmail.com","17.08.2016"]
["20615",1,"Søn 28.8",206,null,"1215",null,null,null,null,null,null,null,null,null,null,3,15,3,null,null,null,null,"H","H J C","1x",null,"500 m","Sarpsborg Roklubb - Roing","Jakob Asbjørnsen",null,275,null,"Sarpsborg Roklubb - Roing","Nei",null,"25.02.2002","Ja","M250202JAK02","5632274","10.04.2016","Sarpsborg Roklubb - Roing","Thomas Gundersen","91874904","Thomas.gundersen@afgruppen.no;thomas.gundersen@afgruppen.no","17.08.2016"]
["20616",1,"Søn 28.8",206,null,"1215",null,null,null,null,null,null,null,null,null,null,3,16,3,null,null,null,null,"H","H J C","1x",null,"500 m","Moss Roklubb","Kasper Krognes Tuva",null,275,null,"Moss Roklubb","Nei",null,"10.05.2003","Ja","M100503KAS01","5059001","05.04.2016","Moss Roklubb","Jon Rekstad","92252667","rekstad0@gmail.com","17.08.2016"]
["20617",1,"Søn 28.8",206,null,"1215",null,null,null,null,null,null,null,null,null,null,3,17,3,null,null,null,null,"H","H J C","1x",null,"500 m","Bærum Roklubb","Elias Håkonsen",null,275,null,"Bærum Roklubb","Nei",null,"29.10.2002","Ja","M291002ELI03","7309985",null,"Bærum Roklubb","Anders Hovde","90775520","anders.hovde@tns-gallup.no","17.08.2016"]
["20618",1,"Søn 28.8",206,null,"1215",null,null,null,null,null,null,null,null,null,null,3,18,3,null,null,null,null,"H","H J C","1x",null,"500 m","Norske Studenters Roklub","Charles Bret",null,275,null,"Norske Studenters Roklub","Nei",null,"24.10.2002","Ja","M241002CHA01","6722636","26.04.2016","Norske Studenters Roklub","Tor-geir Myhrer","90060234","rosjefen@gmail.com","17.08.2016"]
[null,null," "]
["2070",1,"Søn 28.8",207,null,{"$f":"VLOOKUP($D124,Tidsplan!$B:$D,3,FALSE)","v":"1230"},{"$f":"VLOOKUP($D124,Tidsplan!$B:$D,2,FALSE)","v":""},null,null,null,null,null," ",null," ",null,null,0,null,null,null,null,null,"D","D J C","2x",0,"500 m "]
["2071",{"$f":"OFFSET(B125,-1,0)","v":1},"Søn 28.8",207,null,{"$f":"OFFSET(F125,-1,0)","v":"1230"},null,null,null,null,null,null,null,null,null,null,1,1,1,null,null,null,null,"D","D J C","2x",null,"500 m ","Norske Studenters Roklub 1","Martine Egeland Hovland\nLisa Nakamoto Byberg",null,325,null,"Norske Studenters Roklub",null,null,"17.02.2003\n08.04.2003","Ja\nJa","K170203MAR03\nK080403LIS01","6211373\n5391349","26.04.2016\n26.04.2016","Norske Studenters Roklub\nNorske Studenters Roklub","Tor-geir Myhrer\n","90060234\n","rosjefen@gmail.com\n","17.08.2016\n17.08.2016"]
["2072",1,"Søn 28.8",207,null,"1230",null,null,null,null,null,null,null,null,null,null,1,2,1,null,null,null,null,"D","D J C","2x",null,"500 m ","Bærum Roklubb 1","Tuva Skatt Gillebo\nIda Moberg Værnes",null,325,null,"Bærum Roklubb",null,null,"17.10.2002\n01.01.2002","Ja\nJa","K171002TUV03\nK010102IDA24","6101180\n7267553","29.04.2016\n","Bærum Roklubb\nBærum Roklubb","Anders Hovde\n","90775520\n","anders.hovde@tns-gallup.no\n","17.08.2016\n17.08.2016"]
["2073",1,"Søn 28.8",207,null,"1230",null,null,null,null,null,null,null,null,null,null,1,3,1,null,null,null,null,"D","D J C","2x",null,"500 m ","Christiania Roklub 1","Nicoline Lindstrøm\nKaroline Torkildsen",null,325,null,"Christiania Roklub",null,null,"25.09.2002\n23.02.2002","Ja\nJa","K250902NIC01\nK230202KAR06","7270145\n4539828","16.06.2016\n16.06.2016","Christiania Roklub\nChristiania Roklub","Grete Isachsen Stokke\n","91338845\n","grisach@gmail.com\n","16.08.2016\n16.08.2016"]
["2074",1,"Søn 28.8",207,null,"1230",null,null,null,null,null,null,null,null,null,null,1,4,1,null,null,null,null,"D","D J C","2x",null,"500 m ","Tønsberg Roklub 1","Marie Andrup-Næss\nFrida Andrup-Næss",null,325,null,"Tønsberg Roklub",null,null,"09.05.2002\n01.10.2003","Ja\nJa","K090502MAR05\nK011003FRI10","6102972\n7173341","15.04.2016\n15.04.2016","Tønsberg Roklub\nTønsberg Roklub","Tore Nilsson\n","92686272\n","tore.nilsson@sf-nett.no\n","17.08.2016\n17.08.2016"]
["2075",1,"Søn 28.8",207,null,"1230",null,null,null,null,null,null,null,null,null,null,1,5,1,null,null,null,null,"D","D J C","2x",null,"500 m ","Norske Studenters Roklub 2","Marie Glomnes Rudi\nElla Marie Hegge",null,325,null,"Norske Studenters Roklub",null,null,"25.07.2003\n18.05.2003","Ja\nJa","K250703MAR04\nK180503ELL02","5247452\n5567226","26.04.2016\n26.04.2016","Norske Studenters Roklub\nNorske Studenters Roklub","Tor-geir Myhrer\n","90060234\n","rosjefen@gmail.com\n","17.08.2016\n17.08.2016"]
[null,null," "]
["2080",1,"Søn 28.8",208,null,{"$f":"VLOOKUP($D131,Tidsplan!$B:$D,3,FALSE)","v":"1235"},{"$f":"VLOOKUP($D131,Tidsplan!$B:$D,2,FALSE)","v":""},null,null,null,null,null,null,null,null,"K",null,0,null,null,null,null,null,"D","D S","1x",0,"500 m","236 Går med 208"]
["2081",{"$f":"OFFSET(B132,-1,0)","v":1},"Søn 28.8",208,null,{"$f":"OFFSET(F132,-1,0)","v":"1235"},null,null,null,null,null,null,null,null,null,null,1,1,1,null,null,null,null,"D","D S","1x",null,"500 m","Christiania Roklub","Johanne Asakskogen",null,275,null,"Christiania Roklub","Nei",null,"13.08.1988","Ja","K130888JOH01","6735073","06.03.2016","Christiania Roklub","Grete Isachsen Stokke","91338845","grisach@gmail.com","16.08.2016"]
["2082",1,"Søn 28.8",208,null,"1235",null,null,null,null,null,null,null,null,null,null,1,2,1,null,null,null,null,"D","D S","1x",null,"500 m","Drammen Roklubb ","Astrid Leirset",null,275,null,"Drammen Roklubb ","Nei",null,"27.11.1997","Ja","K271197AST07","5661576","15.03.2016","Drammen Roklubb ","Øyvind Leirset","40069485","oeylei@online.no;Oeylei@online.no","17.08.2016"]
["2083",1,"Søn 28.8",208,null,"1235",null,null,null,null,null,null,null,null,null,null,1,3,1,null,null,null,null,"D","D S","1x",null,"500 m","Christiania Roklub","Kari Andrea Solli Älveborn",null,275,null,"Christiania Roklub","Nei",null,"05.01.1992","Ja","K050192KAR06","6965697","06.03.2016","Christiania Roklub","Grete Isachsen Stokke","91338845","grisach@gmail.com","16.08.2016"]
["2084",1,"Søn 28.8",208,null,"1235",null,null,null,null,null,null,null,null,null,null,1,4,1,null,null,null,null,"D","D S","1x",null,"500 m","Norske Studenters Roklub","Sara Slettemark Juel",null,275,null,"Norske Studenters Roklub","Nei",null,"06.11.1997","Ja","K061197SAR05","5293357","26.04.2016","Norske Studenters Roklub","Tor-geir Myhrer","90060234","rosjefen@gmail.com","17.08.2016"]
["2085",1,"Søn 28.8",208,null,"1235",null,null,null,null,null,null,null,null,null,null,1,5,1,null,null,null,null,"D","D S","1x",null,"500 m","Christiania Roklub","Tabea Wende",null,275,null,"Christiania Roklub","Nei",null,"29.12.1991","Ja","K291291TAB02","6131060","06.03.2016","Christiania Roklub","Grete Isachsen Stokke","91338845","grisach@gmail.com","16.08.2016"]
[null,null," "]
["2090",1,"Søn 28.8",209,null,{"$f":"VLOOKUP($D138,Tidsplan!$B:$D,3,FALSE)","v":"1240"},{"$f":"VLOOKUP($D138,Tidsplan!$B:$D,2,FALSE)","v":"0915"},null,null,null,null,null,null,null,null,"K",null,0,null,null,null,null,null,"D","D J A","2x",0,"500 m "]
["209",{"$f":"OFFSET(B139,-1,0)","v":1},"Søn 28.8",209,null,{"$f":"OFFSET(F139,-1,0)","v":"1240"},"0915",null,null,null,null,null,null,null,null,null,null,null,null,null,null,null,null,"D","D J A","2x",null,"500 m ","Bærum Roklubb 1","Synnøve Gillebo Foss\nKlara Moene Omholt",null,325,null,"Bærum Roklubb",null,null,"11.08.1999\n17.03.1998","Ja\nJa","K110899SYN02\nK170398KLA02","5218490\n5645099","29.04.2016\n29.04.2016","Bærum Roklubb\nBærum Roklubb","Anders Hovde\n","90775520\n","anders.hovde@tns-gallup.no\n","17.08.2016\n17.08.2016"]
["209",1,"Søn 28.8",209,null,"1240","0915",null,null,null,null,null,null,null,null,null,null,null,null,null,null,null,null,"D","D J A","2x",null,"500 m ","Christiania Roklub 1","Aurora Olsen Junklesad\nHermine Wilhelmsen",null,325,null,"Christiania Roklub",null,null,"02.12.1998\n23.07.1999","Ja\nJa","K021298AUR02\nK230799HER03","5674631\n5674641","\n06.03.2016","Ukjent/ikke registrert klubb\nChristiania Roklub","Grete Isachsen Stokke\n","91338845\n","grisach@gmail.com\n","16.08.2016\n16.08.2016"]
["209",1,"Søn 28.8",209,null,"1240","0915",null,null,null,null,null,null,null,null,null,null,null,null,null,null,null,null,"D","D J A","2x",null,"500 m ","Drammen Roklubb  1","Karoline Rydland Masch\nSara Seip",null,325,null,"Drammen Roklubb ",null,null,"14.04.2001\n09.05.1998","Nei\nJa","K140401KAR10\nK090598SAR05","7214275\n5313667","06.04.2016\n15.03.2016","Drammen Roklubb \nDrammen Roklubb ","Øyvind Leirset\n","40069485\n","oeylei@online.no;Oeylei@online.no\n","17.08.2016\n17.08.2016"]
["209",1,"Søn 28.8",209,null,"1240","0915",null,null,null,null,null,null,null,null,null,null,null,null,null,null,null,null,"D","D J A","2x",null,"500 m ","Norske Studenters Roklub 1","Hanna Kaupang Petersen\nElisabeth Astrup Wiik",null,325,null,"Norske Studenters Roklub",null,null,"15.09.2000\n01.11.1998","Nei\nJa","K150900HAN01\nK011198ELI04","2581292\n5993806","26.04.2016\n26.04.2016","Norske Studenters Roklub\nNorske Studenters Roklub","Tor-geir Myhrer\n","90060234\n","rosjefen@gmail.com\n","17.08.2016\n17.08.2016"]
["209",1,"Søn 28.8",209,null,"1240","0915",null,null,null,null,null,null,null,null,null,null,null,null,null,null,null,null,"D","D J A","2x",null,"500 m ","Norske Studenters Roklub 2/\nFredrikstad","Emilie Stabe Helvig\nMarie Fensbekk Grønneberg",null,325,null,"Norske Studenters Roklub",null,null,"03.04.1998\n27.12.1998","Ja\nJa","K030498EMI01\nK271298MAR04","5296622\n2633539","26.04.2016\n13.04.2016","Norske Studenters Roklub\nFredriksstad Roklub,Sarpsborg Roklubb - Roing","Tor-geir Myhrer\n","90060234\n","rosjefen@gmail.com\n","17.08.2016\n17.08.2016"]
["209",1,"Søn 28.8",209,null,"1240","0915",null,null,null,null,null,null,null,null,null,null,null,null,null,null,null,null,"D","D J A","2x",null,"500 m ","Ormsund Roklub 1","Rikke Aslaksen Wåle",null,325,null,"Ormsund Roklub",null,null,"19.03.1999","Ja","K190399RIK03","6077550","11.03.2016","Ormsund Roklub","Antje Peine","+4792863244","antjep13@gmail.com","17.08.2016"]
["209",1,"Søn 28.8",209,null,"1240","0915",null,null,null,null,null,null,null,null,null,null,null,null,null,null,null,null,"D","D J A","2x",null,"500 m ","Sarpsborg Roklubb - Roing 1","Kavi Ali\nCornelia Knutsen",null,325,null,"Sarpsborg Roklubb - Roing",null,null,"04.07.1998\n28.12.2000","Ja\nNei","K040798KAV02\nK281200COR02","2739661\n6060150","10.04.2016\n10.04.2016","Sarpsborg Roklubb - Roing\nSarpsborg Roklubb - Roing","Thomas Gundersen\n","91874904\n","Thomas.gundersen@afgruppen.no;thomas.gundersen@afgruppen.no\n","17.08.2016\n17.08.2016"]
["2100",1,"Søn 28.8",210,null,{"$f":"VLOOKUP($D146,Tidsplan!$B:$D,3,FALSE)","v":"1250"},{"$f":"VLOOKUP($D146,Tidsplan!$B:$D,2,FALSE)","v":""},null,null,null,null,null,null,null,"",null,null,0,null,null,null,null,null,"D","S","2-",0,500]
["2101",1,"Søn 28.8",210,null,"1250",null,null,null,null,null,null,null," ",null,null,1,1,1,null,null,null,null,"D","D S","2-",null,"500 m","Christiania Roklub 1","Tabea Wende\nChristina Inger Kinck",null,325,null,"Christiania Roklub",null,null,"29.12.1991\n19.06.1988","Ja\nJa","K291291TAB02\nK190688CHR02","6131060\n6115132","06.03.2016\n","Christiania Roklub\nChristiania Roklub","Grete Isachsen Stokke\n","91338845\n","grisach@gmail.com\n","16.08.2016\n16.08.2016"]
["2110",1,"Søn 28.8",211,null,{"$f":"VLOOKUP($D148,Tidsplan!$B:$D,3,FALSE)","v":"1255"},{"$f":"VLOOKUP($D148,Tidsplan!$B:$D,2,FALSE)","v":"0940"},null,null,null,null,null,null,null,"S",null,null,0,null,null,null,null,null,"H","H J A","1x",{"$f":"IF(R148<>0,LEFT(Z148,1),0)*1","v":0},"500 m"]
["211",{"$f":"OFFSET(B149,-1,0)","v":1},"Søn 28.8",211,null,{"$f":"OFFSET(F149,-1,0)","v":"1255"},"0940",null,null,null,null,null,null,null,null,null,null,null,null,null,null,null,null,"H","H J A","1x",null,"500 m","Bærum Roklubb","Hermann Hovde",null,275,null,"Bærum Roklubb","Nei",null,"01.01.1999","Ja","M010199HER12","5632327","29.04.2016","Bærum Roklubb","Anders Hovde","90775520","anders.hovde@tns-gallup.no","17.08.2016"]
["211",1,"Søn 28.8",211,null,"1255","0940",null,null,null,null,null,null,null,null,null,null,null,null,null,null,null,null,"H","H J A","1x",null,"500 m","Bærum Roklubb","Jaime Aalders",null,275,null,"Bærum Roklubb","Nei",null,"16.09.1999","Ja","M160999JAI02","5508697","29.04.2016","Bærum Roklubb","Anders Hovde","90775520","anders.hovde@tns-gallup.no","17.08.2016"]
["211",1,"Søn 28.8",211,null,"1255","0940",null,null,null,null,null,null,null,null,null,null,null,null,null,null,null,null,"H","H J A","1x",null,"500 m","Bærum Roklubb","Tade Phanke",null,275,null,"Bærum Roklubb","Nei",null,"20.10.1999","Ja","M201099TAD02","6760197","29.04.2016","Bærum Roklubb","Anders Hovde","90775520","anders.hovde@tns-gallup.no","17.08.2016"]
["211",1,"Søn 28.8",211,null,"1255","0940",null,null,null,null,null,null,null,null,null,null,null,null,null,null,null,null,"H","H J A","1x",null,"500 m","Moss Roklubb","Alfred Eliassen",null,275,null,"Moss Roklubb","Nei",null,"06.12.1999","Ja","M061299ALF01","2747765","05.04.2016","Moss Roklubb","Jon Rekstad","92252667","rekstad0@gmail.com","17.08.2016"]
["211",1,"Søn 28.8",211,null,"1255","0940",null,null,null,null,null,null,null,null,null,null,null,null,null,null,null,null,"H","H J A","1x",null,"500 m","Moss Roklubb","Vegard Hjortkær Sæby",null,275,null,"Moss Roklubb","Nei",null,"07.07.1998","Ja","M070798VEG01","2696077","05.04.2016","Moss Roklubb","Jon Rekstad","92252667","rekstad0@gmail.com","17.08.2016"]
["211",1,"Søn 28.8",211,null,"1255","0940",null,null,null,null,null,null,null,null,null,null,null,null,null,null,null,null,"H","H J A","1x",null,"500 m","Norske Studenters Roklub","Oliver Alexander Petterson Stubbs",null,275,null,"Norske Studenters Roklub","Nei",null,"05.09.1998","Ja","M050998OLI01","7311395",null,"Norske Studenters Roklub","Tor-geir Myhrer","90060234","rosjefen@gmail.com","17.08.2016"]
["211",1,"Søn 28.8",211,null,"1255","0940",null,null,null,null,null,null,null,null,null,null,null,null,null,null,null,null,"H","H J A","1x",null,"500 m","Ormsund Roklub","Hauk Norum Sitre",null,275,null,"Ormsund Roklub","Nei",null,"29.06.1999","Ja","M290699HAU02","7203449","25.04.2016","Ormsund Roklub","Antje Peine","+4792863244","antjep13@gmail.com","17.08.2016"]
["211",1,"Søn 28.8",211,null,"1255","0940",null,null,null,null,null,null,null,null,null,null,null,null,null,null,null,null,"H","H J A","1x",null,"500 m","Ormsund Roklub","Herman Mathisen",null,275,null,"Ormsund Roklub","Nei",null,"17.01.1999","Ja","M170199HER02","5667123",null,"Ukjent/ikke registrert klubb","Antje Peine","+4792863244","antjep13@gmail.com","17.08.2016"]
[{"$f":"D157&R157","v":"211"},1,"Søn 28.8",211,null,"1255","0940",null,null,null,null,null,null,null,null,null,null,null,null,null,null,null,null,"H","H J A","1x",null,"500 m","Ormsund Roklub","Kristian Løken",null,275,null,"Ormsund Roklub","Nei",null,"21.06.1999","Ja","M210699KRI05","5859758","11.03.2016","Ormsund Roklub","Antje Peine","+4792863244","antjep13@gmail.com","17.08.2016"]
["211",1,"Søn 28.8",211,null,"1255","0940",null,null,null,null,null,null,null,null,null,null,null,null,null,null,null,null,"H","H J A","1x",null,"500 m","Ormsund Roklub","Oskar Jørgensen",null,275,null,"Ormsund Roklub","Nei",null,"08.04.1998","Ja","M080498OSK02","7249866","11.03.2016","Ormsund Roklub","Antje Peine","+4792863244","antjep13@gmail.com","17.08.2016"]
["211",1,"Søn 28.8",211,null,"1255","0940",null,null,null,null,null,null,null,null,null,null,null,null,null,null,null,null,"H","H J A","1x",null,"500 m","Ormsund Roklub","Thomas Soma Ferguson",null,275,null,"Ormsund Roklub","Nei",null,"14.07.1998","Ja","M140798THO03","5662311","11.03.2016","Ormsund Roklub","Antje Peine","+4792863244","antjep13@gmail.com","17.08.2016"]
["211",1,"Søn 28.8",211,null,"1255","0940",null,null,null,null,null,null,null,null,null,null,null,null,null,null,null,null,"H","H J A","1x",null,"500 m","Tønsberg Roklub","rasmus Mortensen",null,275,null,"Tønsberg Roklub","Nei",null,"01.06.1998","Ja","M010698RAS01","7270178","07.06.2016","Tønsberg Roklub","Tore Nilsson","92686272","tore.nilsson@sf-nett.no","17.08.2016"]
["2120",1,"Søn 28.8",212,null,{"$f":"VLOOKUP($D161,Tidsplan!$B:$D,3,FALSE)","v":"1305"},{"$f":"VLOOKUP($D161,Tidsplan!$B:$D,2,FALSE)","v":""},null,null,null,null,null,null,null,"S","K",null,0,null,null,null,null,null,"H","S/Master","4-",0,500]
["2130",0,"Søn 28.8",213,null,{"$f":"VLOOKUP($D162,Tidsplan!$B:$D,3,FALSE)","v":"1310"},{"$f":"VLOOKUP($D162,Tidsplan!$B:$D,2,FALSE)","v":""},null,null,null,null,null,null,null,"",null,null,0,null,null,null,null,null,"D","Master","4x",0,500]
["2131",{"$f":"OFFSET(B163,-1,0)","v":0},"Søn 28.8",213,null,{"$f":"OFFSET(F163,-1,0)","v":"1310"},"",null,null,null,null,null,null,null,null,null,1,1,1,null,null,null,null,"D","D M","4x",null,"500 m","Bestumkilen Roklubb 1","Marte Radmann\nThale Grøtt\nMarte Åsland Hansen\nIngrid Motzfeldt",null,375,null,"Bestumkilen Roklubb",null,null,"27.12.1978\n07.08.1984\n25.11.1984\n18.08.1978","Ja\nJa\nJa\nJa","K271278MAR04\nK070884THA01\nK251184MAR08\nK180878ING03","2636337\n5919615\n5807375\n2374727","13.07.2016\n31.05.2016\n31.05.2016\n13.07.2016","Bestumkilen Roklubb\nBestumkilen Roklubb\nBestumkilen Roklubb,Norske Studenters Roklub\nBestumkilen Roklubb","Sigbjørn Birkeland\n","93480893\n","sigbjorn.birkeland@storebrand.no;sigbjorn.birkeland@online.no\n","17.08.2016\n17.08.2016\n17.08.2016\n17.08.2016"]
["2140",1,"Søn 28.8",214,null,{"$f":"VLOOKUP($D164,Tidsplan!$B:$D,3,FALSE)","v":"1315"},{"$f":"VLOOKUP($D164,Tidsplan!$B:$D,2,FALSE)","v":""},null,null,null,null,null,null,null,null,"K",null,0,null,null,null,null,null,"H","H J A","2-",0,"500 m"]
["2141",{"$f":"OFFSET(B165,-1,0)","v":1},"Søn 28.8",214,null,{"$f":"OFFSET(F165,-1,0)","v":"1315"},null,null,null,null,null,null,null,null,null,null,1,1,1,null,null,null,null,"H","H J A","2-",null,"500 m","Bærum Roklubb 1","Hermann Hovde\nJaime Aalders",null,325,null,"Bærum Roklubb",null,null,"01.01.1999\n16.09.1999","Ja\nJa","M010199HER12\nM160999JAI02","5632327\n5508697","29.04.2016\n29.04.2016","Bærum Roklubb\nBærum Roklubb","Anders Hovde\n","90775520\n","anders.hovde@tns-gallup.no\n","17.08.2016\n17.08.2016"]
["2142",1,"Søn 28.8",214,null,"1315",null,null,null,null,null,null,null,null,null,null,1,2,1,null,null,null,null,"H","H J A","2-",null,"500 m","Moss Roklubb 1","Alfred Eliassen\nVegard Hjortkær Sæby",null,325,null,"Moss Roklubb",null,null,"06.12.1999\n07.07.1998","Ja\nJa","M061299ALF01\nM070798VEG01","2747765\n2696077","05.04.2016\n05.04.2016","Moss Roklubb\nMoss Roklubb","Jon Rekstad\n","92252667\n","rekstad0@gmail.com\n","17.08.2016\n17.08.2016"]
["2143",1,"Søn 28.8",214,null,"1315",null,null,null,null,null,null,null,null,null,null,1,3,1,null,null,null,null,"H","H J A","2-",null,"500 m","Norske Studenters Roklub 1","Sam Lorgen\nKristian Søhr",null,325,null,"Norske Studenters Roklub",null,null,"02.04.2000\n14.04.2000","Nei\nNei","M020400SAM02\nM140400KRI01","6722466\n4077003","26.04.2016\n26.04.2016","Norske Studenters Roklub\nNorske Studenters Roklub","Tor-geir Myhrer\n","90060234\n","rosjefen@gmail.com\n","17.08.2016\n17.08.2016"]
["2150",1,"Søn 28.8",215,null,{"$f":"VLOOKUP($D168,Tidsplan!$B:$D,3,FALSE)","v":"1320"},{"$f":"VLOOKUP($D168,Tidsplan!$B:$D,2,FALSE)","v":""},null,null,null,null,null,null,null," S",null,null,0,null,null,null,null,null,"H","H S","1x",0,"500 m"]
["2151",{"$f":"OFFSET(B169,-1,0)","v":1},"Søn 28.8",215,null,{"$f":"OFFSET(F169,-1,0)","v":"1320"},null,null,null,null,null,null,null,null,null,null,1,1,1,null,null,null,null,"H","H S","1x",null,"500 m","Haldens Roklub","Petter Norsted Kildebo",null,275,null,"Haldens Roklub","Nei",null,"26.09.1997","Ja","M260997PET06","6159432","25.04.2016","Haldens Roklub","Eivind Borring Hansen","97588834","eivind@hkpensjon.no;eivhan@gmail.com","17.08.2016"]
["2152",{"$f":"OFFSET(B170,-1,0)","v":1},"Søn 28.8",215,null,{"$f":"OFFSET(F170,-1,0)","v":"1320"},null,null,null,null,null,null,null,null,null,null,1,2,1,null,null,null,null,"H","H S","1x",null,"500 m","Bærum Roklubb","Halvor Hølmkjær West",null,275,null,"Bærum Roklubb","Nei",null,"09.02.1994","Ja","M090294HAL02","5993966","29.04.2016","Bærum Roklubb","Anders Hovde","90775520","anders.hovde@tns-gallup.no","17.08.2016"]
[{"$f":"D171&R171","v":"2153"},{"$f":"OFFSET(B171,-1,0)","v":1},"Søn 28.8",215,null,{"$f":"OFFSET(F171,-1,0)","v":"1320"},null,null,null,null,null,null,null,null,null,null,1,3,1,null,null,null,null,"H","H S","1x",null,"500 m","Ormsund Roklub","Audun Grepperud",null,275,null,"Ormsund Roklub","Nei",null,"02.06.1996","Ja","M020696AUD01","4399997","11.03.2016","Ormsund Roklub","Antje Peine","+4792863244","antjep13@gmail.com","17.08.2016"]
["2154",1,"Søn 28.8",215,null,"1320",null,null,null,null,null,null,null,null,null,null,1,4,1,null,null,null,null,"H","H S","1x",null,"500 m","Haldens Roklub","Thomas Furuvarp",null,275,null,"Haldens Roklub","Nei",null,"29.06.1995","Ja","M290695THO04","5304581","25.04.2016","Haldens Roklub","Eivind Borring Hansen","97588834","eivind@hkpensjon.no;eivhan@gmail.com","17.08.2016"]
["2160",0,"Søn 28.8",216,null,{"$f":"VLOOKUP($D173,Tidsplan!$B:$D,3,FALSE)","v":"1325"},{"$f":"VLOOKUP($D173,Tidsplan!$B:$D,2,FALSE)","v":""},null,null,null,null,null,null,null," ","K",null,0,null,null,null,null,null,"H","S L ","1x",0,500]
["2161",0,"Søn 28.8",216,null,"1325",null,null,null,null,null,null,null,null,null,null,1,1,1,null,null,null,null,"D","D J A","4-",null,"500 m","Bærum Roklubb 1","Synnøve Gillebo Foss",null,375,null,"Bærum Roklubb",null,null,"11.08.1999","Ja","K110899SYN02","5218490","29.04.2016","Bærum Roklubb","Anders Hovde","90775520","anders.hovde@tns-gallup.no","17.08.2016"]
["2170",0,"Søn 28.8",217,null,{"$f":"VLOOKUP($D175,Tidsplan!$B:$D,3,FALSE)","v":"1330"},{"$f":"VLOOKUP($D175,Tidsplan!$B:$D,2,FALSE)","v":""},null,null,null,null,null,null,null,"S",null,null,0,null,null,null,null,null,"H","S L v","1x",{"$f":"IF(R175<>0,LEFT(Z175,1),0)*1","v":0},500]
["2180",1,"Søn 28.8",218,null,{"$f":"VLOOKUP($D176,Tidsplan!$B:$D,3,FALSE)","v":"1335"},{"$f":"VLOOKUP($D176,Tidsplan!$B:$D,2,FALSE)","v":""},null,null,null,null,null,null,null,"S","K",null,0,null,null,null,null,null,"D","D S","2x",0,"500 m "]
[{"$f":"D177&R177","v":"2181"},{"$f":"OFFSET(B177,-1,0)","v":1},"Søn 28.8",218,null,{"$f":"OFFSET(F177,-1,0)","v":"1335"},null,null,null,null,null,null,null,null,null,null,1,1,1,null,null,null,null,"D","D S","2x",null,"500 m ","Christiania Roklub 1","Christine Randsborg\nMarie Lindvik Jørstad",null,325,null,"Christiania Roklub",null,null,"12.04.1987\n17.01.1990","Ja\nJa","K120487CHR01\nK170190MAR09","5857799\n6782478","06.03.2016\n06.03.2016","Christiania Roklub\nChristiania Roklub","Grete Isachsen Stokke\n","91338845\n","grisach@gmail.com\n","16.08.2016\n16.08.2016"]
[{"$f":"D178&R178","v":"2182"},{"$f":"OFFSET(B178,-1,0)","v":1},"Søn 28.8",218,null,{"$f":"OFFSET(F178,-1,0)","v":"1335"},null,null,null,null,null,null,null,null,null,null,1,2,1,null,null,null,null,"D","D S","2x",null,"500 m ","Norske Studenters Roklub 1","Anna Sofie Een Sture\nSara Slettemark Juel",null,325,null,"Norske Studenters Roklub",null,null,"08.02.1995\n06.11.1997","Ja\nJa","K080295ANN03\nK061197SAR05","2832002\n5293357","26.04.2016\n26.04.2016","Norske Studenters Roklub\nNorske Studenters Roklub","Tor-geir Myhrer\n","90060234\n","rosjefen@gmail.com\n","17.08.2016\n17.08.2016"]
[{"$f":"D179&R179","v":"2183"},{"$f":"OFFSET(B179,-1,0)","v":1},"Søn 28.8",218,null,{"$f":"OFFSET(F179,-1,0)","v":"1335"},null,null,null,null,null,null,null,null,null,null,1,3,1,null,null,null,null,"D","D S","2x",null,"500 m ","Christiania Roklub 2","Kari Andrea Solli Älveborn",null,325,null,"Christiania Roklub",null,null,"05.01.1992","Ja","K050192KAR06","6965697","06.03.2016","Christiania Roklub","Grete Isachsen Stokke","91338845","grisach@gmail.com","16.08.2016"]
["2184",1,"Søn 28.8",218,null,"1335",null,null,null,null,null,null,null,null,null,null,1,4,1,null,null,null,null,"D","D S ","2x",null,"500 m","Drammen\nDrammen","Fanny Lucie Røed\nMari Evjen Bergersen",null,650,"E","Fredrikstad Roklubb",null,null,null,null,null,null,null,null,"Øyvind Leirset"," ","Øyvind Leirset <oeylei@online.no>","2016-08-22"]
["2190",1,"Søn 28.8",219,null,{"$f":"VLOOKUP($D181,Tidsplan!$B:$D,3,FALSE)","v":"1340"},{"$f":"VLOOKUP($D181,Tidsplan!$B:$D,2,FALSE)","v":""},null,null,null,null,null,null,null," ",null,null,0,null,null,null,null,null,"H","H J C","2x",0,"500 m "]
["2191",{"$f":"OFFSET(B182,-1,0)","v":1},"Søn 28.8",219,null,{"$f":"OFFSET(F182,-1,0)","v":"1340"},null,null,null,null,null,null,null,null,null,null,1,1,1,null,null,null,null,"H","H J C","2x",null,"500 m ","Bærum Roklubb 1","Elias Håkonsen\nMagnus Kavli",null,325,null,"Bærum Roklubb",null,null,"29.10.2002\n01.01.2004","Ja\nNei","M291002ELI03\nM010104MAG01","7309985\n7232220","\n","Bærum Roklubb\nBærum Roklubb","Anders Hovde\n","90775520\n","anders.hovde@tns-gallup.no\n","17.08.2016\n17.08.2016"]
[{"$f":"D183&R183","v":"2192"},{"$f":"OFFSET(B183,-1,0)","v":1},"Søn 28.8",219,null,{"$f":"OFFSET(F183,-1,0)","v":"1340"},null,null,null,null,null,null,null,null,null,null,1,2,1,null,null,null,null,"H","H J C","2x",null,"500 m ","Sarpsborg Roklubb - Roing 1","Jakob Asbjørnsen\nHåkon Grønberg Møller",null,325,null,"Sarpsborg Roklubb - Roing",null,null,"25.02.2002\n22.12.2002","Ja\nJa","M250202JAK02\nM221202HÅK01","5632274\n6848301","10.04.2016\n10.04.2016","Sarpsborg Roklubb - Roing\nSarpsborg Roklubb - Roing","Thomas Gundersen\n","91874904\n","Thomas.gundersen@afgruppen.no;thomas.gundersen@afgruppen.no\n","17.08.2016\n17.08.2016"]
["2193",1,"Søn 28.8",219,null,"1340",null,null,null,null,null,null,null,null,null,null,1,3,1,null,null,null,null,"H","H J C","2x",null,"500 m ","Norske Studenters Roklub 1","Trygve Bye Løken\nCharles Bret",null,325,null,"Norske Studenters Roklub",null,null,"22.04.2003\n24.10.2002","Ja\nJa","M220403TRY08\nM241002CHA01","7281238\n6722636","26.04.2016\n26.04.2016","Norske Studenters Roklub\nNorske Studenters Roklub","Tor-geir Myhrer\n","90060234\n","rosjefen@gmail.com\n","17.08.2016\n17.08.2016"]
["2194",1,"Søn 28.8",219,null,"1340",null,null,null,null,null,null,null,null,null,null,1,4,1,null,null,null,null,"H","H J C","2x",null,"500 m ","Ormsund Roklub 1","Erlend Hystad\nAdrian Lund",null,325,null,"Ormsund Roklub",null,null,"01.12.2002\n09.05.2003","Ja\nJa","M011202ERL01\nM090503ADR03","4859156\n6419581","11.03.2016\n25.04.2016","Ormsund Roklub\nOrmsund Roklub","Antje Peine\n","+4792863244\n","antjep13@gmail.com\n","17.08.2016\n17.08.2016"]
[{"$f":"D186&R186","v":"2195"},{"$f":"OFFSET(B186,-1,0)","v":1},"Søn 28.8",219,null,{"$f":"OFFSET(F186,-1,0)","v":"1340"},null,null,null,null,null,null,null,null,null,null,2,5,2,null,null,null,null,"H","H J C","2x",null,"500 m ","Tønsberg Roklub 1","Ola Flatland Hoftun\nTevje Wilhelmsen Larsen",null,325,null,"Tønsberg Roklub",null,null,"14.07.2002\n29.07.2002","Ja\nJa","M140702OLA02\nM290702TEV01","6835964\n7311816","15.04.2016\n18.08.2016","Tønsberg Roklub\nTønsberg Roklub","Tore Nilsson\n","92686272\n","tore.nilsson@sf-nett.no\n","17.08.2016\n17.08.2016"]
["2196",1,"Søn 28.8",219,null,"1340",null,null,null,null,null,null,null,null,null,null,2,6,2,null,null,null,null,"H","H J C","2x",null,"500 m ","Sarpsborg Roklubb - Roing 2","Dennis Rosseland\nSilas Tangen",null,325,null,"Sarpsborg Roklubb - Roing",null,null,"02.05.2003\n13.04.2003","Ja\nJa","M020503DEN01\nM130403SIL01","6917181\n6935544","10.04.2016\n10.04.2016","Sarpsborg Roklubb - Roing\nSarpsborg Roklubb - Roing","Thomas Gundersen\n","91874904\n","Thomas.gundersen@afgruppen.no;thomas.gundersen@afgruppen.no\n","17.08.2016\n17.08.2016"]
["2197",1,"Lør 27.8",219,null,"1340",null,null,null,null,null,null,null,null,null,null,2,7,2,null,null,null,null,"H","H J C","2x",null,"500 m","Drammen\nDrammen","Håkon Hannevold\nJonas Wiland-Evensen. ",null,650,"E","Fredrikstad Roklubb",null,null,null,null,null,null,null,null,"Øyvind Leirset"," ","Øyvind Leirset <oeylei@online.no>","2016-08-22"]
["2200",1,"Søn 28.8",220,null,{"$f":"VLOOKUP($D189,Tidsplan!$B:$D,3,FALSE)","v":"1345"},{"$f":"VLOOKUP($D189,Tidsplan!$B:$D,2,FALSE)","v":""},null,null,null,null,null,null,null," ",null,null,0,null,null,null,null,null,"D","D J C","1x",0,"500 m"]
["2201",{"$f":"OFFSET(B190,-1,0)","v":1},"Søn 28.8",220,null,{"$f":"OFFSET(F190,-1,0)","v":"1345"},null,null,null,null,null,null,null,null,null,null,1,1,1,null,null,null,null,"D","D J C","1x",null,"500 m","Norske Studenters Roklub","Marie Glomnes Rudi",null,275,null,"Norske Studenters Roklub","Nei",null,"25.07.2003","Ja","K250703MAR04","5247452","26.04.2016","Norske Studenters Roklub","Tor-geir Myhrer","90060234","rosjefen@gmail.com","17.08.2016"]
["2202",1,"Søn 28.8",220,null,"1345",null,null,null,null,null,null,null,null,null,null,1,2,1,null,null,null,null,"D","D J C","1x",null,"500 m","Bærum Roklubb","Ida Moberg  Værnes",null,275,null,"Bærum Roklubb","Nei",null,"22.05.2002","Ja","K220502IDA01","4612874",null,"Ukjent/ikke registrert klubb","Anders Hovde","90775520","anders.hovde@tns-gallup.no","17.08.2016"]
[{"$f":"D192&R192","v":"2203"},{"$f":"OFFSET(B192,-1,0)","v":1},"Søn 28.8",220,null,{"$f":"OFFSET(F192,-1,0)","v":"1345"},null,null,null,null,null,null,null,null,null,null,1,3,1,null,null,null,null,"D","D J C","1x",null,"500 m","Tønsberg Roklub","Ida kyvik Sandvik",null,275,null,"Tønsberg Roklub","Nei",null,"24.07.2002","Ja","K240702IDA05","7173655","15.04.2016","Tønsberg Roklub","Tore Nilsson","92686272","tore.nilsson@sf-nett.no","17.08.2016"]
["2204",1,"Søn 28.8",220,null,"1345",null,null,null,null,null,null,null,null,null,null,1,4,1,null,null,null,null,"D","D J C","1x",null,"500 m","Norske Studenters Roklub","Ella Marie Hegge",null,275,null,"Norske Studenters Roklub","Nei",null,"18.05.2003","Ja","K180503ELL02","5567226","26.04.2016","Norske Studenters Roklub","Tor-geir Myhrer","90060234","rosjefen@gmail.com","17.08.2016"]
[{"$f":"D194&R194","v":"2205"},{"$f":"OFFSET(B194,-1,0)","v":1},"Søn 28.8",220,null,{"$f":"OFFSET(F194,-1,0)","v":"1345"},null,null,null,null,null,null,null,null,null,null,2,5,2,null,null,null,null,"D","D J C","1x",null,"500 m","Tønsberg Roklub","Frida Andrup-Næss",null,275,null,"Tønsberg Roklub","Nei",null,"01.10.2003","Ja","K011003FRI10","7173341","15.04.2016","Tønsberg Roklub","Tore Nilsson","92686272","tore.nilsson@sf-nett.no","17.08.2016"]
[{"$f":"D195&R195","v":"2206"},{"$f":"OFFSET(B195,-1,0)","v":1},"Søn 28.8",220,null,{"$f":"OFFSET(F195,-1,0)","v":"1345"},null,null,null,null,null,null,null,null,null,null,2,6,2,null,null,null,null,"D","D J C","1x",null,"500 m","Bærum Roklubb","Tuva Skatt Gillebo",null,275,null,"Bærum Roklubb","Nei",null,"17.10.2002","Ja","K171002TUV03","6101180","29.04.2016","Bærum Roklubb","Anders Hovde","90775520","anders.hovde@tns-gallup.no","17.08.2016"]
["2207",1,"Søn 28.8",220,null,"1345",null,null,null,null,null,null,null,null,null,null,2,7,2,null,null,null,null,"D","D J C","1x",null,"500 m","Tønsberg Roklub","Marie Andrup-Næss",null,275,null,"Tønsberg Roklub","Nei",null,"09.05.2002","Ja","K090502MAR05","6102972","15.04.2016","Tønsberg Roklub","Tore Nilsson","92686272","tore.nilsson@sf-nett.no","17.08.2016"]
["2210",1,"Søn 28.8",221,null,{"$f":"VLOOKUP($D197,Tidsplan!$B:$D,3,FALSE)","v":"1350"},{"$f":"VLOOKUP($D197,Tidsplan!$B:$D,2,FALSE)","v":"0925"},null,null,null,null,null,null,null," ",null,null,0,null,null,null,null,null,"H","H J B","2x",{"$f":"IF(R197<>0,LEFT(Z197,1),0)*1","v":0},"500 m "]
["221",{"$f":"OFFSET(B198,-1,0)","v":1},"Søn 28.8",221,null,{"$f":"OFFSET(F198,-1,0)","v":"1350"},"0925",null,null,null,null,null,null,null,null,null,null,null,null,null,null,null,null,"H","H J B","2x",null,"500 m ","Bærum Roklubb 1","Eirik Myreng Hauge\nsindre fuglseth",null,325,null,"Bærum Roklubb",null,null,"17.04.2000\n26.09.2000","Ja\nJa","M170400EIR02\nM260900SIN02","5005277\n6073987","29.04.2016\n29.04.2016","Bærum Roklubb\nBærum Roklubb","Anders Hovde\n","90775520\n","anders.hovde@tns-gallup.no\n","17.08.2016\n17.08.2016"]
["221",1,"Søn 28.8",221,null,"1350","0925",null,null,null,null,null,null,null,null,null,null,null,null,null,null,null,null,"H","H J B","2x",null,"500 m ","Bærum Roklubb 2","Petter Bratli\nØystein Dingen Endresen",null,325,null,"Bærum Roklubb",null,null,"17.06.2000\n07.06.2000","Ja\nJa","M170600PET02\nM070600ØYS01","5956457\n5372192","29.04.2016\n29.04.2016","Bærum Roklubb\nBærum Roklubb","Anders Hovde\n","90775520\n","anders.hovde@tns-gallup.no\n","17.08.2016\n17.08.2016"]
["221",1,"Søn 28.8",221,null,"1350","0925",null,null,null,null,null,null,null,null,null,null,null,null,null,null,null,null,"H","H J B","2x",null,"500 m ","Bærum Roklubb 3","Lars Moberg Værnes\nFredrik Vistung",null,325,null,"Bærum Roklubb",null,null,"02.06.2000\n01.01.2001","Ja\nJa","M020600LAR02\nM010101FRE60","4487587\n7267551","29.04.2016\n","Bærum Roklubb\nBærum Roklubb","Anders Hovde\n","90775520\n","anders.hovde@tns-gallup.no\n","17.08.2016\n17.08.2016"]
["221",1,"Søn 28.8",221,null,"1350","0925",null,null,null,null,null,null,null,null,null,null,null,null,null,null,null,null,"H","H J B","2x",null,"500 m ","Bærum Roklubb 4","Vitus Aparicio Tjøm\nBrage Bragstad",null,325,null,"Bærum Roklubb",null,null,"26.01.2001\n12.09.2000","Ja\nJa","M260101VIT01\nM120900BRA03","5062270\n4908711","29.04.2016\n29.04.2016","Bærum Roklubb\nBærum Roklubb","Anders Hovde\n","90775520\n","anders.hovde@tns-gallup.no\n","17.08.2016\n17.08.2016"]
["221",1,"Søn 28.8",221,null,"1350","0925",null,null,null,null,null,null,null,null,null,null,null,null,null,null,null,null,"H","H J B","2x",null,"500 m ","Christiania Roklub 1","Tinius Wilhelmsen\nAndreas Dugstad Sørskaar",null,325,null,"Christiania Roklub",null,null,"18.10.2001\n10.06.2001","Ja\nJa","M181001TIN04\nM100601AND02","6005810\n4221227","06.03.2016\n24.03.2016","Christiania Roklub\nChristiania Roklub","Grete Isachsen Stokke\n","91338845\n","grisach@gmail.com\n","16.08.2016\n16.08.2016"]
["221",1,"Søn 28.8",221,null,"1350","0925",null,null,null,null,null,null,null,null,null,null,null,null,null,null,null,null,"H","H J B","2x",null,"500 m ","Christiania Roklub 2","Sverre Johan Steinvik Engebretsen\nMartin Dege",null,325,null,"Christiania Roklub",null,null,"18.02.2001\n16.05.2001","Ja\nJa","M180201SVE04\nM160501MAR05","6759915\n6759918","27.05.2016\n","Christiania Roklub\nChristiania Roklub","Grete Isachsen Stokke\n","91338845\n","grisach@gmail.com\n","16.08.2016\n16.08.2016"]
["221",1,"Søn 28.8",221,null,"1350","0925",null,null,null,null,null,null,null,null,null,null,null,null,null,null,null,null,"H","H J B","2x",null,"500 m ","Drammen Roklubb  1","Bjørn Tarald Rosfjord Wik\nElias Loe Eritsland",null,325,null,"Drammen Roklubb ",null,null,"24.11.2001\n13.02.2001","Ja\nJa","M241101BJØ02\nM130201ELI01","7310641\n6756069","17.08.2016\n15.03.2016","Drammen Roklubb \nDrammen Roklubb ","Øyvind Leirset\n","40069485\n","oeylei@online.no;Oeylei@online.no\n","17.08.2016\n17.08.2016"]
["221",1,"Søn 28.8",221,null,"1350","0925",null,null,null,null,null,null,null,null,null,null,null,null,null,null,null,null,"H","H J B","2x",null,"500 m ","Moss Roklubb 1","Jarle Hjortkjær Sæby\nMagnus strømme",null,325,null,"Moss Roklubb",null,null,"17.08.2000\n15.11.2001","Ja\nJa","M170800JAR02\nM151101MAG07","2794789\n6045066","05.04.2016\n05.04.2016","Moss Roklubb\nMoss Roklubb","Jon Rekstad\n","92252667\n","rekstad0@gmail.com\n","17.08.2016\n17.08.2016"]
["221",1,"Søn 28.8",221,null,"1350","0925",null,null,null,null,null,null,null,null,null,null,null,null,null,null,null,null,"H","H J B","2x",null,"500 m ","Norske Studenters Roklub 1","Sam Lorgen\nEdvard Sander Bae Mysen",null,325,null,"Norske Studenters Roklub",null,null,"02.04.2000\n18.10.2000","Ja\nJa","M020400SAM02\nM181000EDV01","6722466\n5383840","26.04.2016\n26.04.2016","Norske Studenters Roklub\nNorske Studenters Roklub","Tor-geir Myhrer\n","90060234\n","rosjefen@gmail.com\n","17.08.2016\n17.08.2016"]
["221",1,"Søn 28.8",221,null,"1350","0925",null,null,null,null,null,null,null,null,null,null,null,null,null,null,null,null,"H","H J B","2x",null,"500 m ","Norske Studenters Roklub 2","Petter Arnøy\nNicolai Fongaard",null,325,null,"Norske Studenters Roklub",null,null,"16.02.2001\n06.08.2001","Ja\nJa","M160201PET02\nM060801NIC02","4179438\n4916382","26.04.2016\n26.04.2016","Norske Studenters Roklub\nNorske Studenters Roklub","Tor-geir Myhrer\n","90060234\n","rosjefen@gmail.com\n","17.08.2016\n17.08.2016"]
["221",1,"Søn 28.8",221,null,"1350","0925",null,null,null,null,null,null,null,null,null,null,null,null,null,null,null,null,"H","H J B","2x",null,"500 m ","Norske Studenters Roklub 3","Hugo Haavind\nArne Theodor Gjelsten",null,325,null,"Norske Studenters Roklub",null,null,"17.05.2001\n05.03.2000","Ja\nJa","M170501HUG03\nM050300ARN02","5178950\n6071908","\n","Norske Studenters Roklub\nNorske Studenters Roklub","Tor-geir Myhrer\n","90060234\n","rosjefen@gmail.com\n","17.08.2016\n17.08.2016"]
["221",1,"Søn 28.8",221,null,"1350","0925",null,null,null,null,null,null,null,null,null,null,null,null,null,null,null,null,"H","H J B","2x",null,"500 m ","Sarpsborg Roklubb - Roing 1","Diderik Skjønhaug\nJacob Gundersen",null,325,null,"Sarpsborg Roklubb - Roing",null,null,"28.12.2000\n08.04.2001","Ja\nJa","M281200DID01\nM080401JAC01","5330116\n5584584","10.04.2016\n10.04.2016","Sarpsborg Roklubb - Roing\nSarpsborg Roklubb - Roing","Thomas Gundersen\n","91874904\n","Thomas.gundersen@afgruppen.no;thomas.gundersen@afgruppen.no\n","17.08.2016\n17.08.2016"]
["221",1,"Søn 28.8",221,null,"1350","0925",null,null,null,null,null,null,null,null,null,null,null,null,null,null,null,null,"H","H J B","2x",null,"500 m ","Tønsberg Roklub 1","Lars Jørann Lindgren\nIsak Vartal-Gjerde",null,325,null,"Tønsberg Roklub",null,null,"30.05.2001\n24.12.2000","Ja\nJa","M300501LAR02\nM241200ISA03","4234298\n7173184","15.04.2016\n15.04.2016","Tønsberg Roklub\nTønsberg Roklub","Tore Nilsson\n","92686272\n","tore.nilsson@sf-nett.no\n","17.08.2016\n17.08.2016"]
["2220",1,"Søn 28.8",222,null,{"$f":"VLOOKUP($D211,Tidsplan!$B:$D,3,FALSE)","v":"1400"},{"$f":"VLOOKUP($D211,Tidsplan!$B:$D,2,FALSE)","v":"0950"},null,null,null,null,null,null,null,"S",null,null,0,null,null,null,null,null,"D","D J A","1x",0,"500 m"]
["222",{"$f":"OFFSET(B212,-1,0)","v":1},"Søn 28.8",222,null,{"$f":"OFFSET(F212,-1,0)","v":"1400"},"0950",null,null,null,null,null,null,null,null,null,null,null,null,null,null,null,null,"D","D J A","1x",null,"500 m","Christiania Roklub","Aurora Olsen Juklestad",null,275,null,"Christiania Roklub","Nei",null,"05.12.1998","Ja","K051298AUR02","5444521","10.08.2016","Christiania Roklub","Grete Isachsen Stokke","91338845","grisach@gmail.com","16.08.2016"]
["222",1,"Søn 28.8",222,null,"1400","0950",null,null,null,null,null,null,null,null,null,null,null,null,null,null,null,null,"D","D J A","1x",null,"500 m","Christiania Roklub","Hermine Wilhelmsen",null,275,null,"Christiania Roklub","Nei",null,"23.07.1999","Ja","K230799HER03","5674641","06.03.2016","Christiania Roklub","Grete Isachsen Stokke","91338845","grisach@gmail.com","16.08.2016"]
["222",1,"Søn 28.8",222,null,"1400","0950",null,null,null,null,null,null,null,null,null,null,null,null,null,null,null,null,"D","D J A","1x",null,"500 m","Drammen Roklubb ","Sara Seip",null,275,null,"Drammen Roklubb ","Nei",null,"09.05.1998","Ja","K090598SAR05","5313667","15.03.2016","Drammen Roklubb ","Øyvind Leirset","40069485","oeylei@online.no;Oeylei@online.no","17.08.2016"]
["222",1,"Søn 28.8",222,null,"1400","0950",null,null,null,null,null,null,null,null,null,null,null,null,null,null,null,null,"D","D J A","1x",null,"500 m","Moss Roklubb","Maia Rekstad",null,275,null,"Moss Roklubb","Nei",null,"25.06.1999","Ja","K250699MAI03","5643443","05.04.2016","Moss Roklubb","Jon Rekstad","92252667","rekstad0@gmail.com","17.08.2016"]
["222",1,"Søn 28.8",222,null,"1400","0950",null,null,null,null,null,null,null,null,null,null,null,null,null,null,null,null,"D","D J A","1x",null,"500 m","Ormsund Roklub","Anna Mesel",null,275,null,"Ormsund Roklub","Nei",null,"03.04.1999","Ja","K030499ANN01","1626245","11.03.2016","Ormsund Roklub","Antje Peine","+4792863244","antjep13@gmail.com","17.08.2016"]
["222",1,"Søn 28.8",222,null,"1400","0950",null,null,null,null,null,null,null,null,null,null,null,null,null,null,null,null,"D","D J A","1x",null,"500 m","Ormsund Roklub","Serine Camilie Aaker",null,275,null,"Ormsund Roklub","Nei",null,"05.06.1999","Ja","K050699SER01","1626570",null,"Ukjent/ikke registrert klubb","Antje Peine","+4792863244","antjep13@gmail.com","17.08.2016"]
["222",1,"Søn 28.8",222,null,"1400","0950",null,null,null,null,null,null,null,null,null,null,null,null,null,null,null,null,"D","D J A","1x",null,"500 m","Sarpsborg Roklubb - Roing","Kavi Ali",null,275,null,"Sarpsborg Roklubb - Roing","Nei",null,"04.07.1998","Ja","K040798KAV02","2739661","10.04.2016","Sarpsborg Roklubb - Roing","Thomas Gundersen","91874904","Thomas.gundersen@afgruppen.no;thomas.gundersen@afgruppen.no","17.08.2016"]
["2230",1,"Søn 28.8",223,null,{"$f":"VLOOKUP($D219,Tidsplan!$B:$D,3,FALSE)","v":"1405"},{"$f":"VLOOKUP($D219,Tidsplan!$B:$D,2,FALSE)","v":""},null,null,null,null,null,null,null," ",null,null,0,null,null,null,null,null,"D","D J B","4x",0,"500 m"]
["2231",{"$f":"OFFSET(B220,-1,0)","v":1},"Søn 28.8",223,null,{"$f":"OFFSET(F220,-1,0)","v":"1405"},null,null,null,null,null,null,null,null,null,null,1,1,1,null,null,null,null,"D","D J B","4x",null,"500 m","Bærum Roklubb 1","Caitlin Aalders\nTuva Skatt Gillebo\nStina Halvorsen Vad\nIda Moberg  Værnes",null,375,null,"Bærum Roklubb",null,null,"03.06.2001\n17.10.2002\n26.09.2000\n22.05.2002","Ja\nNei\nJa\nNei","K030601CAI03\nK171002TUV03\nK260900STI02\nK220502IDA01","7289717\n6101180\n6778019\n4612874","\n29.04.2016\n29.04.2016\n","Bærum Roklubb\nBærum Roklubb\nBærum Roklubb\nUkjent/ikke registrert klubb","Anders Hovde\n","90775520\n","anders.hovde@tns-gallup.no\n","17.08.2016\n17.08.2016\n17.08.2016\n17.08.2016"]
[{"$f":"D221&R221","v":"2232"},1,"Søn 28.8",223,null,"1405",null,null,null,null,null,null,null,null,null,null,1,2,1,null,null,null,null,"D","D J B","4x",null,"500 m","Norske Studenters Roklub 1","Rebekka Øvensen Aanderaa\nHedda Dagestad-Larsen \nHanna Kaupang Petersen",null,375,null,"Norske Studenters Roklub",null,null,"11.10.2000\n30.11.2000\n15.09.2000","Ja\nJa\nJa","K111000REB03\nK301100HED02\nK150900HAN01","5673868\n6722633\n2581292","26.04.2016\n26.04.2016\n26.04.2016","Norske Studenters Roklub\nNorske Studenters Roklub\nNorske Studenters Roklub","Tor-geir Myhrer\n","90060234\n","rosjefen@gmail.com\n","17.08.2016\n17.08.2016\n17.08.2016"]
["2240",1,"Søn 28.8",224,null,{"$f":"VLOOKUP($D222,Tidsplan!$B:$D,3,FALSE)","v":"1410"},{"$f":"VLOOKUP($D222,Tidsplan!$B:$D,2,FALSE)","v":""},null,null,null,null,null,null,null,null,"K",null,0,null,null,null,null,null,"H","H M","2x",0,"500 m "]
["2241",{"$f":"OFFSET(B223,-1,0)","v":1},"Søn 28.8",224,null,{"$f":"OFFSET(F223,-1,0)","v":"1410"},null,null,null,null,null,null,null,null,null,null,1,1,1,null,null,null,null,"H","H M","2x",null,"500 m ","Bærum Roklubb 1","Anders Hovde\nTrond Amundsen",null,325,null,"Bærum Roklubb",null,null,"21.04.1965\n09.01.1968","Ja\nJa","M210465AND01\nM090168TRO02","6896172\n6779720","\n","Bærum Roklubb\nBærum Roklubb,Skullerud Sportsklubb","Anders Hovde\n","90775520\n","anders.hovde@tns-gallup.no\n","17.08.2016\n17.08.2016"]
["2242",1,"Søn 28.8",224,null,"1410",null,null,null,null,null,null,null,null,null,null,1,2,1,null,null,null,null,"H","H M","2x",null,"500 m ","Årungen Ro- og Kajakklubb 1","Gideon Loos\nZbigniew Andruszkiewicz",null,325,null,"Årungen Ro- og Kajakklubb",null,null,"15.06.1971\n01.11.1959","Ja\nJa","M150671GID01\nM011159ZBI02","7303767\n5304055","\n11.03.2016","Ukjent/ikke registrert klubb\nOrmsund Roklub,Årungen Ro- og Kajakklubb","Jens Petter Wold\n","95979749\n","jens.petter.wold@nofima.no\n","17.08.2016\n17.08.2016"]
["2250",1,"Søn 28.8",225,null,{"$f":"VLOOKUP($D225,Tidsplan!$B:$D,3,FALSE)","v":"1415"},{"$f":"VLOOKUP($D225,Tidsplan!$B:$D,2,FALSE)","v":""},null,null,null,null,null,null,null," ",null,null,0,null,null,null,null,null,"D","D M","2x",0,"500 m "]
["2251",{"$f":"OFFSET(B226,-1,0)","v":1},"Søn 28.8",225,null,{"$f":"OFFSET(F226,-1,0)","v":"1415"},null,null,null,null,null,null,null,null,null,null,1,1,1,null,null,null,null,"D","D M","2x",null,"500 m ","Bestumkilen Roklubb 1/\nChristiania","Irene Gaarud\nElisabeth Couto",null,325,null,"Bestumkilen Roklubb",null,null,"16.08.1976\n15.08.1974","Ja\nJa","K160876IRE01\nK150874ELI05","5288763\n5663938","31.05.2016\n13.07.2016","Bestumkilen Roklubb\nBestumkilen Roklubb,Christiania Roklub","Sigbjørn Birkeland\n","93480893\n","sigbjorn.birkeland@storebrand.no;sigbjorn.birkeland@online.no\n","16.08.2016\n16.08.2016"]
[{"$f":"D227&R227","v":"2252"},{"$f":"OFFSET(B227,-1,0)","v":1},"Søn 28.8",225,null,{"$f":"OFFSET(F227,-1,0)","v":"1415"},null,null,null,null,null,null,null,null,null,null,1,2,1,null,null,null,null,"D","D M","2x",null,"500 m ","Bærum Roklubb 1","Randi West\nAnne Heide Tjøm",null,325,null,"Bærum Roklubb",null,null,"20.05.1965\n16.05.1963","Ja\nJa","K200565RAN02\nK160563ANN09","5021405\n5122452","\n","Bærum Roklubb\nBærum Roklubb","Anders Hovde\n","90775520\n","anders.hovde@tns-gallup.no\n","17.08.2016\n17.08.2016"]
["2253",1,"Søn 28.8",225,null,"1415",null,null,null,null,null,null,null,null,null,null,1,3,1,null,null,null,null,"D","D M","2x",null,"500 m ","Bestumkilen Roklubb 2","Marte Radmann\nIngrid Motzfeldt",null,325,null,"Bestumkilen Roklubb",null,null,"27.12.1978\n18.08.1978","Ja\nJa","K271278MAR04\nK180878ING03","2636337\n2374727","13.07.2016\n13.07.2016","Bestumkilen Roklubb\nBestumkilen Roklubb","Sigbjørn Birkeland\n","93480893\n","sigbjorn.birkeland@storebrand.no;sigbjorn.birkeland@online.no\n","17.08.2016\n17.08.2016"]
["2254",1,"Søn 28.8",225,null,"1415",null,null,null,null,null,null,null,null,null,null,1,4,1,null,null,null,null,"D","D M","2x",null,"500 m ","Bestumkilen Roklubb 3","Thale Grøtt\nMarte Åsland Hansen",null,325,null,"Bestumkilen Roklubb",null,null,"07.08.1984\n25.11.1984","Ja\nJa","K070884THA01\nK251184MAR08","5919615\n5807375","31.05.2016\n31.05.2016","Bestumkilen Roklubb\nBestumkilen Roklubb,Norske Studenters Roklub","Sigbjørn Birkeland\n","93480893\n","sigbjorn.birkeland@storebrand.no;sigbjorn.birkeland@online.no\n","17.08.2016\n17.08.2016"]
["2260",0,"Søn 28.8",226,null,{"$f":"VLOOKUP($D230,Tidsplan!$B:$D,3,FALSE)","v":"1420"},{"$f":"VLOOKUP($D230,Tidsplan!$B:$D,2,FALSE)","v":""},null,null,null,null,null,null,null,"S",null,null,0,null,null,null,null,null,"D","S L ","2x",0,500]
["2261",0,"Søn 28.8",226,null,"1420",null,null,null,null,null,null,null,{"$f":"RANDBETWEEN(0,1000)","v":808},null,null,1,1,1,null,null,null,null,"D","D SLv","2x",null,"500 m ","Drammen Roklubb  1","Fanny Lucie Røed\nMari Evje Borgersen",null,325,null,"Drammen Roklubb ",null,null,"20.09.1994\n01.07.1996","Ja\nJa","K200994FAN02\nK010796MAR09","7073229\n5923049","15.03.2016\n15.03.2016","Drammen Roklubb \nDrammen Roklubb ","Øyvind Leirset\n","40069485\n","oeylei@online.no;Oeylei@online.no\n","17.08.2016\n17.08.2016"]
["2270",1,"Søn 28.8",227,null,{"$f":"VLOOKUP($D232,Tidsplan!$B:$D,3,FALSE)","v":"1425"},{"$f":"VLOOKUP($D232,Tidsplan!$B:$D,2,FALSE)","v":""},null,null,null,null,null,null,null,null,"K",null,0,null,null,null,null,null,"H","H S","2x",0,"500 m "]
["2271",{"$f":"OFFSET(B233,-1,0)","v":1},"Søn 28.8",227,null,{"$f":"OFFSET(F233,-1,0)","v":"1425"},null,null,null,null,null,null,null,905,null,null,1,1,1,null,null,null,null,"H","H S","2x",null,"500 m ","Haldens Roklub 1","Thomas Furuvarp\nPetter Norsted Kildebo",null,325,null,"Haldens Roklub",null,null,"29.06.1995\n26.09.1997","Ja\nJa","M290695THO04\nM260997PET06","5304581\n6159432","25.04.2016\n25.04.2016","Haldens Roklub\nHaldens Roklub","Eivind Borring Hansen\n","97588834\n","eivind@hkpensjon.no;eivhan@gmail.com\n","17.08.2016\n17.08.2016"]
["2272",{"$f":"OFFSET(B234,-1,0)","v":1},"Søn 28.8",227,null,"1425",null,null,null,null,null,null,null,null,null,null,1,2,1,null,null,null,null,"H","H S","2x",null,500,"Fredrikstad Roklubb\nFredrikstad Roklubb","Hans Kristian Willadsen\nBenjamin Hansen",null,650,"E","Fredrikstad Roklubb",null,null,null,null,null,"55442743\n 55441950",null,null,"Linda Schi Skjølsvold","\n48204749","lindus-sk@hotmail.com","2016-08-19"]
["2280",1,"Søn 28.8",228,null,{"$f":"VLOOKUP($D235,Tidsplan!$B:$D,3,FALSE)","v":"1430"},{"$f":"VLOOKUP($D235,Tidsplan!$B:$D,2,FALSE)","v":""},null,null,null,null,null,null,null,"S",null,null,0,null,null,null,null,null,"D","DS","4x",{"$f":"IF(R235<>0,LEFT(Z235,1),0)*1","v":0},"500m"]
[{"$f":"D236&R236","v":"2281"},{"$f":"OFFSET(B236,-1,0)","v":1},"Søn 28.8",228,null,{"$f":"OFFSET(F236,-1,0)","v":"1430"},null,null,null,null,null,null,null,null,null,null,1,1,1,null,null,null,null,"D","D S","4x",null,"500 m","Christiania Roklub 1","Christine Randsborg\nMarie Lindvik Jørstad\nJohanne Asakskogen",null,375,null,"Christiania Roklub",null,null,"12.04.1987\n17.01.1990\n13.08.1988","Ja\nJa\nJa","K120487CHR01\nK170190MAR09\nK130888JOH01","5857799\n6782478\n6735073","06.03.2016\n06.03.2016\n06.03.2016","Christiania Roklub\nChristiania Roklub\nChristiania Roklub","Grete Isachsen Stokke\n","91338845\n","grisach@gmail.com\n","16.08.2016\n16.08.2016\n16.08.2016"]
["2290",1,"Søn 28.8",229,null,{"$f":"VLOOKUP($D237,Tidsplan!$B:$D,3,FALSE)","v":"1435"},{"$f":"VLOOKUP($D237,Tidsplan!$B:$D,2,FALSE)","v":""},null,null,null,null,null,null,null," ","K",null,0,null,null,null,null,null,"D","D J A","2-",0,"500m"]
["2291",{"$f":"OFFSET(B238,-1,0)","v":1},"Søn 28.8",229,null,{"$f":"OFFSET(F238,-1,0)","v":"1435"},null,null,null,null,null,null,null,null,null,null,1,1,1,null,null,null,null,"D","D J A","2-",null,"500 m","Bærum Roklubb 1","Synnøve Gillebo Foss\nMina West",null,325,null,"Bærum Roklubb",null,null,"11.08.1999\n01.04.1998","Ja\nJa","K110899SYN02\nK010498MIN06","5218490\n6837551","29.04.2016\n29.04.2016","Bærum Roklubb\nBærum Roklubb","Anders Hovde\n","90775520\n","anders.hovde@tns-gallup.no\n","17.08.2016\n17.08.2016"]
["2292",1,"Søn 28.8",229,null,{"$f":"OFFSET(F239,-1,0)","v":"1435"},null,null,null,null,null,null,null,null,null,null,1,2,1,null,null,null,null,"D","D J A","2-",null,"500 m","Ormsund Roklub 1","Serine Camilie Aaker\nAnna Mesel",null,325,null,"Ormsund Roklub",null,null,"05.06.1999\n03.04.1999","Ja\nJa","K050699SER01\nK030499ANN01","1626570\n1626245","\n11.03.2016","Ukjent/ikke registrert klubb\nOrmsund Roklub","Antje Peine\n","+4792863244\n","antjep13@gmail.com\n","17.08.2016\n17.08.2016"]
["2300",1,"Søn 28.8",230,null,{"$f":"VLOOKUP($D240,Tidsplan!$B:$D,3,FALSE)","v":"1440"},{"$f":"VLOOKUP($D240,Tidsplan!$B:$D,2,FALSE)","v":""},null,null,null,null,null,null,null,null,"K",null,0,null,null,null,null,null,"H","H J A","4x",0,"500 m"]
["2301",{"$f":"OFFSET(B241,-1,0)","v":1},"Søn 28.8",230,null,{"$f":"OFFSET(F241,-1,0)","v":"1440"},null,null,null,null,null,null,null,null,null,null,1,1,1,null,null,null,null,"H","H J A","4x",null,"500 m","Bærum Roklubb 1","Jaime Aalders\nEirik Myreng Hauge\nHermann Hovde\nTade Phanke",null,375,null,"Bærum Roklubb",null,null,"16.09.1999\n17.04.2000\n01.01.1999\n20.10.1999","Ja\nNei\nJa\nJa","M160999JAI02\nM170400EIR02\nM010199HER12\nM201099TAD02","5508697\n5005277\n5632327\n6760197","29.04.2016\n29.04.2016\n29.04.2016\n29.04.2016","Bærum Roklubb\nBærum Roklubb\nBærum Roklubb\nBærum Roklubb","Anders Hovde\n","90775520\n","anders.hovde@tns-gallup.no\n","17.08.2016\n17.08.2016\n17.08.2016\n17.08.2016"]
["2302",1,"Søn 28.8",230,null,"1440",null,null,null,null,null,null,null,null,null,null,1,2,1,null,null,null,null,"H","H J A","4x",null,"500 m","Moss Roklubb 1","Alfred Eliassen\nMagnus strømme\nJarle Hjortkjær Sæby\nVegard Hjortkær Sæby",null,375,null,"Moss Roklubb",null,null,"06.12.1999\n15.11.2001\n17.08.2000\n07.07.1998","Ja\nNei\nNei\nJa","M061299ALF01\nM151101MAG07\nM170800JAR02\nM070798VEG01","2747765\n6045066\n2794789\n2696077","05.04.2016\n05.04.2016\n05.04.2016\n05.04.2016","Moss Roklubb\nMoss Roklubb\nMoss Roklubb\nMoss Roklubb","Jon Rekstad\n","92252667\n","rekstad0@gmail.com\n","17.08.2016\n17.08.2016\n17.08.2016\n17.08.2016"]
["2303",1,"Søn 28.8",230,null,"1440",null,null,null,null,null,null,null,null,null,null,1,3,1,null,null,null,null,"H","H J A","4x",null,"500 m","Norske Studenters Roklub 1","Edvart Solberg Svingen\nCarl Oscar Christensen Hoff\nDavid Alexander Anderson\nOliver Alexander Petterson Stubbs",null,375,null,"Norske Studenters Roklub",null,null,"02.11.1998\n29.12.1998\n07.09.1998\n05.09.1998","Ja\nJa\nJa\nJa","M021198EDV03\nM291298CAR02\nM070998DAV02\nM050998OLI01","6033989\n5296631\n5296623\n7311395","26.04.2016\n26.04.2016\n26.04.2016\n","Norske Studenters Roklub\nNorske Studenters Roklub\nNorske Studenters Roklub\nNorske Studenters Roklub","Tor-geir Myhrer\n","90060234\n","rosjefen@gmail.com\n","17.08.2016\n17.08.2016\n17.08.2016\n17.08.2016"]
["2310",0,"Søn 28.8",231,null,{"$f":"VLOOKUP($D244,Tidsplan!$B:$D,3,FALSE)","v":"1445"},{"$f":"VLOOKUP($D244,Tidsplan!$B:$D,2,FALSE)","v":""},null,null,null,null,null,null,null," ",null,null,0,null,null,null,null,null,"H","JB","4-",0,500]
["2320",1,"Søn 28.8",232,null,{"$f":"VLOOKUP($D245,Tidsplan!$B:$D,3,FALSE)","v":"1450"},{"$f":"VLOOKUP($D245,Tidsplan!$B:$D,2,FALSE)","v":""},null,null,null,null,null,null,null," ",null,null,0,null,null,null,null,null,"D","D J B","2x",0,"500 m "]
[{"$f":"D246&R246","v":"2321"},{"$f":"OFFSET(B246,-1,0)","v":1},"Søn 28.8",232,null,{"$f":"OFFSET(F246,-1,0)","v":"1450"},null,null,null,null,null,null,null,null,null,null,1,1,1,null,null,null,null,"D","D J B","2x",null,"500 m ","Norske Studenters Roklub 2","Hanna Kaupang Petersen",null,325,null,"Norske Studenters Roklub",null,null,"15.09.2000","Ja","K150900HAN01","2581292","26.04.2016","Norske Studenters Roklub","Tor-geir Myhrer","90060234","rosjefen@gmail.com","17.08.2016"]
[{"$f":"D247&R247","v":"2322"},{"$f":"OFFSET(B247,-1,0)","v":1},"Søn 28.8",232,null,{"$f":"OFFSET(F247,-1,0)","v":"1450"},null,null,null,null,null,null,null,null,null,null,1,2,1,null,null,null,null,"D","D J B","2x",null,"500 m ","Bærum Roklubb 1","Stina Halvorsen Vad\nCaitlin Aalders",null,325,null,"Bærum Roklubb",null,null,"26.09.2000\n03.06.2001","Ja\nJa","K260900STI02\nK030601CAI03","6778019\n7289717","29.04.2016\n","Bærum Roklubb\nBærum Roklubb","Anders Hovde\n","90775520\n","anders.hovde@tns-gallup.no\n","17.08.2016\n17.08.2016"]
["2323",1,"Søn 28.8",232,null,"1450",null,null,null,null,null,null,null,null,null,null,1,3,1,null,null,null,null,"D","D J B","2x",null,"500 m ","Moss Roklubb 1\nDrammen","Lise Meinike Dørre\n Karoline Rydland Masch",null,325,null,"Moss Roklubb",null,null,"13.02.2000","Ja","K130200LIS02","6059397",null,"Årungen Ro- og Kajakklubb\nDrammen","Jon Rekstad","92252667","rekstad0@gmail.com","17.08.2016"]
["2324",1,"Søn 28.8",232,null,"1450",null,null,null,null,null,null,null,null,null,null,1,4,1,null,null,null,null,"D","D J B","2x",null,"500 m ","Norske Studenters Roklub 1","Hedda Dagestad-Larsen \nRebekka Øvensen Aanderaa",null,325,null,"Norske Studenters Roklub",null,null,"30.11.2000\n11.10.2000","Ja\nJa","K301100HED02\nK111000REB03","6722633\n5673868","26.04.2016\n26.04.2016","Norske Studenters Roklub\nNorske Studenters Roklub","Tor-geir Myhrer\n","90060234\n","rosjefen@gmail.com\n","17.08.2016\n17.08.2016"]
[null,null," "]
["2330",1,"Søn 28.8",233,null,{"$f":"VLOOKUP($D251,Tidsplan!$B:$D,3,FALSE)","v":"1455"},{"$f":"VLOOKUP($D251,Tidsplan!$B:$D,2,FALSE)","v":""},null,null,null,null,null,null,null,"",null,null,0,null,null,null,null,null,"Åpen","Mix JC","4x",{"$f":"IF(R251<>0,LEFT(Z251,1),0)*1","v":0},"500 m"]
[{"$f":"D252&R252","v":"2331"},{"$f":"OFFSET(B252,-1,0)","v":1},"Søn 28.8",233,null,{"$f":"OFFSET(F252,-1,0)","v":"1455"},null,null,null,null,null,null,null,null,null,null,1,1,1,null,null,null,null,"Åpen","Mix JC","4x",null,"500 m","Norske Studenters Roklub 1","Trygve Bye Løken\nElla Marie Hegge\nMartine Egeland Hovland\n Simon  Tjemsland",null,375,null,"Norske Studenters Roklub",null,null,"22.04.2003\n18.05.2003\n17.02.2003\n01.01.2002","Nei\nNei\nNei\nNei","M220403TRY08\nK180503ELL02\nK170203MAR03\nM010102 SI01","7281238\n5567226\n6211373\n7311792","26.04.2016\n26.04.2016\n26.04.2016\n","Norske Studenters Roklub\nNorske Studenters Roklub\nNorske Studenters Roklub\nNorske Studenters Roklub","Tor-geir Myhrer\n","90060234\n","rosjefen@gmail.com\n","17.08.2016\n17.08.2016\n17.08.2016\n17.08.2016"]
[{"$f":"D253&R253","v":"2332"},{"$f":"OFFSET(B253,-1,0)","v":1},"Søn 28.8",233,null,{"$f":"OFFSET(F253,-1,0)","v":"1455"},null,null,null,null,null,null,null,null,null,null,1,2,1,null,null,null,null,"Åpen","Mix JC","4x",null,"500 m","Bærum Roklubb 1","Tuva Skatt Gillebo\nElias Håkonsen\nMagnus Kavli\nIda Moberg Værnes",null,375,null,"Bærum Roklubb",null,null,"17.10.2002\n29.10.2002\n01.01.2004\n01.01.2002","Nei\nNei\nNei\nNei","K171002TUV03\nM291002ELI03\nM010104MAG01\nK010102IDA24","6101180\n7309985\n7232220\n7267553","29.04.2016\n\n\n","Bærum Roklubb\nBærum Roklubb\nBærum Roklubb\nBærum Roklubb","Anders Hovde\n","90775520\n","anders.hovde@tns-gallup.no\n","17.08.2016\n17.08.2016\n17.08.2016\n17.08.2016"]
["2333",1,"Søn 28.8",233,null,"1455",null,null,null,null,null,null,null,null,null,null,1,3,1,null,null,null,null,"Åpen","Mix JC","4x",null,"500 m","Christiania Roklub 1","Balder Haug Hagen\nLorentz Pran\nKaroline Torkildsen",null,375,null,"Christiania Roklub",null,null,"14.01.2004\n20.01.2004\n23.02.2002","Nei\nNei\nNei","M140104BAL01\nM200104LOR01\nK230202KAR06","5187160\n7231175\n4539828","04.05.2016\n04.05.2016\n16.06.2016","Christiania Roklub\nChristiania Roklub\nChristiania Roklub","Grete Isachsen Stokke\n","91338845\n","grisach@gmail.com\n","16.08.2016\n16.08.2016\n16.08.2016"]
[{"$f":"D255&R255","v":"2334"},{"$f":"OFFSET(B255,-1,0)","v":1},"Søn 28.8",233,null,{"$f":"OFFSET(F255,-1,0)","v":"1455"},null,null,null,null,null,null,null,null,null,null,1,4,1,null,null,null,null,"Åpen","Mix JC","4x",null,"500 m","Tønsberg Roklub 1","Marie Andrup-Næss\nFrida Andrup-Næss\nIda kyvik Sandvik\nTevje Wilhelmsen Larsen",null,375,null,"Tønsberg Roklub",null,null,"09.05.2002\n01.10.2003\n24.07.2002\n29.07.2002","Nei\nNei\nNei\nNei","K090502MAR05\nK011003FRI10\nK240702IDA05\nM290702TEV01","6102972\n7173341\n7173655\n7311816","15.04.2016\n15.04.2016\n15.04.2016\n18.08.2016","Tønsberg Roklub\nTønsberg Roklub\nTønsberg Roklub\nTønsberg Roklub","Tore Nilsson\n","92686272\n","tore.nilsson@sf-nett.no\n","17.08.2016\n17.08.2016\n17.08.2016\n17.08.2016"]
["2335",1,"Søn 28.8",233,null,"1455",null,null,null,null,null,null,null,null,null,null,1,5,1,null,null,null,null,"Åpen","Mix JC","4x",null,"500 m","Norske Studenters Roklub 2","Marie Glomnes Rudi\nCharles Bret\nAlexander Swensen\nLisa Nakamoto Byberg",null,375,null,"Norske Studenters Roklub",null,null,"25.07.2003\n24.10.2002\n12.05.2002\n08.04.2003","Nei\nNei\nNei\nNei","K250703MAR04\nM241002CHA01\nM120502ALE07\nK080403LIS01","5247452\n6722636\n5779831\n5391349","26.04.2016\n26.04.2016\n26.04.2016\n26.04.2016","Norske Studenters Roklub\nNorske Studenters Roklub\nNorske Studenters Roklub\nNorske Studenters Roklub","Tor-geir Myhrer\n","90060234\n","rosjefen@gmail.com\n","17.08.2016\n17.08.2016\n17.08.2016\n17.08.2016"]
["2336",1,"Søn 28.8",233,null,"1455",null,null,null,null,null,null,null,null,null,null,1,6,1,null,null,null,null,"Åpen","Mix JC","4x",null,"500 m","Sarpsborg Roklubb - Roing 1","Mina Alida Andresen\nJakob Asbjørnsen\nHåkon Grønberg Møller\nSilas Tangen",null,375,null,"Sarpsborg Roklubb - Roing",null,null,"14.07.2005\n25.02.2002\n22.12.2002\n13.04.2003","Nei\nNei\nNei\nNei","K140705MIN02\nM250202JAK02\nM221202HÅK01\nM130403SIL01","6917176\n5632274\n6848301\n6935544","10.04.2016\n10.04.2016\n10.04.2016\n10.04.2016","Sarpsborg Roklubb - Roing\nSarpsborg Roklubb - Roing\nSarpsborg Roklubb - Roing\nSarpsborg Roklubb - Roing","Thomas Gundersen\n","91874904\n","Thomas.gundersen@afgruppen.no;thomas.gundersen@afgruppen.no\n","17.08.2016\n17.08.2016\n17.08.2016\n17.08.2016"]
[null,null,"Søn 28.8"]
["2340",1,"Søn 28.8",234,null,{"$f":"VLOOKUP($D259,Tidsplan!$B:$D,3,FALSE)","v":"1500"},{"$f":"VLOOKUP($D259,Tidsplan!$B:$D,2,FALSE)","v":""},null,null,null,null,null,null,null,"S",null,null,0,null,null,null,null,null,"H","H J A","4-",0,"500 m"]
[{"$f":"D260&R260","v":"2341"},{"$f":"OFFSET(B260,-1,0)","v":1},"Søn 28.8",234,null,{"$f":"OFFSET(F260,-1,0)","v":"1500"},null,null,null,null,null,null,null,null,null,null,1,1,1,null,null,null,null,"H","H J A","4-",null,"500 m","Norske Studenters Roklub 2","Edvart Solberg Svingen\nCarl Oscar Christensen Hoff\nDavid Alexander Anderson\nOliver Alexander Petterson Stubbs",null,375,null,"Norske Studenters Roklub",null,null,"02.11.1998\n29.12.1998\n07.09.1998\n05.09.1998","Ja\nJa\nJa\nJa","M021198EDV03\nM291298CAR02\nM070998DAV02\nM050998OLI01","6033989\n5296631\n5296623\n7311395","26.04.2016\n26.04.2016\n26.04.2016\n","Norske Studenters Roklub\nNorske Studenters Roklub\nNorske Studenters Roklub\nNorske Studenters Roklub","Tor-geir Myhrer\n","90060234\n","rosjefen@gmail.com\n","17.08.2016\n17.08.2016\n17.08.2016\n17.08.2016"]
[{"$f":"D261&R261","v":"2342"},{"$f":"OFFSET(B261,-1,0)","v":1},"Søn 28.8",234,null,{"$f":"OFFSET(F261,-1,0)","v":"1500"},null,null,null,null,null,null,null,null,null,null,1,2,1,null,null,null,null,"H","H J A","4-",null,"500 m","Bærum Roklubb 1","Jaime Aalders\nEirik Myreng Hauge\nHermann Hovde\nTade Phanke",null,375,null,"Bærum Roklubb",null,null,"16.09.1999\n17.04.2000\n01.01.1999\n20.10.1999","Ja\nNei\nJa\nJa","M160999JAI02\nM170400EIR02\nM010199HER12\nM201099TAD02","5508697\n5005277\n5632327\n6760197","29.04.2016\n29.04.2016\n29.04.2016\n29.04.2016","Bærum Roklubb\nBærum Roklubb\nBærum Roklubb\nBærum Roklubb","Anders Hovde\n","90775520\n","anders.hovde@tns-gallup.no\n","17.08.2016\n17.08.2016\n17.08.2016\n17.08.2016"]
["2343",1,"Søn 28.8",234,null,"1500",null,null,null,null,null,null,null,null,null,null,1,3,1,null,null,null,null,"H","H J A","4-",null,"500 m","Norske Studenters Roklub 1","Andreas Clifford\nGustav Daniel Hagen Breivik\nPierre-Louis Bret\nKristian Søhr",null,375,null,"Norske Studenters Roklub",null,null,"29.04.1999\n31.01.1999\n31.05.1999\n14.04.2000","Ja\nJa\nJa\nNei","M290499AND03\nM310199GUS03\nM310599PIE02\nM140400KRI01","2658162\n7274540\n6135379\n4077003","26.04.2016\n11.03.2016\n26.04.2016\n26.04.2016","Norske Studenters Roklub\nNorske Studenters Roklub,Nøklevann Ro- og Padleklubb,Ormsund Roklub\nNorske Studenters Roklub\nNorske Studenters Roklub","Tor-geir Myhrer\n","90060234\n","rosjefen@gmail.com\n","17.08.2016\n17.08.2016\n17.08.2016\n17.08.2016"]
["2344",1,"Søn 28.8",234,null,"1500",null,null,null,null,null,null,null,null,null,null,1,4,1,null,null,null,null,"H","H J A","4-",null,"500 m","Ormsund Roklub 1","Thomas Soma Ferguson\nHerman Mathisen\nHauk Norum Sitre\nOskar Jørgensen",null,375,null,"Ormsund Roklub",null,null,"14.07.1998\n17.01.1999\n29.06.1999\n08.04.1998","Ja\nJa\nJa\nJa","M140798THO03\nM170199HER02\nM290699HAU02\nM080498OSK02","5662311\n5667123\n7203449\n7249866","11.03.2016\n\n25.04.2016\n11.03.2016","Ormsund Roklub\nSarpsborg Roklubb - Roing\nOrmsund Roklub\nOrmsund Roklub","Antje Peine\n","+4792863244\n","antjep13@gmail.com\n","17.08.2016\n17.08.2016\n17.08.2016\n17.08.2016"]
["2350",0,"Søn 28.8",235,null,{"$f":"VLOOKUP($D264,Tidsplan!$B:$D,3,FALSE)","v":"1505"},{"$f":"VLOOKUP($D264,Tidsplan!$B:$D,2,FALSE)","v":""},null,null,null,null,null,null,null,null,"K ",null,0,null,null,null,null,null,"H","S","2-",0,500]
["235",0,"Søn 28.8",235,null,"1505",null,null,null,null,null,null,null,null,null,null,null,null,null,null,null,null,null,"H","H S","2-",null,"500 m","Ormsund Roklub 1","Audun Grepperud\nMorten Grepperud",null,325,null,"Ormsund Roklub",null,null,"02.06.1996\n13.10.1962","Ja\nJa","M020696AUD01\nM131062MOR02","4399997\n5663466","11.03.2016\n","Ormsund Roklub\nOrmsund Roklub","Antje Peine\n","+4792863244\n","antjep13@gmail.com\n","17.08.2016\n17.08.2016"]
["2360",1,"Søn 28.8",236,null,{"$f":"VLOOKUP($D266,Tidsplan!$B:$D,3,FALSE)","v":"1510"},{"$f":"VLOOKUP($D266,Tidsplan!$B:$D,2,FALSE)","v":""},null,null,null,null,null,null,null,null,"K",null,0,null,null,null,null,null,"D","D J A","4x",0,"500 m"]
["2361",{"$f":"OFFSET(B267,-1,0)","v":1},"Søn 28.8",236,null,{"$f":"OFFSET(F267,-1,0)","v":"1510"},null,null,null,null,null,null,null,null,null,null,1,1,1,null,null,null,null,"D","D J A","4x",null,"500 m","Bærum Roklubb 1","Synnøve Gillebo Foss\nStina Halvorsen Vad\nKlara Moene Omholt\nMina West",null,375,null,"Bærum Roklubb",null,null,"11.08.1999\n26.09.2000\n17.03.1998\n01.04.1998","Ja\nNei\nJa\nJa","K110899SYN02\nK260900STI02\nK170398KLA02\nK010498MIN06","5218490\n6778019\n5645099\n6837551","29.04.2016\n29.04.2016\n29.04.2016\n29.04.2016","Bærum Roklubb\nBærum Roklubb\nBærum Roklubb\nBærum Roklubb","Anders Hovde\n","90775520\n","anders.hovde@tns-gallup.no\n","17.08.2016\n17.08.2016\n17.08.2016\n17.08.2016"]
["2362",1,"Søn 28.8",236,null,"1510",null,null,null,null,null,null,null,null,null,null,1,2,1,null,null,null,null,"D","D J A","4x",null,"500 m","Norske Studenters Roklub 1","Elisabeth Astrup Wiik\nEmilie Stabe Helvig\nHanna Kaupang Petersen\nRebekka Øvensen Aanderaa",null,375,null,"Norske Studenters Roklub",null,null,"01.11.1998\n03.04.1998\n15.09.2000\n11.10.2000","Ja\nJa\nNei\nNei","K011198ELI04\nK030498EMI01\nK150900HAN01\nK111000REB03","5993806\n5296622\n2581292\n5673868","26.04.2016\n26.04.2016\n26.04.2016\n26.04.2016","Norske Studenters Roklub\nNorske Studenters Roklub\nNorske Studenters Roklub\nNorske Studenters Roklub","Tor-geir Myhrer\n","90060234\n","rosjefen@gmail.com\n","17.08.2016\n17.08.2016\n17.08.2016\n17.08.2016"]
["2363",1,"Søn 28.8",236,null,"1510",null,null,null,null,null,null,null,null,null,null,1,3,1,null,null,null,null,"D","D J A","4x",null,"500 m","Ormsund Roklub 1","Serine Camilie Aaker\nAnna Mesel\nRikke Aslaksen Wåle",null,375,null,"Ormsund Roklub",null,null,"05.06.1999\n03.04.1999\n19.03.1999","Ja\nJa\nJa","K050699SER01\nK030499ANN01\nK190399RIK03","1626570\n1626245\n6077550","\n11.03.2016\n11.03.2016","Ukjent/ikke registrert klubb\nOrmsund Roklub\nOrmsund Roklub","Antje Peine\n","+4792863244\n","antjep13@gmail.com\n","17.08.2016\n17.08.2016\n17.08.2016"]
["2370",0,"Søn 28.8",237,null,{"$f":"VLOOKUP($D270,Tidsplan!$B:$D,3,FALSE)","v":"1520"},{"$f":"VLOOKUP($D270,Tidsplan!$B:$D,2,FALSE)","v":""},null,null,null,null,null,null,null,null,"K",null,0,null,null,null,null,null,"H","S L"," 2x",0,500]
["2380",1,"Søn 28.8",238,null,{"$f":"VLOOKUP($D271,Tidsplan!$B:$D,3,FALSE)","v":"1525"},{"$f":"VLOOKUP($D271,Tidsplan!$B:$D,2,FALSE)","v":""},null,null,null,null,null,null,null,"",null,null,0,null,null,null,null,null,"D","D SLv","1x",0,"500 m","Ror med Damer Senior singel 208"]
[{"$f":"D272&R272","v":"2381"},{"$f":"OFFSET(B272,-1,0)","v":1},"Søn 28.8",238,null,{"$f":"OFFSET(F272,-1,0)","v":"1525"},null,null,null,null,null,null,null,null,null,null,1,1,1,null,null,null,null,"D","D SLv","1x",null,"500 m","Drammen Roklubb ","Mari Evje Borgersen",null,275,null,"Drammen Roklubb ","Nei",null,"01.07.1996","Ja","K010796MAR09","5923049","15.03.2016","Drammen Roklubb ","Øyvind Leirset","40069485","oeylei@online.no;Oeylei@online.no","17.08.2016"]
[{"$f":"D273&R273","v":"2382"},{"$f":"OFFSET(B273,-1,0)","v":1},"Søn 28.8",238,null,{"$f":"OFFSET(F273,-1,0)","v":"1525"},null,null,null,null,null,null,null,null,null,null,1,2,1,null,null,null,null,"D","D SLv","1x",null,"500 m","Christiania Roklub","Elisabeth Ramsdal",null,275,null,"Christiania Roklub","Nei",null,"13.06.1990","Ja","K130690ELI02","4495142",null,"Ukjent/ikke registrert klubb","Grete Isachsen Stokke","91338845","grisach@gmail.com","16.08.2016"]
[{"$f":"D274&R274","v":"2383"},{"$f":"OFFSET(B274,-1,0)","v":1},"Søn 28.8",238,null,{"$f":"OFFSET(F274,-1,0)","v":"1525"},null,null,null,null,null,null,null,null,null,null,1,3,1,null,null,null,null,"D","D SLv","1x",null,"500 m","Drammen Roklubb ","Fanny Lucie Røed",null,275,null,"Drammen Roklubb ","Nei",null,"20.09.1994","Ja","K200994FAN02","7073229","15.03.2016","Drammen Roklubb ","Øyvind Leirset","40069485","oeylei@online.no;Oeylei@online.no","17.08.2016"]
[null,null,"Søn 28.8"]
["2390",0,"Søn 28.8",239,null,{"$f":"VLOOKUP($D276,Tidsplan!$B:$D,3,FALSE)","v":"1530"},{"$f":"VLOOKUP($D276,Tidsplan!$B:$D,2,FALSE)","v":""},null,null,null,null,null,null,null," ",null,null,0,null,null,null,null,null,"H","S/Master","4x",0,500]
["2391",0,"Søn 28.8",239,null,"1530",null,null,null,null,null,null,null,null,null,null,1,1,1,null,null,null,null,"H","H S","4x",null,"500 m","Haldens Roklub 1","Petter Norsted Kildebo\nThomas Furuvarp",null,375,null,"Haldens Roklub",null,null,"26.09.1997\n29.06.1995","Ja\nJa","M260997PET06\nM290695THO04","6159432\n5304581","25.04.2016\n25.04.2016","Haldens Roklub\nHaldens Roklub","Eivind Borring Hansen\n","97588834\n","eivind@hkpensjon.no;eivhan@gmail.com\n","17.08.2016\n17.08.2016"]
["2392",0,"Søn 28.8",239,null,"1530",null,null,null,null,null,null,null,null,null,null,1,2,1,null,null,null,null,"H","H S","4x",null,"500 m","Fredrikstad Roklubb\nFredrikstad Roklubb\nHaldens Roklubb\nOrmsund Roklubb","Hans Kristian Willadsen\nBenjamin Hansen\nPetter Nordsted Kilebo\nPeter Aleksander Madshaven Banfi, Ormsund",null,750,"E","Fredrikstad Roklubb",null,null,null,null,null,"55442743\n 55441950",null,null,"Linda Schi Skjølsvold","\n48204749","lindus-sk@hotmail.com","2016-08-19"]
["2400",1,"Søn 28.8",240,null,{"$f":"VLOOKUP($D279,Tidsplan!$B:$D,3,FALSE)","v":"1535"},{"$f":"VLOOKUP($D279,Tidsplan!$B:$D,2,FALSE)","v":""},null,null,null,null,null,null,null,"S",null,null,0,null,null,null,null,null,"H","H J A","2x",0,"500 m "]
["2401",{"$f":"OFFSET(B280,-1,0)","v":1},"Søn 28.8",240,null,{"$f":"OFFSET(F280,-1,0)","v":"1535"},null,null,null,null,null,null,null,null,null,null,1,1,1,null,null,null,null,"H","H J A","2x",null,"500 m ","Bærum Roklubb 1","Hermann Hovde\nJaime Aalders",null,325,null,"Bærum Roklubb",null,null,"01.01.1999\n16.09.1999","Ja\nJa","M010199HER12\nM160999JAI02","5632327\n5508697","29.04.2016\n29.04.2016","Bærum Roklubb\nBærum Roklubb","Anders Hovde\n","90775520\n","anders.hovde@tns-gallup.no\n","17.08.2016\n17.08.2016"]
["2402",1,"Søn 28.8",240,null,"1535",null,null,null,null,null,null,null,null,null,null,1,2,1,null,null,null,null,"H","H J A","2x",null,"500 m ","Moss Roklubb 1","Alfred Eliassen\nVegard Hjortkær Sæby",null,325,null,"Moss Roklubb",null,null,"06.12.1999\n07.07.1998","Ja\nJa","M061299ALF01\nM070798VEG01","2747765\n2696077","05.04.2016\n05.04.2016","Moss Roklubb\nMoss Roklubb","Jon Rekstad\n","92252667\n","rekstad0@gmail.com\n","17.08.2016\n17.08.2016"]
["2403",1,"Søn 28.8",240,null,"1535",null,null,null,null,null,null,null,null,null,null,1,3,1,null,null,null,null,"H","H J A","2x",null,"500 m ","Norske Studenters Roklub 1","Andreas Clifford\nPierre-Louis Bret",null,325,null,"Norske Studenters Roklub",null,null,"29.04.1999\n31.05.1999","Ja\nJa","M290499AND03\nM310599PIE02","2658162\n6135379","26.04.2016\n26.04.2016","Norske Studenters Roklub\nNorske Studenters Roklub","Tor-geir Myhrer\n","90060234\n","rosjefen@gmail.com\n","17.08.2016\n17.08.2016"]
["2404",1,"Søn 28.8",240,null,"1535",null,null,null,null,null,null,null,null,null,null,1,4,1,null,null,null,null,"H","H J A","2x",null,"500 m ","Ormsund Roklub 1","Kristian Løken\nHauk Norum Sitre",null,325,null,"Ormsund Roklub",null,null,"21.06.1999\n29.06.1999","Ja\nJa","M210699KRI05\nM290699HAU02","5859758\n7203449","11.03.2016\n25.04.2016","Ormsund Roklub\nOrmsund Roklub","Antje Peine\n","+4792863244\n","antjep13@gmail.com\n","17.08.2016\n17.08.2016"]
["2410",1,"Søn 28.8",241,null,{"$f":"VLOOKUP($D284,Tidsplan!$B:$D,3,FALSE)","v":"1540"},{"$f":"VLOOKUP($D284,Tidsplan!$B:$D,2,FALSE)","v":""},null,null,null,null,null,null,null," ",null,null,0,null,null,null,null,null,"H","H J B","4x",0,"500 m"]
["2411",{"$f":"OFFSET(B285,-1,0)","v":1},"Søn 28.8",241,null,{"$f":"OFFSET(F285,-1,0)","v":"1540"},null,null,null,null,null,null,null,null,null,null,1,1,1,null,null,null,null,"H","H J B","4x",null,"500 m","Bærum Roklubb 1","Vitus Aparicio Tjøm\nJakob Holt\nBrage Bragstad\nFredrik Vistung",null,375,null,"Bærum Roklubb",null,null,"26.01.2001\n03.09.2001\n12.09.2000\n01.01.2001","Ja\nJa\nJa\nJa","M260101VIT01\nM030901JAK02\nM120900BRA03\nM010101FRE60","5062270\n5494644\n4908711\n7267551","29.04.2016\n29.04.2016\n29.04.2016\n","Bærum Roklubb\nBærum Roklubb\nBærum Roklubb\nBærum Roklubb","Anders Hovde\n","90775520\n","anders.hovde@tns-gallup.no\n","17.08.2016\n17.08.2016\n17.08.2016\n17.08.2016"]
[{"$f":"D286&R286","v":"2412"},{"$f":"OFFSET(B286,-1,0)","v":1},"Søn 28.8",241,null,{"$f":"OFFSET(F286,-1,0)","v":"1540"},null,null,null,null,null,null,null,null,null,null,1,2,1,null,null,null,null,"H","H J B","4x",null,"500 m","Norske Studenters Roklub 1","Petter Arnøy\nNicolai Fongaard\nHugo Haavind\nArne Theodor Gjelsten",null,375,null,"Norske Studenters Roklub",null,null,"16.02.2001\n06.08.2001\n17.05.2001\n05.03.2000","Ja\nJa\nJa\nJa","M160201PET02\nM060801NIC02\nM170501HUG03\nM050300ARN02","4179438\n4916382\n5178950\n6071908","26.04.2016\n26.04.2016\n\n","Norske Studenters Roklub\nNorske Studenters Roklub\nNorske Studenters Roklub\nNorske Studenters Roklub","Tor-geir Myhrer\n","90060234\n","rosjefen@gmail.com\n","17.08.2016\n17.08.2016\n17.08.2016\n17.08.2016"]
[{"$f":"D287&R287","v":"2413"},1,"Søn 28.8",241,null,"1540",null,null,null,null,null,null,null,null,null,null,1,3,1,null,null,null,null,"H","H J B","4x",null,"500 m","Christiania Roklub 1/\nAalesund","Sverre Engebretsen\nTinius Wilhelmsen\nAndreas Dugstad Sørskaar\nFredrik Reite",null,375,null,"Christiania Roklub",null,null,"18.02.2001\n18.10.2001\n10.06.2001\n26.07.2001","Ja\nJa\nJa\nJa","M180201SVE01\nM181001TIN04\nM100601AND02\nM260701FRE01","4161599\n6005810\n4221227\n6728505","\n06.03.2016\n24.03.2016\n","Ukjent/ikke registrert klubb\nChristiania Roklub\nChristiania Roklub\nAalesunds Roklub","Grete Isachsen Stokke\n","91338845\n","grisach@gmail.com\n","16.08.2016\n16.08.2016\n16.08.2016\n16.08.2016"]
[{"$f":"D288&R288","v":"2414"},{"$f":"OFFSET(B288,-1,0)","v":1},"Søn 28.8",241,null,{"$f":"OFFSET(F288,-1,0)","v":"1540"},null,null,null,null,null,null,null,null,null,null,1,4,1,null,null,null,null,"H","H J B","4x",null,"500 m","Bærum Roklubb 2","Petter Bratli\nØystein Dingen Endresen\nsindre fuglseth\nLars Moberg Værnes",null,375,null,"Bærum Roklubb",null,null,"17.06.2000\n07.06.2000\n26.09.2000\n02.06.2000","Ja\nJa\nJa\nJa","M170600PET02\nM070600ØYS01\nM260900SIN02\nM020600LAR02","5956457\n5372192\n6073987\n4487587","29.04.2016\n29.04.2016\n29.04.2016\n29.04.2016","Bærum Roklubb\nBærum Roklubb\nBærum Roklubb\nBærum Roklubb","Anders Hovde\n","90775520\n","anders.hovde@tns-gallup.no\n","17.08.2016\n17.08.2016\n17.08.2016\n17.08.2016"]
[{"$f":"D289&R289","v":"2420"},1,"Søn 28.8",242,null,{"$f":"VLOOKUP($D289,Tidsplan!$B:$D,3,FALSE)","v":"1545"},{"$f":"VLOOKUP($D289,Tidsplan!$B:$D,2,FALSE)","v":""},null,null,null,null,null,null,null," ",null,null,0,null,null,null,null,null,"H","H M","1x",0,"500 m"]
[{"$f":"D290&R290","v":"2421"},{"$f":"OFFSET(B290,-1,0)","v":1},"Søn 28.8",242,null,{"$f":"OFFSET(F290,-1,0)","v":"1545"},null,null,null,null,null,null,null,null,null,null,1,1,1,null,null,null,null,"H","H M","1x",null,"500 m","Bærum Roklubb","Anders Hovde",null,275,null,"Bærum Roklubb","Nei",null,"21.04.1965","Ja","M210465AND01","6896172",null,"Bærum Roklubb","Anders Hovde","90775520","anders.hovde@tns-gallup.no","17.08.2016"]
[{"$f":"D291&R291","v":"2422"},{"$f":"OFFSET(B291,-1,0)","v":1},"Søn 28.8",242,null,{"$f":"OFFSET(F291,-1,0)","v":"1545"},null,null,null,null,null,null,null,null,null,null,1,2,1,null,null,null,null,"H","H M","1x",null,"500 m","Bestumkilen Roklubb","Ole Thomas Nøklegaard",null,275,null,"Bestumkilen Roklubb","Nei",null,"14.02.1966","Ja","M140266OLE03","5277043","08.08.2016","Bestumkilen Roklubb","Sigbjørn Birkeland","93480893","sigbjorn.birkeland@storebrand.no;sigbjorn.birkeland@online.no","16.08.2016"]
[{"$f":"D292&R292","v":"2423"},{"$f":"OFFSET(B292,-1,0)","v":1},"Søn 28.8",242,null,{"$f":"OFFSET(F292,-1,0)","v":"1545"},null,null,null,null,null,null,null,null,null,null,1,3,1,null,null,null,null,"H","H M","1x",null,"500 m","Bærum Roklubb","Espen Finanger",null,275,null,"Bærum Roklubb","Nei",null,"19.05.1975","Ja","M190575ESP02","587671",null,"Bærum Roklubb","Anders Hovde","90775520","anders.hovde@tns-gallup.no","17.08.2016"]
[{"$f":"D293&R293","v":"2424"},{"$f":"OFFSET(B293,-1,0)","v":1},"Søn 28.8",242,null,{"$f":"OFFSET(F293,-1,0)","v":"1545"},null,null,null,null,null,null,null,null,null,null,1,4,1,null,null,null,null,"H","H M","1x",null,"500 m","Christiania Roklub","Torstein Rekkedal",null,275,null,"Christiania Roklub","Nei",null,"12.02.1944","Ja","M120244TOR02","4614724","10.08.2016","Christiania Roklub","Grete Isachsen Stokke","91338845","grisach@gmail.com","16.08.2016"]
["2425",1,"Søn 28.8",242,null,"1545",null,null,null,null,null,null,null,null,null,null,1,5,1,null,null,null,null,"H","H M","1x",null,"500 m","Bærum Roklubb","Trond Amundsen",null,275,null,"Bærum Roklubb","Nei",null,"09.01.1968","Ja","M090168TRO02","6779720",null,"Bærum Roklubb","Anders Hovde","90775520","anders.hovde@tns-gallup.no","17.08.2016"]
[null,null," "]
[{"$f":"D296&R296","v":"2430"},1,"Søn 28.8",243,null,{"$f":"VLOOKUP($D296,Tidsplan!$B:$D,3,FALSE)","v":"1550"},{"$f":"VLOOKUP($D296,Tidsplan!$B:$D,2,FALSE)","v":""},null,null,null,null,null,null,null,null," K",null,0,null,null,null,null,null,"D","D M","1x",{"$f":"IF(R296<>0,LEFT(Z296,1),0)*1","v":0},"500 m"]
["2440",1,"Søn 28.8",244,null,{"$f":"VLOOKUP($D297,Tidsplan!$B:$D,3,FALSE)","v":"1555"},{"$f":"VLOOKUP($D297,Tidsplan!$B:$D,2,FALSE)","v":""},null,null,null,null,null,null,null," ",null,null,0,null,null,null,null,null,"Åpen","Mix S","8+",0,"500 m"]
[{"$f":"D298&R298","v":"2441"},{"$f":"OFFSET(B298,-1,0)","v":1},"Søn 28.8",244,null,{"$f":"OFFSET(F298,-1,0)","v":"1555"},null,null,null,null,null,null,null,null,null,null,1,1,1,null,null,null,null,"Åpen","Mix S","8+",null,"500 m","Norske Studenters Roklub 2","David Alexander Anderson\nGustav Daniel Hagen Breivik\nAndreas Clifford\nHedda Dagestad-Larsen \nEmilie Stabe Helvig\nEdvard Sander Bae Mysen\nOliver Alexander Petterson Stubbs\nElisabeth Astrup Wiik",null,475,null,"Norske Studenters Roklub",null,null,"07.09.1998\n31.01.1999\n29.04.1999\n30.11.2000\n03.04.1998\n18.10.2000\n05.09.1998\n01.11.1998","Nei\nNei\nNei\nNei\nNei\nNei\nNei\nNei","M070998DAV02\nM310199GUS03\nM290499AND03\nK301100HED02\nK030498EMI01\nM181000EDV01\nM050998OLI01\nK011198ELI04","5296623\n7274540\n2658162\n6722633\n5296622\n5383840\n7311395\n5993806","26.04.2016\n11.03.2016\n26.04.2016\n26.04.2016\n26.04.2016\n26.04.2016\n\n26.04.2016","Norske Studenters Roklub\nNorske Studenters Roklub,Nøklevann Ro- og Padleklubb,Ormsund Roklub\nNorske Studenters Roklub\nNorske Studenters Roklub\nNorske Studenters Roklub\nNorske Studenters Roklub\nNorske Studenters Roklub\nNorske Studenters Roklub","Tor-geir Myhrer\n","90060234\n","rosjefen@gmail.com\n","17.08.2016\n17.08.2016\n17.08.2016\n17.08.2016\n17.08.2016\n17.08.2016\n17.08.2016\n17.08.2016"]
[{"$f":"D299&R299","v":"2442"},{"$f":"OFFSET(B299,-1,0)","v":1},"Søn 28.8",244,null,{"$f":"OFFSET(F299,-1,0)","v":"1555"},null,null,null,null,null,null,null,null,null,null,1,2,1,null,null,null,null,"Åpen","Mix S","8+",null,"500 m","Bærum Roklubb 1","Halvor Hølmkjær West\nEspen Finanger\nSynnøve Gillebo Foss\nKlara Moene Omholt\nMina West\nJaime Aalders\nHermann Hovde\nTade Phanke\nTuva Skatt Gillebo",null,475,null,"Bærum Roklubb",null,null,"09.02.1994\n19.05.1975\n11.08.1999\n17.03.1998\n01.04.1998\n16.09.1999\n01.01.1999\n20.10.1999\n17.10.2002","Nei\nNei\nNei\nNei\nNei\nNei\nNei\nNei\nNei","M090294HAL02\nM190575ESP02\nK110899SYN02\nK170398KLA02\nK010498MIN06\nM160999JAI02\nM010199HER12\nM201099TAD03\nK171002TUV03","5993966\n587671\n5218490\n5645099\n6837551\n5508697\n5632327\n6760198\n6101180","29.04.2016\n\n29.04.2016\n29.04.2016\n29.04.2016\n29.04.2016\n29.04.2016\n\n29.04.2016","Bærum Roklubb\nBærum Roklubb\nBærum Roklubb\nBærum Roklubb\nBærum Roklubb\nBærum Roklubb\nBærum Roklubb\nBærum Roklubb\nBærum Roklubb","Anders Hovde\n","90775520\n","anders.hovde@tns-gallup.no\n","17.08.2016\n17.08.2016\n17.08.2016\n17.08.2016\n17.08.2016\n17.08.2016\n17.08.2016\n17.08.2016\n17.08.2016"]
["2443",1,"Søn 28.8",244,null,"1555",null,null,null,null,null,null,null,null,null,null,1,3,1,null,null,null,null,"Åpen","Mix S","8+",null,"500 m","Norske Studenters Roklub 1","Rebekka Øvensen Aanderaa\nPierre-Louis Bret\nSara Slettemark Juel\nSam Lorgen\nHanna Kaupang Petersen\nEdvart Solberg Svingen\nKristian Søhr\nCarl Oscar Christensen Hoff",null,475,null,"Norske Studenters Roklub",null,null,"11.10.2000\n31.05.1999\n06.11.1997\n02.04.2000\n15.09.2000\n02.11.1998\n14.04.2000\n29.12.1998","Nei\nNei\nNei\nNei\nNei\nNei\nNei\nNei","K111000REB03\nM310599PIE02\nK061197SAR05\nM020400SAM02\nK150900HAN01\nM021198EDV03\nM140400KRI01\nM291298CAR02","5673868\n6135379\n5293357\n6722466\n2581292\n6033989\n4077003\n5296631","26.04.2016\n26.04.2016\n26.04.2016\n26.04.2016\n26.04.2016\n26.04.2016\n26.04.2016\n26.04.2016","Norske Studenters Roklub\nNorske Studenters Roklub\nNorske Studenters Roklub\nNorske Studenters Roklub\nNorske Studenters Roklub\nNorske Studenters Roklub\nNorske Studenters Roklub\nNorske Studenters Roklub","Tor-geir Myhrer\n","90060234\n","rosjefen@gmail.com\n","17.08.2016\n17.08.2016\n17.08.2016\n17.08.2016\n17.08.2016\n17.08.2016\n17.08.2016\n17.08.2016"]

{"sheet":"Krysstabell","index":8,"n_rows":32,"n_cols":9,"rows_kept":32,"cut":false,"hidden":false,"merged":[[0,0,0,8],[20,0,21,0],[2,0,3,0],[4,0,5,0],[6,0,7,0],[8,0,9,0],[10,0,11,0],[12,0,13,0],[14,0,15,0],[16,0,17,0],[18,0,19,0],[22,0,23,0],[24,0,25,0],[26,0,27,0],[28,0,29,0],[30,0,31,0]]}
["KRYSSTABELL LØP"]
["KLASSE","Dag","1x","2x","2-","4x","4-","8+","Åpen"]
["Damer Senior","Lørdag",108,118,110,128,null,144]
[null,"Søndag",208,218,210,228]
["Damer Senior Lv","Lørdag",138,126]
[null,"Søndag",238,226]
["Damer Master","Lørdag",143,125,null,113]
[null,"Søndag",243,225,null,213]
["Damer Junior A","Lørdag",122,109,129,136,116]
[null,"Søndag",222,209,229,236,216,205]
["Damer Junior B","Lørdag",102,132,null,123]
[null,"Søndag",202,232,null,223]
["Damer Junior C","Lørdag",120,107]
[null,"Søndag",220,207]
["Herrer Senior","Lørdag",115,127,135,139]
[null,"Søndag",215,227,235,239,212]
["Herrer Senior Lv","Lørdag",117,137]
[null,"Søndag",217,237]
["Herrer Master","Lørdag",142,124,null,139,112]
[null,"Søndag",242,224,null,239,212]
["Herrer Junior A","Lørdag",111,140,114,130,134,105]
[null,"Søndag",211,240,214,230,234]
["Herrer Junior B","Lørdag",101,121,null,141,131]
[null,"Søndag",201,221,null,241,231]
["Herrer Junior C","Lørdag",106,119]
[null,"Søndag",206,219]
["Damer/Herrer J. D","Lørdag",null,104]
[null,"Søndag",204]
["Åpen Nybegynner","Lørdag",null,null,null,null,null,null,103]
[null,"Søndag",null,null,null,null,null,null,203]
["Mix","Lørdag",null,null,null,133]
[null,"Søndag",null,null,null,233,null,244]

{"sheet":"FORMATERINGER","index":9,"n_rows":10,"n_cols":19,"rows_kept":10,"cut":false,"hidden":true,"merged":[]}
["LØP NR","Finaler/heat","Forsøk og\nOppsamling","Tidspunkt\nforsøk","Tidspunkt \noppsamling","Tidspunkt \nveiing","Plassering","TID:","START NR","Kjønn","Klasse","Båttype","Distanse","ROKLUBB","ROERE","OKR JUBILEUMSLØP","START\nFINALE","START-KONTIGENT","Etteranmeldt\n/ Strøket"]
[200,"A",1,"10.30","11.30","10.45",0,0,0,"Mix","Mas","2X",1000,null,null,"OKR","11:00:00","200"]
[]
[215,"A",2,"10.30","11.30","10.45",0,0,0,"H","S","2-",2000,null,null,null,"Utgår","200"]
[]
[200,"A",1,"10.30","11.30","10.45",1,"07.36.04",1,"M","Mas","2X",1000,"NSR","NN\nNN","OKR","11:00:00",400,"X"]
[]
[]
["NB ! Fra denne folder skal du kun kopiere formatet, ikke innholdet i cellene !"]
["Sett derfor din cursor i ønsket rad helt i venstre marg, velg \"format painter\" og kopier over til folder LØRDAG eller SØNDAG"]

{"sheet":"Startnr","index":10,"n_rows":23,"n_cols":33,"rows_kept":23,"cut":false,"hidden":true,"merged":[]}
["LØP NR","(Multiple Items)"]
["Etteranmeldt/Strøket","(Multiple Items)"]
[]
["Count of Start nr",null,"N"]
["LØPSDAG","Påmeldene/Betalende klubb",1,2,3,4,5,6,7,8,9,10,11,12,13,14,15,16,17,18,19,20,21,22,23,24,25,26,27,28,29,30,"Grand Total"]
["Lør 22.8",null,26,24,17,15,17,11,9,10,7,6,7,7,6,4,3,3,3,2,2,2,2,1,null,1,1,1,1,null,1,1,190]
["Søn 23.8","Bestumkilen Roklubb",3,null,null,null,null,null,null,null,null,null,null,null,null,null,null,null,null,null,null,null,null,null,null,null,null,null,null,null,null,null,3]
[null,"Bærum Roklubb",9,2,4,5,2,2,1,1,1,1,1,2,null,1,1,2,null,null,null,null,1,null,null,null,1,null,null,null,null,1,38]
[null,"Christiania Roklub",3,2,2,3,1,null,1,null,1,1,null,1,null,null,null,null,1,null,null,null,null,null,null,null,null,null,null,null,null,null,16]
[null,"Drammen Roklubb ",null,1,null,1,2,1,1,1,null,1,null,null,1,null,null,null,null,null,null,null,null,null,null,null,null,null,null,null,null,null,9]
[null,"Fredriksstad Roklub",1,2,1,null,null,null,null,1,null,null,null,null,null,null,null,null,1,null,null,null,null,null,null,null,null,null,null,null,null,null,6]
[null,"Haldens Roklub",null,1,1,1,null,1,null,null,null,null,null,null,null,null,1,null,null,null,null,null,null,null,null,null,null,null,null,null,null,null,5]
[null,"Horten Roklubb",2,1,1,3,4,1,1,1,null,1,null,1,1,1,null,null,null,2,1,null,null,null,1,1,null,null,1,null,null,null,24]
[null,"Moss Roklubb",null,5,2,null,2,1,null,2,1,2,1,null,1,null,null,null,null,null,null,null,null,null,null,null,null,null,null,null,null,null,17]
[null,"Norske Studenters Roklub",3,8,3,2,3,null,2,1,3,null,1,1,null,null,null,null,null,null,null,1,1,null,null,null,null,null,null,1,1,null,31]
[null,"Ormsund Roklub",null,null,2,1,null,1,1,1,null,null,1,1,null,null,null,1,null,null,1,null,null,1,null,null,null,null,null,null,null,null,11]
[null,"Porsgrunn Roklubb",null,null,null,null,null,null,null,null,null,null,null,1,null,null,null,null,null,null,null,null,null,null,null,null,null,null,null,null,null,null,1]
[null,"Sarpsborg Roklubb",3,null,1,1,1,2,null,1,null,null,null,null,null,null,1,null,1,null,null,null,null,null,null,null,null,null,null,null,null,null,11]
[null,"Tønsberg Roklub",2,null,4,4,1,1,2,1,2,1,2,null,1,1,null,null,null,null,null,null,null,null,null,null,null,null,null,null,null,null,22]
[null,"Årungen Ro- og Kajakklubb",null,null,null,null,null,2,null,null,null,null,null,null,null,null,null,null,null,null,null,1,null,null,null,null,null,null,null,null,null,null,3]
[null,"(blank)",1,null,null,null,null,null,null,null,null,null,null,null,null,null,null,null,null,null,null,null,null,null,null,null,null,null,null,null,null,null,1]
["Søn 23.8 Total",null,27,22,21,21,16,12,9,10,8,7,6,7,4,3,3,3,3,2,2,2,2,1,1,1,1,null,1,1,1,1,198]
["Grand Total",null,53,46,38,36,33,23,18,20,15,13,13,14,10,7,6,6,6,4,4,4,4,2,1,2,2,1,2,1,2,2,388]

{"sheet":"KART","index":11,"n_rows":2,"n_cols":5,"rows_kept":2,"cut":false,"hidden":false,"merged":[[1,4,1,10],[0,8,0,14]]}
[]
[null,null,null,null,"For Kart - Parkering, Innkjøring  & Trafikkregler på banen se innbydelsen på Sportsadmin.no"]